Workbook

Sheet Основной
A1: no | B1: subject_name | C1: subject_id | D1: city | E1: institution | F1: institution_id | G1: lastname | H1: firstname | I1: patronymic | J1: gender | K1: birthdate | L1: edu_grade | M1: part_grade | N1: Балл | O1: Макс. балл | P1: Статус | Q1: Призер прошлого года | R1: Учитель | S1: Предмет | T1: Дата проведения | U1: Наименование ОУ | V1: Район | W1: Login | X1: Балл МЭ | Y1: Макс | Z1: Апеляционный балл | AA1: Итоговый балл | AB1: Статус
A2: 14864 | B2: Родной (татарский) язык для обучающихся – татар школ с русским языком обучения | C2: 53 | D2: Вахитовский район | E2: Муниципальное бюджетное общеобразовательное учреждение "Гимназия №3" Вахитовского района г.Казани" | F2: 551003 | G2: Сабирзянова | H2: Фарида | I2: Ильнаровна | J2: Ж | K2: 20.12.2009 | L2: 4 | M2: 4 | N2: 35 | O2: 36 | P2: призер | Q2: нет | R2: Сабирзянова РушанияИншатовна | S2: Родной (татарский) язык для обучающихся – татар школ с русским языком обучения | T2: 20.10.2020 | U2: Муниципальное бюджетное общеобразовательное учреждение "Гимназия №3" Вахитовского района г.Казани" | V2: Вахитовский район | W2: s53n14291 | X2: 53 | Y2: 54 | AA2: 53 | AB2: победитель
A3: 14844 | B3: Родной (татарский) язык для обучающихся – татар школ с русским языком обучения | C3: 53 | D3: Советский район | E3: Муниципальное бюджетное общеобразовательное учреждение "Средняя общеобразовательная школа №170 с углубленным изучением отдельных предметов" Ново-Савиновского района г. Казани" | F3: 581170 | G3: Камалиева | H3: Камиля | I3: Рамилевна | J3: Ж | K3: 04.08.2010 | L3: 4 | M3: 4 | N3: 34 | O3: 36 | P3: победитель | Q3: нет | R3: Файзуллина РавияАгзамовна | S3: Родной (татарский) язык для обучающихся – татар школ с русским языком обучения | T3: 20.10.2020 | U3: Муниципальное бюджетное общеобразовательное учреждение "Средняя общеобразовательная школа №170 с углубленным изучением отдельных предметов" Ново-Савиновского района г. Казани" | V3: Ново-Савиновский район | W3: s53n14308 | X3: 53 | Y3: 54 | AA3: =X3+Z3 -> 53 | AB3: победитель
A4: 14878 | B4: Родной (татарский) язык для обучающихся – татар школ с русским языком обучения | C4: 53 | D4: Ново-Савиновский район | E4: Муниципальное бюджетное общеобразовательное учреждение "Гимназия №3" Вахитовского района г.Казани" | F4: 551003 | G4: Халиуллин | H4: Искандер | I4: Маратович | J4: М | K4: 18.01.2011 | L4: 4 | M4: 4 | N4: 36 | O4: 36 | P4: победитель | Q4: нет | R4: Шайхелмарданова ДиляРашитовна | S4: Родной (татарский) язык для обучающихся – татар школ с русским языком обучения | T4: 20.10.2020 | U4: Муниципальное бюджетное общеобразовательное учреждение "Гимназия №3" Вахитовского района г.Казани" | V4: Вахитовский район | W4: s53n14276 | X4: 50 | Y4: 54 | Z4: 2 | AA4: 52 | AB4: призер
A5: 14866 | B5: Родной (татарский) язык для обучающихся – татар школ с русским языком обучения | C5: 53 | D5: Приволжский район | E5: Муниципальное бюджетное общеобразовательное учреждение "Гимназия №175" Советского района г.Казани | F5: 601175 | G5: Камалова | H5: Айсылу | I5: Айратовна | J5: Ж | K5: 24.09.2010 | L5: 4 | M5: 4 | N5: 35 | O5: 36 | P5: победитель | Q5: нет | R5: Ахтямова ГульназМингалиевна | S5: Родной (татарский) язык для обучающихся – татар школ с русским языком обучения | T5: 20.10.2020 | U5: Муниципальное бюджетное общеобразовательное учреждение "Гимназия №175" Советского района г.Казани | V5: Советский район | W5: s53n14289 | X5: 52 | Y5: 54 | AA5: =X5+Z5 -> 52 | AB5: призер
A6: 14841 | B6: Родной (татарский) язык для обучающихся – татар школ с русским языком обучения | C6: 53 | D6: Советский район | E6: Муниципальное бюджетное общеобразовательное учреждение "Лицей № 159" Советского района г.Казани" | F6: 601159 | G6: Файзутдинов | H6: Хасан | I6: Русланович | J6: М | K6: 10.02.2010 | L6: 4 | M6: 4 | N6: 34 | O6: 36 | P6: победитель | Q6: нет | R6: Аскарова ДжаухарияФаритовна | S6: Родной (татарский) язык для обучающихся – татар школ с русским языком обучения | T6: 20.10.2020 | U6: Муниципальное бюджетное общеобразовательное учреждение "Лицей № 159" Советского района г.Казани" | V6: Советский район | W6: s53n14311 | X6: 52 | Y6: 54 | AA6: =X6+Z6 -> 52 | AB6: призер
A7: 14881 | B7: Родной (татарский) язык для обучающихся – татар школ с русским языком обучения | C7: 53 | D7: Советский район | E7: Муниципальное бюджетное общеобразовательное учреждение "Лицей №35 - образовательный центр "Галактика" Приволжского района города Казани" | F7: 591035 | G7: Сафина | H7: Камиля | I7: Ибрагимовна | J7: Ж | K7: 26.05.2010 | L7: 4 | M7: 4 | N7: 36 | O7: 36 | P7: победитель | Q7: нет | R7: Сафина КадрияЮлдузовна | S7: Родной (татарский) язык для обучающихся – татар школ с русским языком обучения | T7: 20.10.2020 | U7: Муниципальное бюджетное общеобразовательное учреждение "Лицей №35 - образовательный центр "Галактика" Приволжского района города Казани" | V7: Приволжский район | W7: s53n14273 | X7: 51 | Y7: 54 | AA7: =X7+Z7 -> 51 | AB7: призер
A8: 14870 | B8: Родной (татарский) язык для обучающихся – татар школ с русским языком обучения | C8: 53 | D8: Московский район | E8: Муниципальное бюджетное общеобразовательное учреждение «Средняя общеобразовательная школа с углубленным изучением отдельных предметов №184 им.М.И.Махмутова» | F8: 601184 | G8: Валиева | H8: Диана | I8: Данилевна | J8: Ж | K8: 26.02.2010 | L8: 4 | M8: 4 | N8: 35 | O8: 36 | P8: победитель | Q8: нет | R8: Зигангирова АлсуХалиловна | S8: Родной (татарский) язык для обучающихся – татар школ с русским языком обучения | T8: 20.10.2020 | U8: Муниципальное бюджетное общеобразовательное учреждение «Средняя общеобразовательная школа с углубленным изучением отдельных предметов №184 им.М.И.Махмутова» | V8: Советский район | W8: s53n14284 | X8: 51 | Y8: 54 | AA8: 51 | AB8: призер
A9: 14868 | B9: Родной (татарский) язык для обучающихся – татар школ с русским языком обучения | C9: 53 | D9: Советский район | E9: Муниципальное автономное общеобразовательное учреждение "Гимназия №37" Авиастроительного района г.Казани" | F9: 541037 | G9: Габидуллина | H9: Алсу | I9: Гулусовна | J9: Ж | K9: 02.03.2010 | L9: 4 | M9: 4 | N9: 35 | O9: 36 | P9: победитель | Q9: нет | R9: Денисова ГелюсаРашидовна | S9: Родной (татарский) язык для обучающихся – татар школ с русским языком обучения | T9: 20.10.2020 | U9: Муниципальное автономное общеобразовательное учреждение "Гимназия №37" Авиастроительного района г.Казани" | V9: Авиастроительный район | W9: s53n14286 | X9: 51 | Y9: 54 | AA9: =X9+Z9 -> 51 | AB9: призер
A10: 14875 | B10: Родной (татарский) язык для обучающихся – татар школ с русским языком обучения | C10: 53 | D10: Советский район | E10: Муниципальное бюджетное общеобразовательное учреждение "Многопрофильная полилингвальная гимназия №180" Советского района г. Казани" | F10: 601180 | G10: Шамсутдинова | H10: Самира | I10: Маратовна | J10: Ж | K10: 16.11.2010 | L10: 4 | M10: 4 | N10: 36 | O10: 36 | P10: победитель | Q10: нет | R10: Фатыхова РузиляФоатовна | S10: Родной (татарский) язык для обучающихся – татар школ с русским языком обучения | T10: 20.10.2020 | U10: Муниципальное бюджетное общеобразовательное учреждение "Многопрофильная полилингвальная гимназия №180" Советского района г. Казани" | V10: Советский район | W10: s53n14279 | X10: 47 | Y10: 54 | AA10: 47 | AB10: призер
A11: 14849 | B11: Родной (татарский) язык для обучающихся – татар школ с русским языком обучения | C11: 53 | D11: Советский район | E11: Муниципальное бюджетное общеобразовательное учреждение «Средняя общеобразовательная школа с углубленным изучением отдельных предметов №184 им.М.И.Махмутова» | F11: 601184 | G11: Егорова | H11: Ралина | I11: Олеговна | J11: Ж | K11: 08.10.2010 | L11: 4 | M11: 4 | N11: 34 | O11: 36 | P11: призер | Q11: нет | R11: Зигангирова АлсуХалиловна | S11: Родной (татарский) язык для обучающихся – татар школ с русским языком обучения | T11: 20.10.2020 | U11: Муниципальное бюджетное общеобразовательное учреждение «Средняя общеобразовательная школа с углубленным изучением отдельных предметов №184 им.М.И.Махмутова» | V11: Советский район | W11: s53n14303 | X11: 47 | Y11: 54 | AA11: =X11+Z11 -> 47 | AB11: призер
A12: 14872 | B12: Родной (татарский) язык для обучающихся – татар школ с русским языком обучения | C12: 53 | D12: Авиастроительный район | E12: Муниципальное автономное общеобразовательное учреждение "Основная общеобразовательная школа №30" Ново-Савиновского района г.Казани" | F12: 581030 | G12: Бадретдинова | H12: Лина | I12: Руслановна | J12: Ж | K12: 25.11.2010 | L12: 4 | M12: 4 | N12: 35 | O12: 36 | P12: призер | Q12: нет | R12: Мардеева РумияСалиховна | S12: Родной (татарский) язык для обучающихся – татар школ с русским языком обучения | T12: 20.10.2020 | U12: Муниципальное автономное общеобразовательное учреждение "Основная общеобразовательная школа №30" Ново-Савиновского района г.Казани" | V12: Ново-Савиновский район | W12: s53n14282 | X12: 46 | Y12: 54 | AA12: =X12+Z12 -> 46 | AB12: призер
A13: 14862 | B13: Родной (татарский) язык для обучающихся – татар школ с русским языком обучения | C13: 53 | D13: Советский район | E13: Муниципальное автономное общеобразовательное учреждение "Основная общеобразовательная школа №30" Ново-Савиновского района г.Казани" | F13: 581030 | G13: Хадиев | H13: Аяз | I13: Камилевич | J13: М | K13: 09.09.2010 | L13: 4 | M13: 4 | N13: 35 | O13: 36 | P13: призер | Q13: нет | R13: Мардеева РумияСалиховна | S13: Родной (татарский) язык для обучающихся – татар школ с русским языком обучения | T13: 20.10.2020 | U13: Муниципальное автономное общеобразовательное учреждение "Основная общеобразовательная школа №30" Ново-Савиновского района г.Казани" | V13: Ново-Савиновский район | W13: s53n14293 | X13: 46 | Y13: 54 | AA13: =X13+Z13 -> 46 | AB13: призер
A14: 16710 | B14: Родной (татарский) язык для обучающихся – татар школ с русским языком обучения | C14: 53 | D14: Приволжский район | E14: Муниципальное бюджетное общеобразовательное учреждение "Гимназия №33" Авиастроительного района г.Казани" | F14: 541033 | G14: Гарипова | H14: Камиля | I14: Ильфатовна | J14: Ж | K14: 19.12.2009 | L14: 4 | M14: 4 | N14: 36 | O14: 36 | P14: победитель | Q14: нет | R14: Абдрахманова ФагимаХайдаровна | S14: Родной (татарский) язык для обучающихся – татар школ с русским языком обучения | T14: 20.10.2020 | U14: Муниципальное бюджетное общеобразовательное учреждение "Гимназия №33" Авиастроительного района г.Казани" | V14: Авиастроительный район | W14: s53n14268 | X14: 44 | Y14: 54 | AA14: 44 | AB14: призер
A15: 14869 | B15: Родной (татарский) язык для обучающихся – татар школ с русским языком обучения | C15: 53 | D15: Вахитовский район | E15: Муниципальное бюджетное общеобразовательное учреждение "Лицей №35 - образовательный центр "Галактика" Приволжского района города Казани" | F15: 591035 | G15: Габдуллина | H15: Диана | I15: Айдаровна | J15: Ж | K15: 29.12.2009 | L15: 4 | M15: 4 | N15: 35 | O15: 36 | P15: призер | Q15: нет | R15: Сафина КадрияЮлдузовна | S15: Родной (татарский) язык для обучающихся – татар школ с русским языком обучения | T15: 20.10.2020 | U15: Муниципальное бюджетное общеобразовательное учреждение "Лицей №35 - образовательный центр "Галактика" Приволжского района города Казани" | V15: Приволжский район | W15: s53n14285 | X15: 44 | Y15: 54 | AA15: =X15+Z15 -> 44 | AB15: призер
A16: 14879 | B16: Родной (татарский) язык для обучающихся – татар школ с русским языком обучения | C16: 53 | D16: Советский район | E16: Муниципальное бюджетное общеобразовательное учреждение "Многопрофильная полилингвальная гимназия №180" Советского района г. Казани" | F16: 601180 | G16: Фаттахова | H16: Алия | I16: Наилевна | J16: Ж | K16: 28.01.2010 | L16: 4 | M16: 4 | N16: 36 | O16: 36 | P16: победитель | Q16: нет | R16: Ибрагимова НуранияМансуровна | S16: Родной (татарский) язык для обучающихся – татар школ с русским языком обучения | T16: 20.10.2020 | U16: Муниципальное бюджетное общеобразовательное учреждение "Многопрофильная полилингвальная гимназия №180" Советского района г. Казани" | V16: Советский район | W16: s53n14275 | X16: 43 | Y16: 54 | AA16: 43 | AB16: участник
A17: 14874 | B17: Родной (татарский) язык для обучающихся – татар школ с русским языком обучения | C17: 53 | D17: Московский район | E17: Муниципальное бюджетное общеобразовательное учреждение "Средняя общеобразовательная школа № 82 с углубленным изучением отдельных предметов им.Р.Г.Хасановой" | F17: 591082 | G17: Шарифуллина | H17: Диляра | I17: Айратовна | J17: Ж | K17: 30.12.2010 | L17: 4 | M17: 4 | N17: 36 | O17: 36 | P17: победитель | Q17: нет | R17: Яковлева РозаАнатольевна | S17: Родной (татарский) язык для обучающихся – татар школ с русским языком обучения | T17: 20.10.2020 | U17: Муниципальное бюджетное общеобразовательное учреждение "Средняя общеобразовательная школа № 82 с углубленным изучением отдельных предметов им.Р.Г.Хасановой" | V17: Приволжский район | W17: s53n14280 | X17: 43 | Y17: 54 | AA17: =X17+Z17 -> 43 | AB17: участник
A18: 14836 | B18: Родной (татарский) язык для обучающихся – татар школ с русским языком обучения | C18: 53 | D18: Советский район | E18: Муниципальное бюджетное общеобразовательное учреждение "Средняя общеобразовательная школа с углубленным изучением отдельных предметов №62" Авиастроительного района г.Казани" | F18: 541062 | G18: Шакиров | H18: Азамат | I18: Фаязович | J18: М | K18: 02.09.2010 | L18: 4 | M18: 4 | N18: 34 | O18: 36 | P18: призер | Q18: нет | R18: Ахмадиева ЭнджеЗакариевна | S18: Родной (татарский) язык для обучающихся – татар школ с русским языком обучения | T18: 20.10.2020 | U18: Муниципальное бюджетное общеобразовательное учреждение "Средняя общеобразовательная школа с углубленным изучением отдельных предметов №62" Авиастроительного района г.Казани" | V18: Авиастроительный район | W18: s53n14316 | X18: 43 | Y18: 54 | AA18: 43 | AB18: участник
A19: 14889 | B19: Родной (татарский) язык для обучающихся – татар школ с русским языком обучения | C19: 53 | D19: Советский район | E19: МБОУ "Политехнический лицей № 182" | F19: 561182 | G19: Нуриева | H19: Иделия | I19: Ильдаровна | J19: Ж | K19: 15.12.2009 | L19: 4 | M19: 4 | N19: 36 | O19: 36 | P19: победитель | Q19: нет | R19: Гибадуллина ЭльвираАзхатовна | S19: Родной (татарский) язык для обучающихся – татар школ с русским языком обучения | T19: 20.10.2020 | U19: МБОУ "Политехнический лицей № 182" | V19: Кировский район | W19: s53n14271 | X19: 41 | Y19: 54 | AA19: 41 | AB19: участник
A20: 14867 | B20: Родной (татарский) язык для обучающихся – татар школ с русским языком обучения | C20: 53 | D20: Советский район | E20: Муниципальное бюджетное общеобразовательное учреждение "Средняя общеобразовательная школа №132 с углубленным изучением иностранных языков" Ново-Савиновского района г. Казани" | F20: 581132 | G20: Гильматдинов | H20: Азамат | I20: Ирекович | J20: М | K20: 29.07.2010 | L20: 4 | M20: 4 | N20: 35 | O20: 36 | P20: победитель | Q20: нет | R20: Шарафиева МуслимаРавиловна | S20: Родной (татарский) язык для обучающихся – татар школ с русским языком обучения | T20: 20.10.2020 | U20: Муниципальное бюджетное общеобразовательное учреждение "Средняя общеобразовательная школа №132 с углубленным изучением иностранных языков" Ново-Савиновского района г. Казани" | V20: Ново-Савиновский район | W20: s53n14287 | X20: 41 | Y20: 54 | AA20: 41 | AB20: участник
A21: 14851 | B21: Родной (татарский) язык для обучающихся – татар школ с русским языком обучения | C21: 53 | D21: Приволжский район | E21: Муниципальное автономное общеобразовательное учреждение "Гимназия №37" Авиастроительного района г.Казани" | F21: 541037 | G21: Гараева | H21: Малика | I21: Марселевна | J21: Ж | K21: 01.01.2010 | L21: 4 | M21: 4 | N21: 34 | O21: 36 | P21: призер | Q21: нет | R21: Ахметшина ЗиляВагизовна | S21: Родной (татарский) язык для обучающихся – татар школ с русским языком обучения | T21: 20.10.2020 | U21: Муниципальное автономное общеобразовательное учреждение "Гимназия №37" Авиастроительного района г.Казани" | V21: Авиастроительный район | W21: s53n14302 | X21: 41 | Y21: 54 | AA21: 41 | AB21: участник
A22: 14871 | B22: Родной (татарский) язык для обучающихся – татар школ с русским языком обучения | C22: 53 | D22: Приволжский район | E22: Муниципальное автономное общеобразовательное учреждение "Гимназия №37" Авиастроительного района г.Казани" | F22: 541037 | G22: Валиева | H22: Диляра | I22: Рамилевна | J22: Ж | K22: 05.06.2010 | L22: 4 | M22: 4 | N22: 35 | O22: 36 | P22: победитель | Q22: нет | R22: Ахметшина ЗиляВагизовна | S22: Родной (татарский) язык для обучающихся – татар школ с русским языком обучения | T22: 20.10.2020 | U22: Муниципальное автономное общеобразовательное учреждение "Гимназия №37" Авиастроительного района г.Казани" | V22: Авиастроительный район | W22: s53n14283 | X22: 40 | Y22: 54 | AA22: 40 | AB22: участник
A23: 14837 | B23: Родной (татарский) язык для обучающихся – татар школ с русским языком обучения | C23: 53 | D23: Кировский район | E23: Муниципальное автономное общеобразовательное учреждение "Гимназия №19" | F23: 591019 | G23: Шаймарданова | H23: Айгуль | I23: Айратовна | J23: Ж | K23: 22.09.2010 | L23: 4 | M23: 4 | N23: 34 | O23: 36 | P23: призер | Q23: нет | R23: Зинатуллина ЧулпанХабировна | S23: Родной (татарский) язык для обучающихся – татар школ с русским языком обучения | T23: 20.10.2020 | U23: Муниципальное автономное общеобразовательное учреждение "Гимназия №19" | V23: Приволжский район | W23: s53n14315 | X23: 40 | Y23: 54 | AA23: 40 | AB23: участник
A24: 16715 | B24: Родной (татарский) язык для обучающихся – татар школ с русским языком обучения | C24: 53 | D24: Вахитовский район | E24: Муниципальное бюджетное общеобразовательное учреждение "Многопрофильная полилингвальная гимназия №180" Советского района г. Казани" | F24: 601180 | G24: Ахметова | H24: Самира | I24: Расиховна | J24: Ж | K24: 13.10.2010 | L24: 4 | M24: 4 | N24: 36 | O24: 36 | P24: победитель | Q24: нет | R24: Ибрагимова НуранияМансуровна | S24: Родной (татарский) язык для обучающихся – татар школ с русским языком обучения | T24: 20.10.2020 | U24: Муниципальное бюджетное общеобразовательное учреждение "Многопрофильная полилингвальная гимназия №180" Советского района г. Казани" | V24: Советский район | W24: s53n14263 | X24: 39 | Y24: 54 | AA24: 39 | AB24: участник
A25: 16714 | B25: Родной (татарский) язык для обучающихся – татар школ с русским языком обучения | C25: 53 | D25: Приволжский район | E25: Муниципальное автономное общеобразовательное учреждение "Гимназия №19" | F25: 591019 | G25: Ахтямова | H25: Рамина | I25: Рустемовна | J25: Ж | K25: 18.08.2010 | L25: 4 | M25: 4 | N25: 36 | O25: 36 | P25: победитель | Q25: нет | R25: Зинатуллина ЧулпанХабировна | S25: Родной (татарский) язык для обучающихся – татар школ с русским языком обучения | T25: 20.10.2020 | U25: Муниципальное автономное общеобразовательное учреждение "Гимназия №19" | V25: Приволжский район | W25: s53n14264 | X25: 39 | Y25: 54 | AA25: =X25+Z25 -> 39 | AB25: участник
A26: 14880 | B26: Родной (татарский) язык для обучающихся – татар школ с русским языком обучения | C26: 53 | D26: Приволжский район | E26: Муниципальное бюджетное общеобразовательное учреждение "Многопрофильная полилингвальная гимназия №180" Советского района г. Казани" | F26: 601180 | G26: Сунгатуллина | H26: Ралина | I26: Рамилевна | J26: Ж | K26: 19.07.2010 | L26: 4 | M26: 4 | N26: 36 | O26: 36 | P26: победитель | Q26: нет | R26: Ибрагимова НуранияМансуровна | S26: Родной (татарский) язык для обучающихся – татар школ с русским языком обучения | T26: 20.10.2020 | U26: Муниципальное бюджетное общеобразовательное учреждение "Многопрофильная полилингвальная гимназия №180" Советского района г. Казани" | V26: Советский район | W26: s53n14274 | X26: 38 | Y26: 54 | AA26: 38 | AB26: участник
A27: 14852 | B27: Родной (татарский) язык для обучающихся – татар школ с русским языком обучения | C27: 53 | D27: Приволжский район | E27: Муниципальное автономное общеобразовательное учреждение "Лицей №146 "Ресурс" Ново-Савиновского района г. Казани" | F27: 581146 | G27: Галимова | H27: Наргиза | I27: Булатовна | J27: Ж | K27: 08.07.2010 | L27: 4 | M27: 4 | N27: 34 | O27: 36 | P27: победитель | Q27: нет | R27: Сайфутдинова ЧулпанДаниловна | S27: Родной (татарский) язык для обучающихся – татар школ с русским языком обучения | T27: 20.10.2020 | U27: Муниципальное автономное общеобразовательное учреждение "Лицей №146 "Ресурс" Ново-Савиновского района г. Казани" | V27: Ново-Савиновский район | W27: s53n14301 | X27: 38 | Y27: 54 | AA27: =X27+Z27 -> 38 | AB27: участник
A28: 14847 | B28: Родной (татарский) язык для обучающихся – татар школ с русским языком обучения | C28: 53 | D28: Советский район | E28: Муниципальное бюджетное общеобразовательное учреждение "Гимназия№52" | F28: 591052 | G28: Зиннатуллина | H28: Зиля | I28: Рафаилевна | J28: Ж | K28: 12.02.2010 | L28: 4 | M28: 4 | N28: 34 | O28: 36 | P28: победитель | Q28: нет | R28: Шафигуллина СиринаИльдусовна | S28: Родной (татарский) язык для обучающихся – татар школ с русским языком обучения | T28: 20.10.2020 | U28: Муниципальное бюджетное общеобразовательное учреждение "Гимназия№52" | V28: Приволжский район | W28: s53n14305 | X28: 38 | Y28: 54 | AA28: 38 | AB28: участник
A29: 14843 | B29: Родной (татарский) язык для обучающихся – татар школ с русским языком обучения | C29: 53 | D29: Советский район | E29: Муниципальное бюджетное общеобразовательное учреждение "Гимназия №6" | F29: 591006 | G29: Каримова | H29: Амина | I29: Азатовна | J29: Ж | K29: 08.07.2010 | L29: 4 | M29: 4 | N29: 34 | O29: 36 | P29: победитель | Q29: нет | R29: Гильманова ЭльмираХайдаровна | S29: Родной (татарский) язык для обучающихся – татар школ с русским языком обучения | T29: 20.10.2020 | U29: Муниципальное бюджетное общеобразовательное учреждение "Гимназия №6" | V29: Приволжский район | W29: s53n14309 | X29: 38 | Y29: 54 | AA29: =X29+Z29 -> 38 | AB29: участник
A30: 14876 | B30: Родной (татарский) язык для обучающихся – татар школ с русским языком обучения | C30: 53 | D30: Приволжский район | E30: Муниципальное бюджетное общеобразовательное учреждение "Многопрофильная полилингвальная гимназия №180" Советского района г. Казани" | F30: 601180 | G30: Шакирова | H30: Надира | I30: Ильнаровна | J30: Ж | K30: 21.08.2010 | L30: 4 | M30: 4 | N30: 36 | O30: 36 | P30: победитель | Q30: нет | R30: Ибрагимова НуранияМансуровна | S30: Родной (татарский) язык для обучающихся – татар школ с русским языком обучения | T30: 20.10.2020 | U30: Муниципальное бюджетное общеобразовательное учреждение "Многопрофильная полилингвальная гимназия №180" Советского района г. Казани" | V30: Советский район | W30: s53n14278 | X30: 37 | Y30: 54 | AA30: =X30+Z30 -> 37 | AB30: участник
A31: 14839 | B31: Родной (татарский) язык для обучающихся – татар школ с русским языком обучения | C31: 53 | D31: Приволжский район | E31: Муниципальное бюджетное общеобразовательное учреждение "Средняя общеобразовательная школа № 171 с углубленным изучением отдельных предметов" Советского района г.Казани | F31: 601171 | G31: Хасанова | H31: Азалия | I31: Ирековна | J31: Ж | K31: 15.06.2010 | L31: 4 | M31: 4 | N31: 34 | O31: 36 | P31: победитель | Q31: нет | R31: Гумарова ГалинаАлександровна | S31: Родной (татарский) язык для обучающихся – татар школ с русским языком обучения | T31: 20.10.2020 | U31: Муниципальное бюджетное общеобразовательное учреждение "Средняя общеобразовательная школа № 171 с углубленным изучением отдельных предметов" Советского района г.Казани | V31: Советский район | W31: s53n14313 | X31: 37 | Y31: 54 | AA31: =X31+Z31 -> 37 | AB31: участник
A32: 14860 | B32: Родной (татарский) язык для обучающихся – татар школ с русским языком обучения | C32: 53 | D32: Московский район | E32: Муниципальное бюджетное общеобразовательное учреждение "Русско-татарская средняя общеобразовательная школа №129" | F32: 591129 | G32: Хасанова | H32: Аделина | I32: Рамилевна | J32: Ж | K32: 28.07.2010 | L32: 4 | M32: 4 | N32: 35 | O32: 36 | P32: победитель | Q32: нет | R32: Исмагилова РамзияТалгатовна | S32: Родной (татарский) язык для обучающихся – татар школ с русским языком обучения | T32: 20.10.2020 | U32: Муниципальное бюджетное общеобразовательное учреждение "Русско-татарская средняя общеобразовательная школа №129" | V32: Приволжский район | W32: s53n14295 | X32: 36 | Y32: 54 | AA32: 36 | AB32: участник
A33: 14848 | B33: Родной (татарский) язык для обучающихся – татар школ с русским языком обучения | C33: 53 | D33: Вахитовский район | E33: Муниципальное бюджетное общеобразовательное учреждение "Русско-татарская средняя общеобразовательная школа №129" | F33: 591129 | G33: Закирова | H33: Адиля | I33: Ильнуровна | J33: Ж | K33: 05.11.2009 | L33: 4 | M33: 4 | N33: 34 | O33: 36 | P33: победитель | Q33: нет | R33: Исмагилова РамзияТалгатовна | S33: Родной (татарский) язык для обучающихся – татар школ с русским языком обучения | T33: 20.10.2020 | U33: Муниципальное бюджетное общеобразовательное учреждение "Русско-татарская средняя общеобразовательная школа №129" | V33: Приволжский район | W33: s53n14304 | X33: 36 | Y33: 54 | AA33: =X33+Z33 -> 36 | AB33: участник
A34: 14896 | B34: Родной (татарский) язык для обучающихся – татар школ с русским языком обучения | C34: 53 | D34: Кировский район | E34: Муниципальное бюджетное общеобразовательное учреждение "Средняя общеобразовательная школа №73" | F34: 591073 | G34: Гиззатуллина | H34: Алина | I34: Фаридовна | J34: Ж | K34: 24.07.2010 | L34: 4 | M34: 4 | N34: 36 | O34: 36 | P34: победитель | Q34: нет | R34: Арсланова АнисаДаулиевна | S34: Родной (татарский) язык для обучающихся – татар школ с русским языком обучения | T34: 20.10.2020 | U34: Муниципальное бюджетное общеобразовательное учреждение "Средняя общеобразовательная школа №73" | V34: Приволжский район | W34: s53n14269 | X34: 35 | Y34: 54 | AA34: =X34+Z34 -> 35 | AB34: участник
A35: 14886 | B35: Родной (татарский) язык для обучающихся – татар школ с русским языком обучения | C35: 53 | D35: Приволжский район | E35: Муниципальное бюджетное общеобразовательное учреждение "Средняя общеобразовательная школа №70 с углубленным изучениемотдельных предметов" Кировского района г. Казани" | F35: 561070 | G35: Нурмиева | H35: Диляра | I35: Ильфатовна | J35: Ж | K35: 28.01.1900 | L35: 4 | M35: 4 | N35: 36 | O35: 36 | P35: победитель | Q35: нет | R35: Хафизова ГулияСаматовна | S35: Родной (татарский) язык для обучающихся – татар школ с русским языком обучения | T35: 20.10.2020 | U35: Муниципальное бюджетное общеобразовательное учреждение "Средняя общеобразовательная школа №70 с углубленным изучениемотдельных предметов" Кировского района г. Казани" | V35: Кировский район | W35: s53n14272 | X35: 35 | Y35: 54 | AA35: =X35+Z35 -> 35 | AB35: участник
A36: 14853 | B36: Родной (татарский) язык для обучающихся – татар школ с русским языком обучения | C36: 53 | D36: Советский район | E36: Муниципальное бюджетное общеобразовательное учреждение "Гимназия №96" | F36: 551096 | G36: Гайнуллина | H36: Азалия | I36: Маратовна | J36: Ж | K36: 02.06.2010 | L36: 4 | M36: 4 | N36: 34 | O36: 36 | P36: победитель | Q36: нет | R36: Мифтахутдинова АльфияЗахраповна | S36: Родной (татарский) язык для обучающихся – татар школ с русским языком обучения | T36: 20.10.2020 | U36: Муниципальное бюджетное общеобразовательное учреждение "Гимназия №96" | V36: Вахитовский район | W36: s53n14300 | X36: 34 | Y36: 54 | AA36: 34 | AB36: участник
A37: 16711 | B37: Родной (татарский) язык для обучающихся – татар школ с русским языком обучения | C37: 53 | D37: Приволжский район | E37: Муниципальное бюджетное общеобразовательное учреждение "Гимназия № 125" Советского района г.Казани" | F37: 601125 | G37: Галиуллина | H37: Алина | I37: Витальевна | J37: Ж | K37: 13.12.2009 | L37: 4 | M37: 4 | N37: 36 | O37: 36 | P37: победитель | Q37: нет | R37: Халилова ЭльмераШаммехаматовна | S37: Родной (татарский) язык для обучающихся – татар школ с русским языком обучения | T37: 20.10.2020 | U37: Муниципальное бюджетное общеобразовательное учреждение "Гимназия № 125" Советского района г.Казани" | V37: Советский район | W37: s53n14267 | X37: 32 | Y37: 54 | AA37: =X37+Z37 -> 32 | AB37: участник
A38: 14857 | B38: Родной (татарский) язык для обучающихся – татар школ с русским языком обучения | C38: 53 | D38: Советский район | E38: Муниципальное бюджетное общеобразовательное учреждение "Гимназия №175" Советского района г.Казани | F38: 601175 | G38: Шакирова | H38: Зиля | I38: Ниязовна | J38: Ж | K38: 05.03.2010 | L38: 4 | M38: 4 | N38: 35 | O38: 36 | P38: победитель | Q38: нет | R38: Ахтямова ГульназМингалиевна | S38: Родной (татарский) язык для обучающихся – татар школ с русским языком обучения | T38: 20.10.2020 | U38: Муниципальное бюджетное общеобразовательное учреждение "Гимназия №175" Советского района г.Казани | V38: Советский район | W38: s53n14297 | X38: 31 | Y38: 54 | AA38: 31 | AB38: участник
A39: 14865 | B39: Родной (татарский) язык для обучающихся – татар школ с русским языком обучения | C39: 53 | D39: Кировский район | E39: Муниципальное автономное общеобразовательное учреждение "Гимназия №19" | F39: 591019 | G39: Мухаметгалиева | H39: Саида | I39: Маратовна | J39: Ж | K39: 03.01.2011 | L39: 4 | M39: 4 | N39: 35 | O39: 36 | P39: призер | Q39: нет | R39: Залялеева АлсуКотдусовна | S39: Родной (татарский) язык для обучающихся – татар школ с русским языком обучения | T39: 20.10.2020 | U39: Муниципальное автономное общеобразовательное учреждение "Гимназия №19" | V39: Приволжский район | W39: s53n14290 | X39: 30 | Y39: 54 | AA39: =X39+Z39 -> 30 | AB39: участник
A40: 14842 | B40: Родной (татарский) язык для обучающихся – татар школ с русским языком обучения | C40: 53 | D40: Вахитовский район | E40: Муниципальное бюджетное общеобразовательное учреждение "Средняя общеобразовательная русско-татарская школа № 161" Советского района г.Казани" | F40: 601161 | G40: Фаизова | H40: Алина | I40: Ниязовна | J40: Ж | K40: 27.06.2010 | L40: 4 | M40: 4 | N40: 34 | O40: 36 | P40: призер | Q40: нет | R40: Девятеева АнисаАнваровна | S40: Родной (татарский) язык для обучающихся – татар школ с русским языком обучения | T40: 20.10.2020 | U40: Муниципальное бюджетное общеобразовательное учреждение "Средняя общеобразовательная русско-татарская школа № 161" Советского района г.Казани" | V40: Советский район | W40: s53n14310 | X40: 30 | Y40: 54 | AA40: =X40+Z40 -> 30 | AB40: участник
A41: 14895 | B41: Родной (татарский) язык для обучающихся – татар школ с русским языком обучения | C41: 53 | D41: Кировский район | E41: Муниципальное бюджетное общеобразовательное учреждение "Средняя общеобразовательная школа № 54 с углубленным изучением отдельных предметов" Авиастроительного района г.Казани" | F41: 541054 | G41: Закирзянов | H41: Райнур | I41: Ильнарович | J41: М | K41: 06.10.2010 | L41: 4 | M41: 4 | N41: 36 | O41: 36 | P41: призер | Q41: нет | R41: Мубаракшина ЗухраМаксутовна | S41: Родной (татарский) язык для обучающихся – татар школ с русским языком обучения | T41: 20.10.2020 | U41: Муниципальное бюджетное общеобразовательное учреждение "Средняя общеобразовательная школа № 54 с углубленным изучением отдельных предметов" Авиастроительного района г.Казани" | V41: Авиастроительный район | W41: s53n14270 | X41: 29 | Y41: 54 | AA41: =X41+Z41 -> 29 | AB41: участник
A42: 14863 | B42: Родной (татарский) язык для обучающихся – татар школ с русским языком обучения | C42: 53 | D42: Приволжский район | E42: Муниципальное бюджетное общеобразовательное учреждение «Многопрофильный лицей №186 - "Перспектива" Приволжского района г. Казани | F42: 591186 | G42: Сафина | H42: Зарина | I42: Алмазовна | J42: Ж | K42: 07.10.2009 | L42: 4 | M42: 4 | N42: 35 | O42: 36 | P42: победитель | Q42: нет | R42: Фазлыева АлсуФаритовна | S42: Родной (татарский) язык для обучающихся – татар школ с русским языком обучения | T42: 20.10.2020 | U42: Муниципальное бюджетное общеобразовательное учреждение «Многопрофильный лицей №186 - "Перспектива" Приволжского района г. Казани | V42: Приволжский район | W42: s53n14292 | X42: 28 | Y42: 54 | AA42: =X42+Z42 -> 28 | AB42: участник
A43: 14861 | B43: Родной (татарский) язык для обучающихся – татар школ с русским языком обучения | C43: 53 | D43: Советский район | E43: Муниципальное бюджетное общеобразовательное учреждение "Средняя общеобразовательная русско-татарская школа № 161" Советского района г.Казани" | F43: 601161 | G43: Халимова | H43: Мадина | I43: Ильдаровна | J43: Ж | K43: 23.03.2010 | L43: 4 | M43: 4 | N43: 35 | O43: 36 | P43: победитель | Q43: нет | R43: Девятеева АнисаАнваровна | S43: Родной (татарский) язык для обучающихся – татар школ с русским языком обучения | T43: 20.10.2020 | U43: Муниципальное бюджетное общеобразовательное учреждение "Средняя общеобразовательная русско-татарская школа № 161" Советского района г.Казани" | V43: Советский район | W43: s53n14294 | X43: 26 | Y43: 54 | AA43: =X43+Z43 -> 26 | AB43: участник
A44: 16713 | B44: Родной (татарский) язык для обучающихся – татар школ с русским языком обучения | C44: 53 | D44: Приволжский район | E44: Муниципальное бюджетное общеобразовательное учреждение "Средняя общеобразовательная школа № 144 с углубленным изучением отдельных предметов" Советского района г.Казани" | F44: 601144 | G44: Валиева | H44: Алия | I44: Алмазовна | J44: Ж | K44: 17.02.2010 | L44: 4 | M44: 4 | N44: 36 | O44: 36 | P44: победитель | Q44: нет | R44: Курманова АйсылуШаукатовна | S44: Родной (татарский) язык для обучающихся – татар школ с русским языком обучения | T44: 20.10.2020 | U44: Муниципальное бюджетное общеобразовательное учреждение "Средняя общеобразовательная школа № 144 с углубленным изучением отдельных предметов" Советского района г.Казани" | V44: Советский район | W44: s53n14265 | X44: 25 | Y44: 54 | AA44: 25 | AB44: участник
A45: 16712 | B45: Родной (татарский) язык для обучающихся – татар школ с русским языком обучения | C45: 53 | D45: Приволжский район | E45: Муниципальное бюджетное общеобразовательное учреждение "Средняя общеобразовательная школа с углубленным изучением отдельных предметов №62" Авиастроительного района г.Казани" | F45: 541062 | G45: Валитова | H45: Венера | I45: Ильдаровна | J45: Ж | K45: 14.05.2010 | L45: 4 | M45: 4 | N45: 36 | O45: 36 | P45: победитель | Q45: нет | R45: Ибрагимова ЭнджеСалимовна | S45: Родной (татарский) язык для обучающихся – татар школ с русским языком обучения | T45: 20.10.2020 | U45: Муниципальное бюджетное общеобразовательное учреждение "Средняя общеобразовательная школа с углубленным изучением отдельных предметов №62" Авиастроительного района г.Казани" | V45: Авиастроительный район | W45: s53n14266 | X45: 25 | Y45: 54 | AA45: =X45+Z45 -> 25 | AB45: участник
A46: 14859 | B46: Родной (татарский) язык для обучающихся – татар школ с русским языком обучения | C46: 53 | D46: Советский район | E46: Муниципальное бюджетное общеобразовательное учреждение "Гимназия № 90" Советского района г.Казани" | F46: 601090 | G46: Хусайнов | H46: Карим | I46: Русланович | J46: М | K46: 04.10.2010 | L46: 4 | M46: 4 | N46: 35 | O46: 36 | P46: победитель | Q46: нет | R46: Насипова ЛейлаРаисовна | S46: Родной (татарский) язык для обучающихся – татар школ с русским языком обучения | T46: 20.10.2020 | U46: Муниципальное бюджетное общеобразовательное учреждение "Гимназия № 90" Советского района г.Казани" | V46: Советский район | W46: s53n14296 | X46: 25 | Y46: 54 | AA46: 25 | AB46: участник
A47: 14838 | B47: Родной (татарский) язык для обучающихся – татар школ с русским языком обучения | C47: 53 | D47: Приволжский район | E47: Муниципальное бюджетное общеобразовательное учреждение "Гимназия № 90" Советского района г.Казани" | F47: 601090 | G47: Хафизова | H47: Жаннет | I47: Линаровна | J47: Ж | K47: 25.06.2010 | L47: 4 | M47: 4 | N47: 34 | O47: 36 | P47: призер | Q47: нет | R47: Насипова ЛейлаРаисовна | S47: Родной (татарский) язык для обучающихся – татар школ с русским языком обучения | T47: 20.10.2020 | U47: Муниципальное бюджетное общеобразовательное учреждение "Гимназия № 90" Советского района г.Казани" | V47: Советский район | W47: s53n14314 | X47: 25 | Y47: 54 | AA47: 25 | AB47: участник
A48: 14873 | B48: Родной (татарский) язык для обучающихся – татар школ с русским языком обучения | C48: 53 | D48: Приволжский район | E48: Муниципальное бюджетное общеобразовательное учреждение "Средняя общеобразовательная русско-татарская школа №103" Ново-Савиновского района г. Казани" | F48: 581103 | G48: Бикинеев | H48: Амир | I48: Айратович | J48: М | K48: 16.06.2010 | L48: 4 | M48: 4 | N48: 36 | O48: 30 | P48: победитель | Q48: нет | R48: Хайрутдинова АйгульХамитовна | S48: Родной (татарский) язык для обучающихся школ с родным языком обучения | T48: 20.10.2020 | U48: Муниципальное бюджетное общеобразовательное учреждение "Средняя общеобразовательная русско-татарская школа №103" Ново-Савиновского района г. Казани" | V48: Ново-Савиновский район | W48: s53n14281 | X48: 23 | Y48: 54 | AA48: 23 | AB48: участник
A49: 14846 | B49: Родной (татарский) язык для обучающихся – татар школ с русским языком обучения | C49: 53 | D49: Приволжский район | E49: Муниципальное автономное общеобразовательное учреждение "Лицей №121 имени Героя Советского Союза С.А.Ахтямова" Советского района г.Казани | F49: 601121 | G49: Исмагилов | H49: Амир | I49: Алмазович | J49: М | K49: 18.06.2010 | L49: 4 | M49: 4 | N49: 34 | O49: 36 | P49: победитель | Q49: нет | R49: Шигапова ЛюцияГосмановна | S49: Родной (татарский) язык для обучающихся – татар школ с русским языком обучения | T49: 20.10.2020 | U49: Муниципальное автономное общеобразовательное учреждение "Лицей №121 имени Героя Советского Союза С.А.Ахтямова" Советского района г.Казани | V49: Советский район | W49: s53n14306 | X49: 23 | Y49: 54 | AA49: 23 | AB49: участник
A50: 14835 | B50: Родной (татарский) язык для обучающихся – татар школ с русским языком обучения | C50: 53 | D50: Советский район | E50: Муниципальное бюджетное общеобразовательное учреждение "Средняя общеобразовательная школа № 174" Советского района г.Казани" | F50: 601174 | G50: Шахиева | H50: Айзиля | I50: Алмазовна | J50: Ж | K50: 06.10.2010 | L50: 4 | M50: 4 | N50: 34 | O50: 36 | P50: победитель | Q50: нет | R50: Гулькеева РазимяРахимулловна | S50: Родной (татарский) язык для обучающихся – татар школ с русским языком обучения | T50: 20.10.2020 | U50: Муниципальное бюджетное общеобразовательное учреждение "Средняя общеобразовательная школа № 174" Советского района г.Казани" | V50: Советский район | W50: s53n14317 | X50: 23 | Y50: 54 | AA50: 23 | AB50: участник
A51: 14840 | B51: Родной (татарский) язык для обучающихся – татар школ с русским языком обучения | C51: 53 | D51: Советский район | E51: Муниципальное бюджетное общеобразовательное учреждение "Средняя общеобразовательная русско-татарская школа № 161" Советского района г.Казани" | F51: 601161 | G51: Хасанов | H51: Зиннур | I51: Азатович | J51: М | K51: 22.12.2009 | L51: 4 | M51: 4 | N51: 34 | O51: 36 | P51: призер | Q51: нет | R51: Девятеева АнисаАнваровна | S51: Родной (татарский) язык для обучающихся – татар школ с русским языком обучения | T51: 20.10.2020 | U51: Муниципальное бюджетное общеобразовательное учреждение "Средняя общеобразовательная русско-татарская школа № 161" Советского района г.Казани" | V51: Советский район | W51: s53n14312 | X51: 21 | Y51: 54 | AA51: 21 | AB51: участник
A52: 14845 | B52: Родной (татарский) язык для обучающихся – татар школ с русским языком обучения | C52: 53 | D52: Приволжский район | E52: Муниципальное бюджетное общеобразовательное учреждение "Многопрофильная школа №181" Советского района г. Казани" | F52: 601181 | G52: Кадырова | H52: Адиля | I52: Айратовна | J52: Ж | K52: 11.02.2010 | L52: 4 | M52: 4 | N52: 34 | O52: 36 | P52: победитель | Q52: нет | R52: Насыбуллина АлсуИльдаровна | S52: Родной (татарский) язык для обучающихся – татар школ с русским языком обучения | T52: 20.10.2020 | U52: Муниципальное бюджетное общеобразовательное учреждение "Многопрофильная школа №181" Советского района г. Казани" | V52: Советский район | W52: s53n14307 | X52: 20 | Y52: 54 | AA52: 20 | AB52: участник
A53: 14877 | B53: Родной (татарский) язык для обучающихся – татар школ с русским языком обучения | C53: 53 | D53: Советский район | E53: Муниципальное автономное общеобразовательное учреждение "Гимназия №141" Советского района г.Казани | F53: 601141 | G53: Шайдуллина | H53: Амина | I53: Айратовна | J53: Ж | K53: 31.10.2010 | L53: 4 | M53: 4 | N53: 36 | O53: 36 | P53: победитель | Q53: нет | R53: Сунгатуллина РузиляФаизовна | S53: Родной (татарский) язык для обучающихся – татар школ с русским языком обучения | T53: 20.10.2020 | U53: Муниципальное автономное общеобразовательное учреждение "Гимназия №141" Советского района г.Казани | V53: Советский район | W53: s53n14277 | X53: 19 | Y53: 54 | AA53: 19 | AB53: участник
A54: 14854 | B54: Родной (татарский) язык для обучающихся – татар школ с русским языком обучения | C54: 53 | D54: Приволжский район | E54: Муниципальное бюджетное общеобразовательное учреждение "Лицей №83 - Центр образования" | F54: 591083 | G54: Аюпова | H54: Кадрия | I54: Ринатовна | J54: М | K54: 25.10.2010 | L54: 4 | M54: 4 | N54: 34 | O54: 36 | P54: победитель | Q54: нет | R54: Сафина ГульназВасиловна | S54: Родной (татарский) язык для обучающихся – татар школ с русским языком обучения | T54: 20.10.2020 | U54: Муниципальное бюджетное общеобразовательное учреждение "Лицей №83 - Центр образования" | V54: Приволжский район | W54: s53n14299 | X54: 15 | Y54: 54 | AA54: 15 | AB54: участник
A55: 14855 | B55: Родной (татарский) язык для обучающихся – татар школ с русским языком обучения | C55: 53 | D55: Советский район | E55: Муниципальное бюджетное общеобразовательное учреждение "Средняя общеобразовательная русско-татарская школа №103" Ново-Савиновского района г. Казани" | F55: 581103 | G55: Мифтахова | H55: Асылъяр | I55: Рушановна | J55: Ж | K55: 05.05.2010 | L55: 4 | M55: 4 | N55: 35 | O55: 30 | P55: призер | Q55: нет | R55: Хайрутдинова АйгульХамитовна | S55: Родной (татарский) язык для обучающихся школ с родным языком обучения | T55: 20.10.2020 | U55: Муниципальное бюджетное общеобразовательное учреждение "Средняя общеобразовательная русско-татарская школа №103" Ново-Савиновского района г. Казани" | V55: Ново-Савиновский район | W55: s53n14298 | X55: 14 | Y55: 54 | AA55: 14 | AB55: участник
A56: 14805 | B56: Родной (татарский) язык для обучающихся – татар школ с русским языком обучения | C56: 53 | D56: Советский район | E56: Муниципальное бюджетное общеобразовательное учреждение "Средняя общеобразовательная школа № 171 с углубленным изучением отдельных предметов" Советского района г.Казани | F56: 601171 | G56: Миннуллина | H56: Адиля | I56: Рифатовна | J56: Ж | K56: 20.08.2009 | L56: 5 | M56: 5 | N56: 42 | O56: 42 | P56: победитель | Q56: нет | R56: Ахметгалиева АлсуАсхадулловна | S56: Родной (татарский) язык для обучающихся – татар школ с русским языком обучения | T56: 20.10.2020 | U56: Муниципальное бюджетное общеобразовательное учреждение "Средняя общеобразовательная школа № 171 с углубленным изучением отдельных предметов" Советского района г.Казани | V56: Советский район | W56: s53n14340 | X56: 53 | Y56: 54 | AA56: 53 | AB56: победитель
A57: 14793 | B57: Родной (татарский) язык для обучающихся – татар школ с русским языком обучения | C57: 53 | D57: Советский район | E57: Муниципальное бюджетное общеобразовательное учреждение "Гимназия №175" Советского района г.Казани | F57: 601175 | G57: Мухетдинов | H57: Марсель | I57: Радисович | J57: М | K57: 18.09.0200 | L57: 5 | M57: 5 | N57: 42 | O57: 42 | P57: победитель | Q57: да | R57: Хакимова МадинаСагидулловна | S57: Родной (татарский) язык для обучающихся – татар школ с русским языком обучения | T57: 20.10.2020 | U57: Муниципальное бюджетное общеобразовательное учреждение "Гимназия №175" Советского района г.Казани | V57: Советский район | W57: s53n14352 | X57: 52 | Y57: 54 | AA57: 52 | AB57: призер
A58: 14774 | B58: Родной (татарский) язык для обучающихся – татар школ с русским языком обучения | C58: 53 | D58: Советский район | E58: Муниципальное автономное общеобразовательное учреждение "Гимназия №37" Авиастроительного района г.Казани" | F58: 541037 | G58: Шагиахметова | H58: Камила | I58: Ленаровна | J58: Ж | K58: 20.02.2009 | L58: 5 | M58: 5 | N58: 41 | O58: 42 | P58: победитель | Q58: нет | R58: Ахметшина ЗиляВагизовна | S58: Родной (татарский) язык для обучающихся – татар школ с русским языком обучения | T58: 20.10.2020 | U58: Муниципальное автономное общеобразовательное учреждение "Гимназия №37" Авиастроительного района г.Казани" | V58: Авиастроительный район | W58: s53n14369 | X58: 52 | Y58: 54 | AA58: 52 | AB58: призер
A59: 14770 | B59: Родной (татарский) язык для обучающихся – татар школ с русским языком обучения | C59: 53 | D59: Ново-Савиновский район | E59: Муниципальное автономное общеобразовательное учреждение "Гимназия №37" Авиастроительного района г.Казани" | F59: 541037 | G59: Ямбаева | H59: Асель | I59: Рафаэлевна | J59: Ж | K59: 14.11.2009 | L59: 5 | M59: 5 | N59: 41 | O59: 42 | P59: победитель | Q59: да | R59: Фахрутдинова АленаРишатовна | S59: Родной (татарский) язык для обучающихся – татар школ с русским языком обучения | T59: 20.10.2020 | U59: Муниципальное автономное общеобразовательное учреждение "Гимназия №37" Авиастроительного района г.Казани" | V59: Авиастроительный район | W59: s53n14373 | X59: 52 | Y59: 54 | AA59: =X59+Z59 -> 52 | AB59: призер
A60: 14743 | B60: Родной (татарский) язык для обучающихся – татар школ с русским языком обучения | C60: 53 | D60: Ново-Савиновский район | E60: Муниципальное бюджетное общеобразовательное учреждение "Гимназия №3" Вахитовского района г.Казани" | F60: 551003 | G60: Хасанова | H60: Эмилия | I60: Марселевна | J60: Ж | K60: 14.07.2009 | L60: 5 | M60: 5 | N60: 34 | O60: 42 | P60: победитель | Q60: да | R60: Сабирзянова РушанияИншатовна | S60: Родной (татарский) язык для обучающихся – татар школ с русским языком обучения | T60: 20.10.2020 | U60: Муниципальное бюджетное общеобразовательное учреждение "Гимназия №3" Вахитовского района г.Казани" | V60: Вахитовский район | W60: s53n14401 | X60: 51 | Y60: 54 | AA60: 51 | AB60: призер
A61: 14786 | B61: Родной (татарский) язык для обучающихся – татар школ с русским языком обучения | C61: 53 | D61: Приволжский район | E61: Муниципальное бюджетное общеобразовательное учреждение "Средняя общеобразовательная школа №98 (татарско-русская)" | F61: 551098 | G61: Калимуллин | H61: Динар | I61: Ильшатович | J61: М | K61: 04.06.2009 | L61: 5 | M61: 5 | N61: 41 | O61: 42 | P61: победитель | Q61: нет | R61: Игтисамова ЛандышИльгизаровна | S61: Родной (татарский) язык для обучающихся – татар школ с русским языком обучения | T61: 20.10.2020 | U61: Муниципальное бюджетное общеобразовательное учреждение "Средняя общеобразовательная школа №98 (татарско-русская)" | V61: Вахитовский район | W61: s53n14360 | X61: 50 | Y61: 54 | AA61: 50 | AB61: призер
A62: 14749 | B62: Родной (татарский) язык для обучающихся – татар школ с русским языком обучения | C62: 53 | D62: Советский район | E62: МБОУ "Политехнический лицей № 182" | F62: 561182 | G62: Хабриева | H62: Камилла | I62: Данияровна | J62: Ж | K62: 03.02.2009 | L62: 5 | M62: 5 | N62: 40 | O62: 42 | P62: победитель | Q62: нет | R62: Хайрутдинова ЛюзияНазифовна | S62: Родной (татарский) язык для обучающихся – татар школ с русским языком обучения | T62: 20.10.2020 | U62: МБОУ "Политехнический лицей № 182" | V62: Кировский район | W62: s53n14396 | X62: 51 | Y62: 54 | AA62: 49 | AB62: призер
A63: 14796 | B63: Родной (татарский) язык для обучающихся – татар школ с русским языком обучения | C63: 53 | D63: Советский район | E63: Муниципальное автономное общеобразовательное учреждение "Гимназия №19" | F63: 591019 | G63: Зигангараева | H63: Зифа | I63: Булатовна | J63: Ж | K63: 11.08.2009 | L63: 5 | M63: 5 | N63: 42 | O63: 42 | P63: победитель | Q63: да | R63: Зинатуллина ЧулпанХабировна | S63: Родной (татарский) язык для обучающихся – татар школ с русским языком обучения | T63: 20.10.2020 | U63: Муниципальное автономное общеобразовательное учреждение "Гимназия №19" | V63: Приволжский район | W63: s53n14349 | X63: 48 | Y63: 54 | AA63: 48 | AB63: призер
A64: 14790 | B64: Родной (татарский) язык для обучающихся – татар школ с русским языком обучения | C64: 53 | D64: Ново-Савиновский район | E64: Муниципальное автономное общеобразовательное учреждение "Гимназия №37" Авиастроительного района г.Казани" | F64: 541037 | G64: Бикбулатова | H64: Азалия | I64: Айнуровна | J64: Ж | K64: 21.04.2009 | L64: 5 | M64: 5 | N64: 41 | O64: 42 | P64: победитель | Q64: нет | R64: Ахметшина ЗиляВагизовна | S64: Родной (татарский) язык для обучающихся – татар школ с русским языком обучения | T64: 20.10.2020 | U64: Муниципальное автономное общеобразовательное учреждение "Гимназия №37" Авиастроительного района г.Казани" | V64: Авиастроительный район | W64: s53n14356 | X64: 48 | Y64: 54 | AA64: 48 | AB64: призер
A65: 14798 | B65: Родной (татарский) язык для обучающихся – татар школ с русским языком обучения | C65: 53 | D65: Советский район | E65: Муниципальное бюджетное общеобразовательное учреждение "Средняя общеобразовательная школа №69" | F65: 591069 | G65: Фахрутдинов | H65: Камиля | I65: Рамисовна | J65: Ж | K65: 31.10.2009 | L65: 5 | M65: 5 | N65: 42 | O65: 42 | P65: победитель | Q65: нет | R65: Борисова РиммаВладимировна | S65: Родной (татарский) язык для обучающихся – татар школ с русским языком обучения | T65: 20.10.2020 | U65: Муниципальное бюджетное общеобразовательное учреждение "Средняя общеобразовательная школа №69" | V65: Приволжский район | W65: s53n14346 | X65: 47 | Y65: 54 | AA65: 47 | AB65: призер
A66: 14767 | B66: Родной (татарский) язык для обучающихся – татар школ с русским языком обучения | C66: 53 | D66: Советский район | E66: Муниципальное бюджетное общеобразовательное учреждение "Гимназия №155 с татарским языком обучения" Ново-Савиновского района г. Казани" | F66: 583155 | G66: Галиева | H66: Камиля | I66: Рамилевна | J66: Ж | K66: 16.07.2009 | L66: 5 | M66: 5 | N66: 40 | O66: 42 | P66: победитель | Q66: нет | R66: Назипова ГульнараСабирзяновна | S66: Родной (татарский) язык для обучающихся – татар школ с русским языком обучения | T66: 20.10.2020 | U66: Муниципальное бюджетное общеобразовательное учреждение "Гимназия №155 с татарским языком обучения" Ново-Савиновского района г. Казани" | V66: Ново-Савиновский район | W66: s53n14376 | X66: 46 | Y66: 54 | AA66: 46 | AB66: призер
A67: 14832 | B67: Родной (татарский) язык для обучающихся – татар школ с русским языком обучения | C67: 53 | D67: Советский район | E67: Муниципальное бюджетное общеобразовательное учреждение "Средняя общеобразовательная школа №69" | F67: 591069 | G67: Альманова | H67: Лия | I67: Руслановна | J67: Ж | K67: 08.07.2009 | L67: 5 | M67: 5 | N67: 42 | O67: 42 | P67: победитель | Q67: нет | R67: Борисова РиммаВладимировна | S67: Родной (татарский) язык для обучающихся – татар школ с русским языком обучения | T67: 20.10.2020 | U67: Муниципальное бюджетное общеобразовательное учреждение "Средняя общеобразовательная школа №69" | V67: Приволжский район | W67: s53n14320 | X67: 45 | Y67: 54 | AA67: 45 | AB67: призер
A68: 14751 | B68: Родной (татарский) язык для обучающихся – татар школ с русским языком обучения | C68: 53 | D68: Советский район | E68: Муниципальное автономное общеобразовательное учреждение "Гимназия №37" Авиастроительного района г.Казани" | F68: 541037 | G68: Садыкова | H68: Азалия | I68: Ильдаровна | J68: Ж | K68: 28.09.2009 | L68: 5 | M68: 5 | N68: 40 | O68: 42 | P68: призер | Q68: нет | R68: Ахметшина ЗиляВагизовна | S68: Родной (татарский) язык для обучающихся – татар школ с русским языком обучения | T68: 20.10.2020 | U68: Муниципальное автономное общеобразовательное учреждение "Гимназия №37" Авиастроительного района г.Казани" | V68: Авиастроительный район | W68: s53n14394 | X68: 45 | Y68: 54 | AA68: =X68+Z68 -> 45 | AB68: призер
A69: 14801 | B69: Родной (татарский) язык для обучающихся – татар школ с русским языком обучения | C69: 53 | D69: Советский район | E69: Муниципальное бюджетное общеобразовательное учреждение "Средняя общеобразовательная школа № 169" Советского района г.Казани" | F69: 601169 | G69: Саликиева | H69: Диана | I69: Витальевна | J69: Ж | K69: 23.03.2009 | L69: 5 | M69: 5 | N69: 42 | O69: 42 | P69: победитель | Q69: нет | R69: Ахметзянова ИльвираШамилевна | S69: Родной (татарский) язык для обучающихся – татар школ с русским языком обучения | T69: 20.10.2020 | U69: Муниципальное бюджетное общеобразовательное учреждение "Средняя общеобразовательная школа № 169" Советского района г.Казани" | V69: Советский район | W69: s53n14344 | X69: 44 | Y69: 54 | AA69: =X69+Z69 -> 44 | AB69: призер
A70: 14809 | B70: Родной (татарский) язык для обучающихся – татар школ с русским языком обучения | C70: 53 | D70: Авиастроительный район | E70: Муниципальное бюджетное общеобразовательное учреждение "Гимназия №14" Авиастроительного района г.Казани" | F70: 541014 | G70: Ильязова | H70: Азалия | I70: Азатовна | J70: Ж | K70: 28.02.2009 | L70: 5 | M70: 5 | N70: 42 | O70: 42 | P70: победитель | Q70: нет | R70: Шайхутдинова ЗульфияАдгамовна | S70: Родной (татарский) язык для обучающихся – татар школ с русским языком обучения | T70: 20.10.2020 | U70: Муниципальное бюджетное общеобразовательное учреждение "Гимназия №14" Авиастроительного района г.Казани" | V70: Авиастроительный район | W70: s53n14336 | X70: 43 | Y70: 54 | AA70: 43 | AB70: призер
A71: 14771 | B71: Родной (татарский) язык для обучающихся – татар школ с русским языком обучения | C71: 53 | D71: Советский район | E71: Муниципальное автономное общеобразовательное учреждение "Гимназия №19" | F71: 591019 | G71: Шарифуллина | H71: Амина | I71: Ринатовна | J71: Ж | K71: 12.06.2009 | L71: 5 | M71: 5 | N71: 41 | O71: 42 | P71: призер | Q71: да | R71: Зинатуллина ЧулпанХабировна | S71: Родной (татарский) язык для обучающихся – татар школ с русским языком обучения | T71: 20.10.2020 | U71: Муниципальное автономное общеобразовательное учреждение "Гимназия №19" | V71: Приволжский район | W71: s53n14372 | X71: 42 | Y71: 54 | Z71: 1 | AA71: =X71+Z71 -> 43 | AB71: призер
A72: 14744 | B72: Родной (татарский) язык для обучающихся – татар школ с русским языком обучения | C72: 53 | D72: Приволжский район | E72: Муниципальное автономное общеобразовательное учреждение "Гимназия №37" Авиастроительного района г.Казани" | F72: 541037 | G72: Гайфуллина | H72: Диляра | I72: Марселевна | J72: Ж | K72: 06.09.2009 | L72: 5 | M72: 5 | N72: 39 | O72: 42 | P72: призер | Q72: да | R72: Ахметшина ЗиляВагизовна | S72: Родной (татарский) язык для обучающихся – татар школ с русским языком обучения | T72: 20.10.2020 | U72: Муниципальное автономное общеобразовательное учреждение "Гимназия №37" Авиастроительного района г.Казани" | V72: Авиастроительный район | W72: s53n14400 | X72: 43 | Y72: 54 | AA72: 43 | AB72: призер
A73: 14829 | B73: Родной (татарский) язык для обучающихся – татар школ с русским языком обучения | C73: 53 | D73: Приволжский район | E73: Муниципальное бюджетное общеобразовательное учреждение «Гимназия № 183» Советского района г.Казани | F73: 601183 | G73: Валеев | H73: Камиль | I73: Ядгарович | J73: М | K73: 05.10.2009 | L73: 5 | M73: 5 | N73: 42 | O73: 42 | P73: победитель | Q73: нет | R73: Ибрагимова ЛилияРашитовна | S73: Родной (татарский) язык для обучающихся – татар школ с русским языком обучения | T73: 20.10.2020 | U73: Муниципальное бюджетное общеобразовательное учреждение «Гимназия № 183» Советского района г.Казани | V73: Советский район | W73: s53n14322 | X73: 42 | Y73: 54 | AA73: 42 | AB73: призер
A74: 14750 | B74: Родной (татарский) язык для обучающихся – татар школ с русским языком обучения | C74: 53 | D74: Советский район | E74: Муниципальное бюджетное общеобразовательное учреждение "Средняя общеобразовательная школа № 171 с углубленным изучением отдельных предметов" Советского района г.Казани | F74: 601171 | G74: Салахутдинова | H74: Ралина | I74: Рамилевна | J74: Ж | K74: 05.02.2009 | L74: 5 | M74: 5 | N74: 40 | O74: 42 | P74: призер | Q74: нет | R74: Гумарова ГалинаАлександровна | S74: Родной (татарский) язык для обучающихся – татар школ с русским языком обучения | T74: 20.10.2020 | U74: Муниципальное бюджетное общеобразовательное учреждение "Средняя общеобразовательная школа № 171 с углубленным изучением отдельных предметов" Советского района г.Казани | V74: Советский район | W74: s53n14395 | X74: 42 | Y74: 54 | AA74: 42 | AB74: призер
A75: 14825 | B75: Родной (татарский) язык для обучающихся – татар школ с русским языком обучения | C75: 53 | D75: Вахитовский район | E75: Муниципальное бюджетное общеобразовательное учреждение "Гимназия №33" Авиастроительного района г.Казани" | F75: 541033 | G75: Гарипова | H75: Диля | I75: Ильфатовна | J75: Ж | K75: 26.10.2008 | L75: 5 | M75: 5 | N75: 42 | O75: 42 | P75: победитель | Q75: нет | R75: Шакирова РасулаГабделвалиевна | S75: Родной (татарский) язык для обучающихся – татар школ с русским языком обучения | T75: 20.10.2020 | U75: Муниципальное бюджетное общеобразовательное учреждение "Гимназия №33" Авиастроительного района г.Казани" | V75: Авиастроительный район | W75: s53n14326 | X75: 41 | Y75: 54 | AA75: 41 | AB75: участник
A76: 14772 | B76: Родной (татарский) язык для обучающихся – татар школ с русским языком обучения | C76: 53 | D76: Советский район | E76: Муниципальное бюджетное общеобразовательное учреждение "Гимназия №175" Советского района г.Казани | F76: 601175 | G76: Фаттахова | H76: Мадина | I76: Ильшатовна | J76: Ж | K76: 07.07.2009 | L76: 5 | M76: 5 | N76: 41 | O76: 42 | P76: призер | Q76: да | R76: Хакимова МадинаСагидулловна | S76: Родной (татарский) язык для обучающихся – татар школ с русским языком обучения | T76: 20.10.2020 | U76: Муниципальное бюджетное общеобразовательное учреждение "Гимназия №175" Советского района г.Казани | V76: Советский район | W76: s53n14371 | X76: 41 | Y76: 54 | AA76: =X76+Z76 -> 41 | AB76: участник
A77: 14768 | B77: Родной (татарский) язык для обучающихся – татар школ с русским языком обучения | C77: 53 | D77: Советский район | E77: Муниципальное бюджетное общеобразовательное учреждение "Лицей №83 - Центр образования" | F77: 591083 | G77: Гайнутдинов | H77: Тимерхан | I77: Алмазович | J77: М | K77: 08.03.2009 | L77: 5 | M77: 5 | N77: 40 | O77: 42 | P77: призер | Q77: нет | R77: Сафина ГульназВасиловна | S77: Родной (татарский) язык для обучающихся – татар школ с русским языком обучения | T77: 20.10.2020 | U77: Муниципальное бюджетное общеобразовательное учреждение "Лицей №83 - Центр образования" | V77: Приволжский район | W77: s53n14375 | X77: 41 | Y77: 54 | AA77: =X77+Z77 -> 41 | AB77: участник
A78: 14828 | B78: Родной (татарский) язык для обучающихся – татар школ с русским языком обучения | C78: 53 | D78: Приволжский район | E78: Муниципальное бюджетное общеобразовательное учреждение "Гимназия №179 - центр образования" Ново-Савиновского района г.Казани" | F78: 581179 | G78: Галимуллина | H78: Эльмира | I78: Ришатовна | J78: Ж | K78: 16.05.2009 | L78: 5 | M78: 5 | N78: 42 | O78: 42 | P78: победитель | Q78: нет | R78: Габдеева ФаридаРафаэлевна | S78: Родной (татарский) язык для обучающихся – татар школ с русским языком обучения | T78: 20.10.2020 | U78: Муниципальное бюджетное общеобразовательное учреждение "Гимназия №179 - центр образования" Ново-Савиновского района г.Казани" | V78: Ново-Савиновский район | W78: s53n14323 | X78: 40 | Y78: 54 | Z78: 0 | AA78: =X78+Z78 -> 40 | AB78: участник
A79: 14783 | B79: Родной (татарский) язык для обучающихся – татар школ с русским языком обучения | C79: 53 | D79: Советский район | E79: Муниципальное бюджетное общеобразовательное учреждение "Русско-татарская средняя общеобразовательная школа №129" | F79: 591129 | G79: Насыбуллина | H79: Камиля | I79: Маратовна | J79: Ж | K79: 29.03.2009 | L79: 5 | M79: 5 | N79: 41 | O79: 42 | P79: победитель | Q79: нет | R79: Габдрахманова ДинаГиматдиновна | S79: Родной (татарский) язык для обучающихся – татар школ с русским языком обучения | T79: 20.10.2020 | U79: Муниципальное бюджетное общеобразовательное учреждение "Русско-татарская средняя общеобразовательная школа №129" | V79: Приволжский район | W79: s53n14363 | X79: 40 | Y79: 54 | AA79: 40 | AB79: участник
A80: 14780 | B80: Родной (татарский) язык для обучающихся – татар школ с русским языком обучения | C80: 53 | D80: Ново-Савиновский район | E80: Муниципальное бюджетное общеобразовательное учреждение "Средняя общеобразовательная школа №167 с углубленным изучением отдельных предметов" Советского района г. Казани | F80: 601167 | G80: Махмутова | H80: Камиля | I80: Айратовна | J80: Ж | K80: 01.08.2009 | L80: 5 | M80: 5 | N80: 41 | O80: 42 | P80: призер | Q80: да | R80: Камалова ФаягульЗуфаровна | S80: Родной (татарский) язык для обучающихся – татар школ с русским языком обучения | T80: 20.10.2020 | U80: Муниципальное бюджетное общеобразовательное учреждение "Средняя общеобразовательная школа №167 с углубленным изучением отдельных предметов" Советского района г. Казани | V80: Советский район | W80: s53n14364 | X80: 40 | Y80: 54 | AA80: 40 | AB80: участник
A81: 14758 | B81: Родной (татарский) язык для обучающихся – татар школ с русским языком обучения | C81: 53 | D81: Авиастроительный район | E81: Муниципальное автономное общеобразовательное учреждение "Лицей №121 имени Героя Советского Союза С.А.Ахтямова" Советского района г.Казани | F81: 601121 | G81: Каримуллина | H81: Исламия | I81: Разиловна | J81: Ж | K81: 14.08.2009 | L81: 5 | M81: 5 | N81: 40 | O81: 42 | P81: победитель | Q81: нет | R81: Миннуллина АйгульИльдусовна | S81: Родной (татарский) язык для обучающихся – татар школ с русским языком обучения | T81: 20.10.2020 | U81: Муниципальное автономное общеобразовательное учреждение "Лицей №121 имени Героя Советского Союза С.А.Ахтямова" Советского района г.Казани | V81: Советский район | W81: s53n14386 | X81: 40 | Y81: 54 | AA81: =X81+Z81 -> 40 | AB81: участник
A82: 14745 | B82: Родной (татарский) язык для обучающихся – татар школ с русским языком обучения | C82: 53 | D82: Московский район | E82: Муниципальное бюджетное общеобразовательное учреждение "Гимназия № 8 -Центр образования" Советского района г. Казани" | F82: 601008 | G82: Шарафутдинов | H82: Шамиль | I82: Радикович | J82: М | K82: 28.12.2008 | L82: 5 | M82: 5 | N82: 40 | O82: 42 | P82: призер | Q82: нет | R82: Айзатуллова АльфияМунировна | S82: Родной (татарский) язык для обучающихся – татар школ с русским языком обучения | T82: 20.10.2020 | U82: Муниципальное бюджетное общеобразовательное учреждение "Гимназия № 8 -Центр образования" Советского района г. Казани" | V82: Советский район | W82: s53n14399 | X82: 40 | Y82: 54 | AA82: =X82+Z82 -> 40 | AB82: участник
A83: 14823 | B83: Родной (татарский) язык для обучающихся – татар школ с русским языком обучения | C83: 53 | D83: Авиастроительный район | E83: Муниципальное бюджетное общеобразовательное учреждение "Средняя общеобразовательная школа №73" | F83: 591073 | G83: Габделганеева | H83: Айсылу | I83: Маратовна | J83: Ж | K83: 21.07.2009 | L83: 5 | M83: 5 | N83: 42 | O83: 42 | P83: победитель | Q83: да | R83: Арсланова АнисаДаулиевна | S83: Родной (татарский) язык для обучающихся – татар школ с русским языком обучения | T83: 20.10.2020 | U83: Муниципальное бюджетное общеобразовательное учреждение "Средняя общеобразовательная школа №73" | V83: Приволжский район | W83: s53n14327 | X83: 39 | Y83: 54 | AA83: 39 | AB83: участник
A84: 14806 | B84: Родной (татарский) язык для обучающихся – татар школ с русским языком обучения | C84: 53 | D84: Советский район | E84: Муниципальное бюджетное общеобразовательное учреждение "Средняя общеобразовательная школа №73" | F84: 591073 | G84: Миннуллина | H84: Лилия | I84: Наилевна | J84: Ж | K84: 27.08.2009 | L84: 5 | M84: 5 | N84: 42 | O84: 42 | P84: победитель | Q84: нет | R84: Арсланова АнисаДаулиевна | S84: Родной (татарский) язык для обучающихся – татар школ с русским языком обучения | T84: 20.10.2020 | U84: Муниципальное бюджетное общеобразовательное учреждение "Средняя общеобразовательная школа №73" | V84: Приволжский район | W84: s53n14339 | X84: 39 | Y84: 54 | AA84: 39 | AB84: участник
A85: 14813 | B85: Родной (татарский) язык для обучающихся – татар школ с русским языком обучения | C85: 53 | D85: Вахитовский район | E85: Муниципальное автономное общеобразовательное учреждение "Лицей №146 "Ресурс" Ново-Савиновского района г. Казани" | F85: 581146 | G85: Закирова | H85: Амира | I85: Рафаэлевна | J85: Ж | K85: 13.01.2009 | L85: 5 | M85: 5 | N85: 42 | O85: 42 | P85: победитель | Q85: нет | R85: Агмалетдинова РозаНиколаевна | S85: Родной (татарский) язык для обучающихся – татар школ с русским языком обучения | T85: 20.10.2020 | U85: Муниципальное автономное общеобразовательное учреждение "Лицей №146 "Ресурс" Ново-Савиновского района г. Казани" | V85: Ново-Савиновский район | W85: s53n14333 | X85: 38 | Y85: 54 | AA85: 38 | AB85: участник
A86: 14792 | B86: Родной (татарский) язык для обучающихся – татар школ с русским языком обучения | C86: 53 | D86: Приволжский район | E86: Муниципальное бюджетное общеобразовательное учреждение "Средняя общеобразовательная русско-татарская школа №103" Ново-Савиновского района г. Казани" | F86: 581103 | G86: Валиуллина | H86: Камилла | I86: Ильназовна | J86: Ж | K86: 16.06.2009 | L86: 5 | M86: 5 | N86: 42 | O86: 33 | P86: победитель | Q86: да | R86: Хайрутдинова АйгульХамитовна | S86: Родной (татарский) язык для обучающихся школ с родным языком обучения | T86: 20.10.2020 | U86: Муниципальное бюджетное общеобразовательное учреждение "Средняя общеобразовательная русско-татарская школа №103" Ново-Савиновского района г. Казани" | V86: Ново-Савиновский район | W86: s53n14354 | X86: 38 | Y86: 54 | AA86: =X86+Z86 -> 38 | AB86: участник
A87: 14785 | B87: Родной (татарский) язык для обучающихся – татар школ с русским языком обучения | C87: 53 | D87: Советский район | E87: Муниципальное бюджетное общеобразовательное учреждение "Лицей №83 - Центр образования" | F87: 591083 | G87: Муртазин | H87: Мурат | I87: Шаукатович | J87: М | K87: 19.03.2009 | L87: 5 | M87: 5 | N87: 41 | O87: 42 | P87: призер | Q87: нет | R87: Сафина ГульназВасиловна | S87: Родной (татарский) язык для обучающихся – татар школ с русским языком обучения | T87: 20.10.2020 | U87: Муниципальное бюджетное общеобразовательное учреждение "Лицей №83 - Центр образования" | V87: Приволжский район | W87: s53n14361 | X87: 38 | Y87: 54 | AA87: =X87+Z87 -> 38 | AB87: участник
A88: 14784 | B88: Родной (татарский) язык для обучающихся – татар школ с русским языком обучения | C88: 53 | D88: Ново-Савиновский район | E88: Муниципальное бюджетное общеобразовательное учреждение "Лицей №83 - Центр образования" | F88: 591083 | G88: Насибуллина | H88: Марьян | I88: Ильшатовна | J88: Ж | K88: 07.05.2009 | L88: 5 | M88: 5 | N88: 41 | O88: 42 | P88: призер | Q88: нет | R88: Галиева АлсуИльгизовна | S88: Родной (татарский) язык для обучающихся – татар школ с русским языком обучения | T88: 20.10.2020 | U88: Муниципальное бюджетное общеобразовательное учреждение "Лицей №83 - Центр образования" | V88: Приволжский район | W88: s53n14362 | X88: 38 | Y88: 54 | AA88: 38 | AB88: участник
A89: 14773 | B89: Родной (татарский) язык для обучающихся – татар школ с русским языком обучения | C89: 53 | D89: Советский район | E89: Муниципальное бюджетное общеобразователье учреждение "Многопрофильный лицей №187" | F89: 601187 | G89: Шамсиев | H89: Карим | I89: Фирузович | J89: М | K89: 26.11.2009 | L89: 5 | M89: 5 | N89: 41 | O89: 42 | P89: призер | Q89: нет | R89: Нугманова ДилараРашитовна | S89: Родной (татарский) язык для обучающихся – татар школ с русским языком обучения | T89: 20.10.2020 | U89: Муниципальное бюджетное общеобразователье учреждение "Многопрофильный лицей №187" | V89: Советский район | W89: s53n14370 | X89: 37 | Y89: 54 | AA89: 37 | AB89: участник
A90: 14762 | B90: Родной (татарский) язык для обучающихся – татар школ с русским языком обучения | C90: 53 | D90: Советский район | E90: Муниципальное бюджетное общеобразовательное учреждение "Лицей №35 - образовательный центр "Галактика" Приволжского района города Казани" | F90: 591035 | G90: Гимадеева | H90: Гульназ | I90: Фанисовна | J90: Ж | K90: 12.03.2009 | L90: 5 | M90: 5 | N90: 40 | O90: 42 | P90: призер | Q90: нет | R90: Шаяхметова ВенераМиннебаевна | S90: Родной (татарский) язык для обучающихся – татар школ с русским языком обучения | T90: 20.10.2020 | U90: Муниципальное бюджетное общеобразовательное учреждение "Лицей №35 - образовательный центр "Галактика" Приволжского района города Казани" | V90: Приволжский район | W90: s53n14382 | X90: 37 | Y90: 54 | AA90: =X90+Z90 -> 37 | AB90: участник
A91: 14804 | B91: Родной (татарский) язык для обучающихся – татар школ с русским языком обучения | C91: 53 | D91: Кировский район | E91: Муниципальное бюджетное общеобразовательное учреждение "Лицей №35 - образовательный центр "Галактика" Приволжского района города Казани" | F91: 591035 | G91: Муртазина | H91: Саида | I91: Ниязовна | J91: Ж | K91: 21.12.2009 | L91: 5 | M91: 5 | N91: 42 | O91: 42 | P91: победитель | Q91: нет | R91: Гилязова ГульнараФаиловна | S91: Родной (татарский) язык для обучающихся – татар школ с русским языком обучения | T91: 20.10.2020 | U91: Муниципальное бюджетное общеобразовательное учреждение "Лицей №35 - образовательный центр "Галактика" Приволжского района города Казани" | V91: Приволжский район | W91: s53n14341 | X91: 36 | Y91: 54 | AA91: 36 | AB91: участник
A92: 14803 | B92: Родной (татарский) язык для обучающихся – татар школ с русским языком обучения | C92: 53 | D92: Советский район | E92: Муниципальное автономное общеобразовательное учреждение - "лицей-интернат № 2" Московского района города Казани" | F92: 573001 | G92: Мухаметов | H92: Керим | I92: Ильдарович | J92: М | K92: 18.10.2008 | L92: 5 | M92: 5 | N92: 42 | O92: 42 | P92: победитель | Q92: нет | R92: Каримова РузияГабдулловна | S92: Родной (татарский) язык для обучающихся – татар школ с русским языком обучения | T92: 20.10.2020 | U92: Муниципальное автономное общеобразовательное учреждение - "лицей-интернат № 2" Московского района города Казани" | V92: Московский район | W92: s53n14342 | X92: 36 | Y92: 54 | AA92: =X92+Z92 -> 36 | AB92: участник
A93: 14807 | B93: Родной (татарский) язык для обучающихся – татар школ с русским языком обучения | C93: 53 | D93: Московский район | E93: Муниципальное бюджетное общеобразовательное учреждение «Гимназия № 183» Советского района г.Казани | F93: 601183 | G93: Латыпова | H93: Зарина | I93: Ильнуровна | J93: Ж | K93: 03.07.2009 | L93: 5 | M93: 5 | N93: 42 | O93: 42 | P93: победитель | Q93: нет | R93: Ибрагимова ЛилияРашитовна | S93: Родной (татарский) язык для обучающихся – татар школ с русским языком обучения | T93: 20.10.2020 | U93: Муниципальное бюджетное общеобразовательное учреждение «Гимназия № 183» Советского района г.Казани | V93: Советский район | W93: s53n14338 | X93: 34 | Y93: 54 | AA93: 34 | AB93: участник
A94: 14789 | B94: Родной (татарский) язык для обучающихся – татар школ с русским языком обучения | C94: 53 | D94: Советский район | E94: Муниципальное бюджетное общеобразовательное учреждение "Гимназия №179 - центр образования" Ново-Савиновского района г.Казани" | F94: 581179 | G94: Валеева | H94: Малика | I94: Марселевна | J94: Ж | K94: 11.06.2009 | L94: 5 | M94: 5 | N94: 41 | O94: 42 | P94: призер | Q94: нет | R94: Габдеева ФаридаРафаэлевна | S94: Родной (татарский) язык для обучающихся – татар школ с русским языком обучения | T94: 20.10.2020 | U94: Муниципальное бюджетное общеобразовательное учреждение "Гимназия №179 - центр образования" Ново-Савиновского района г.Казани" | V94: Ново-Савиновский район | W94: s53n14357 | X94: 33 | Y94: 54 | Z94: 1 | AA94: =X94+Z94 -> 34 | AB94: участник
A95: 14776 | B95: Родной (татарский) язык для обучающихся – татар школ с русским языком обучения | C95: 53 | D95: Приволжский район | E95: МБОУ"Многопрофильный лицей №185" | F95: 601185 | G95: Рахматуллина | H95: Самира | I95: Рамисовна | J95: Ж | K95: 28.11.2009 | L95: 5 | M95: 5 | N95: 41 | O95: 42 | P95: победитель | Q95: нет | R95: Минемуллин РишатРашитович | S95: Родной (татарский) язык для обучающихся – татар школ с русским языком обучения | T95: 20.10.2020 | U95: МБОУ"Многопрофильный лицей №185" | V95: Советский район | W95: s53n14365 | X95: 34 | Y95: 54 | AA95: 34 | AB95: участник
A96: 14834 | B96: Родной (татарский) язык для обучающихся – татар школ с русским языком обучения | C96: 53 | D96: Советский район | E96: Муниципальное автономное общеобразовательное учреждение "Гимназия №141" Советского района г.Казани | F96: 601141 | G96: Абдрахманова | H96: Амина | I96: Ильнаровна | J96: Ж | K96: 27.01.2010 | L96: 5 | M96: 5 | N96: 42 | O96: 42 | P96: победитель | Q96: нет | R96: Салихзянова ИльмираЛукмановна | S96: Родной (татарский) язык для обучающихся – татар школ с русским языком обучения | T96: 20.10.2020 | U96: Муниципальное автономное общеобразовательное учреждение "Гимназия №141" Советского района г.Казани | V96: Советский район | W96: s53n14318 | X96: 33 | Y96: 54 | AA96: 33 | AB96: участник
A97: 14827 | B97: Родной (татарский) язык для обучающихся – татар школ с русским языком обучения | C97: 53 | D97: Советский район | E97: Муниципальное бюджетное общеобразовательное учреждение "Средняя общеобразовательная татарско-русская школа № 34 " Московского района г.Казани" | F97: 571034 | G97: Гарипова | H97: Алзира | I97: Рафиковна | J97: Ж | K97: 03.03.2009 | L97: 5 | M97: 5 | N97: 42 | O97: 42 | P97: победитель | Q97: нет | R97: Гимадеева НурияРашидовна | S97: Родной (татарский) язык для обучающихся – татар школ с русским языком обучения | T97: 20.10.2020 | U97: Муниципальное бюджетное общеобразовательное учреждение "Средняя общеобразовательная татарско-русская школа № 34 " Московского района г.Казани" | V97: Московский район | W97: s53n14324 | X97: 33 | Y97: 54 | AA97: =X97+Z97 -> 33 | AB97: участник
A98: 14757 | B98: Родной (татарский) язык для обучающихся – татар школ с русским языком обучения | C98: 53 | D98: Ново-Савиновский район | E98: Муниципальное автономное общеобразовательное учреждение "Лицей №146 "Ресурс" Ново-Савиновского района г. Казани" | F98: 581146 | G98: Кильдеева | H98: Адиля | I98: Мансуровна | J98: Ж | K98: 06.11.2009 | L98: 5 | M98: 5 | N98: 40 | O98: 42 | P98: призер | Q98: нет | R98: Агмалетдинова РозаНиколаевна | S98: Родной (татарский) язык для обучающихся – татар школ с русским языком обучения | T98: 20.10.2020 | U98: Муниципальное автономное общеобразовательное учреждение "Лицей №146 "Ресурс" Ново-Савиновского района г. Казани" | V98: Ново-Савиновский район | W98: s53n14387 | X98: 33 | Y98: 54 | AA98: 33 | AB98: участник
A99: 14755 | B99: Родной (татарский) язык для обучающихся – татар школ с русским языком обучения | C99: 53 | D99: Авиастроительный район | E99: Муниципальное бюджетное общеобразовательное учреждение "Многопрофильная полилингвальная гимназия №180" Советского района г. Казани" | F99: 601180 | G99: Мухаметзянова | H99: Элина | I99: Альбертовна | J99: Ж | K99: 23.08.2009 | L99: 5 | M99: 5 | N99: 40 | O99: 42 | P99: призер | Q99: нет | R99: Хафизова ГюзельРахмизяновна | S99: Родной (татарский) язык для обучающихся – татар школ с русским языком обучения | T99: 20.10.2020 | U99: Муниципальное бюджетное общеобразовательное учреждение "Многопрофильная полилингвальная гимназия №180" Советского района г. Казани" | V99: Советский район | W99: s53n14390 | X99: 33 | Y99: 54 | AA99: 33 | AB99: участник
A100: 14830 | B100: Родной (татарский) язык для обучающихся – татар школ с русским языком обучения | C100: 53 | D100: Советский район | E100: Муниципальное бюджетное общеобразователье учреждение "Многопрофильный лицей №187" | F100: 601187 | G100: Ахметов | H100: Ислам | I100: Илдарович | J100: М | K100: 16.06.2009 | L100: 5 | M100: 5 | N100: 42 | O100: 42 | P100: победитель | Q100: нет | R100: Бикмухаметова Лейля Зульфатовна | S100: Родной (татарский) язык для обучающихся – татар школ с русским языком обучения | T100: 20.10.2020 | U100: Муниципальное бюджетное общеобразователье учреждение "Многопрофильный лицей №187" | V100: Советский район | W100: s53n14321 | X100: 32 | Y100: 54 | AA100: 32 | AB100: участник
A101: 14826 | B101: Родной (татарский) язык для обучающихся – татар школ с русским языком обучения | C101: 53 | D101: Советский район | E101: Муниципальное бюджетное общеобразовательное учреждение "Лицей №83 - Центр образования" | F101: 591083 | G101: Гарипова | H101: Нурия | I101: Ильнуровна | J101: М | K101: 26.07.2009 | L101: 5 | M101: 5 | N101: 42 | O101: 42 | P101: победитель | Q101: нет | R101: Сафина ГульназВасиловна | S101: Родной (татарский) язык для обучающихся – татар школ с русским языком обучения | T101: 20.10.2020 | U101: Муниципальное бюджетное общеобразовательное учреждение "Лицей №83 - Центр образования" | V101: Приволжский район | W101: s53n14325 | X101: 32 | Y101: 54 | AA101: 32 | AB101: участник
A102: 14822 | B102: Родной (татарский) язык для обучающихся – татар школ с русским языком обучения | C102: 53 | D102: Советский район | E102: Муниципальное бюджетное общеобразовательное учреждение "Многопрофильная полилингвальная гимназия №180" Советского района г. Казани" | F102: 601180 | G102: Гарипова | H102: Амина | I102: Ильнуровна | J102: Ж | K102: 22.01.2009 | L102: 5 | M102: 5 | N102: 42 | O102: 42 | P102: победитель | Q102: нет | R102: Хафизова ГюзельРахмизяновна | S102: Родной (татарский) язык для обучающихся – татар школ с русским языком обучения | T102: 20.10.2020 | U102: Муниципальное бюджетное общеобразовательное учреждение "Многопрофильная полилингвальная гимназия №180" Советского района г. Казани" | V102: Советский район | W102: s53n14328 | X102: 32 | Y102: 54 | AA102: 32 | AB102: участник
A103: 14800 | B103: Родной (татарский) язык для обучающихся – татар школ с русским языком обучения | C103: 53 | D103: Приволжский район | E103: Муниципальное бюджетное общеобразовательное учреждение "Средняя общеобразовательная школа № 174" Советского района г.Казани" | F103: 601174 | G103: Сиразетдинова | H103: Самира | I103: Зуфаровна | J103: Ж | K103: 17.06.2009 | L103: 5 | M103: 5 | N103: 42 | O103: 42 | P103: победитель | Q103: нет | R103: Сафиуллина ГульфияРауфовна | S103: Родной (татарский) язык для обучающихся – татар школ с русским языком обучения | T103: 20.10.2020 | U103: Муниципальное бюджетное общеобразовательное учреждение "Средняя общеобразовательная школа № 174" Советского района г.Казани" | V103: Советский район | W103: s53n14345 | X103: 32 | Y103: 54 | AA103: 32 | AB103: участник
A104: 14775 | B104: Родной (татарский) язык для обучающихся – татар школ с русским языком обучения | C104: 53 | D104: Авиастроительный район | E104: Муниципальное бюджетное общеобразовательное учреждение "Гимназия № 8 -Центр образования" Советского района г. Казани" | F104: 601008 | G104: Хакимуллина | H104: Азиза | I104: Рустемовна | J104: Ж | K104: 08.09.2009 | L104: 5 | M104: 5 | N104: 41 | O104: 42 | P104: победитель | Q104: нет | R104: Айзатуллова АльфияМунировна | S104: Родной (татарский) язык для обучающихся – татар школ с русским языком обучения | T104: 20.10.2020 | U104: Муниципальное бюджетное общеобразовательное учреждение "Гимназия № 8 -Центр образования" Советского района г. Казани" | V104: Советский район | W104: s53n14368 | X104: 32 | Y104: 54 | AA104: 32 | AB104: участник
A105: 14263 | B105: Родной (татарский) язык для обучающихся – татар школ с русским языком обучения | C105: 53 | D105: Советский район | E105: Муниципальное автономное общеобразовательное учреждение Средняя общеобразовательная школа-интернат "Специализированный олимпиадно-научный центр "СОлНЦе" | F105: 551015 | G105: Шакиров | H105: Искандер | I105: Айдарович | J105: М | K105: 06.03.2009 | L105: 5 | M105: 5 | N105: 39 | P105: победитель | Q105: нет | R105: Гараева Лейсян Фаритовна | S105: Родной (татарский) язык для обучающихся – татар школ с русским языком обучения | T105: 20.10.2020 | U105: Муниципальное автономное общеобразовательное учреждение Средняя общеобразовательная школа-интернат "Специализированный олимпиадно-научный центр "СОлНЦе" | V105: Вахитовский район | W105: s53n16715 | X105: 32 | Y105: 54 | AA105: 32 | AB105: участник
A106: 14821 | B106: Родной (татарский) язык для обучающихся – татар школ с русским языком обучения | C106: 53 | D106: Московский район | E106: Муниципальное бюджетное общеобразовательное учреждение "Многопрофильная полилингвальная гимназия №180" Советского района г. Казани" | F106: 601180 | G106: Гарифуллина | H106: Мадина | I106: Булатовна | J106: Ж | K106: 30.04.2009 | L106: 5 | M106: 5 | N106: 42 | O106: 42 | P106: победитель | Q106: нет | R106: Назипова ЭльвинаРифатовна | S106: Родной (татарский) язык для обучающихся – татар школ с русским языком обучения | T106: 20.10.2020 | U106: Муниципальное бюджетное общеобразовательное учреждение "Многопрофильная полилингвальная гимназия №180" Советского района г. Казани" | V106: Советский район | W106: s53n14329 | X106: 31 | Y106: 54 | AA106: 31 | AB106: участник
A107: 14819 | B107: Родной (татарский) язык для обучающихся – татар школ с русским языком обучения | C107: 53 | D107: Советский район | E107: Муниципальное автономное общеобразовательное учреждение "Гимназия №141" Советского района г.Казани | F107: 601141 | G107: Гилязова | H107: Амина | I107: Айратовна | J107: Ж | K107: 01.05.2009 | L107: 5 | M107: 5 | N107: 42 | O107: 42 | P107: победитель | Q107: нет | R107: Салихзянова ИльмираЛукмановна | S107: Родной (татарский) язык для обучающихся – татар школ с русским языком обучения | T107: 20.10.2020 | U107: Муниципальное автономное общеобразовательное учреждение "Гимназия №141" Советского района г.Казани | V107: Советский район | W107: s53n14331 | X107: 31 | Y107: 54 | AA107: 31 | AB107: участник
A108: 14766 | B108: Родной (татарский) язык для обучающихся – татар школ с русским языком обучения | C108: 53 | D108: Авиастроительный район | E108: Муниципальное автономное общеобразовательное учреждение "Гимназия № 139" | F108: 591139 | G108: Галимова | H108: Амина | I108: Ильшатовна | J108: Ж | K108: 13.12.2008 | L108: 5 | M108: 5 | N108: 40 | O108: 42 | P108: победитель | Q108: нет | R108: Касымова ГульназРишатовна | S108: Родной (татарский) язык для обучающихся – татар школ с русским языком обучения | T108: 20.10.2020 | U108: Муниципальное автономное общеобразовательное учреждение "Гимназия № 139" | V108: Приволжский район | W108: s53n14377 | X108: 31 | Y108: 54 | AA108: 31 | AB108: участник
A109: 14820 | B109: Родной (татарский) язык для обучающихся – татар школ с русским языком обучения | C109: 53 | D109: Приволжский район | E109: Муниципальное бюджетное общеобразовательное учреждение "Средняя общеобразовательная школа № 171 с углубленным изучением отдельных предметов" Советского района г.Казани | F109: 601171 | G109: Гильмутдинова | H109: Малика | I109: Ильфаровна | J109: Ж | K109: 07.06.2009 | L109: 5 | M109: 5 | N109: 42 | O109: 42 | P109: победитель | Q109: нет | R109: Ахметгалиева АлсуАсхадулловна | S109: Родной (татарский) язык для обучающихся – татар школ с русским языком обучения | T109: 20.10.2020 | U109: Муниципальное бюджетное общеобразовательное учреждение "Средняя общеобразовательная школа № 171 с углубленным изучением отдельных предметов" Советского района г.Казани | V109: Советский район | W109: s53n14330 | X109: 30 | Y109: 54 | AA109: 30 | AB109: участник
A110: 14764 | B110: Родной (татарский) язык для обучающихся – татар школ с русским языком обучения | C110: 53 | D110: Авиастроительный район | E110: Муниципальное бюджетное общеобразовательное учреждение "Гимназия №175" Советского района г.Казани | F110: 601175 | G110: Гафиятуллин | H110: Булат | I110: Наилевич | J110: М | K110: 04.06.2009 | L110: 5 | M110: 5 | N110: 40 | O110: 42 | P110: призер | Q110: нет | R110: Хакимова МадинаСагидулловна | S110: Родной (татарский) язык для обучающихся – татар школ с русским языком обучения | T110: 20.10.2020 | U110: Муниципальное бюджетное общеобразовательное учреждение "Гимназия №175" Советского района г.Казани | V110: Советский район | W110: s53n14380 | X110: 30 | Y110: 54 | AA110: 30 | AB110: участник
A111: 14788 | B111: Родной (татарский) язык для обучающихся – татар школ с русским языком обучения | C111: 53 | D111: Ново-Савиновский район | E111: Муниципальное автономное общеобразовательное учреждение "Гимназия №141" Советского района г.Казани | F111: 601141 | G111: Даминова | H111: Аниса | I111: Расимовна | J111: Ж | K111: 12.03.2009 | L111: 5 | M111: 5 | N111: 41 | O111: 42 | P111: призер | Q111: нет | R111: Салихзянова ИльмираЛукмановна | S111: Родной (татарский) язык для обучающихся – татар школ с русским языком обучения | T111: 20.10.2020 | U111: Муниципальное автономное общеобразовательное учреждение "Гимназия №141" Советского района г.Казани | V111: Советский район | W111: s53n14358 | X111: 29 | Y111: 54 | AA111: =X111+Z111 -> 29 | AB111: участник
A112: 14787 | B112: Родной (татарский) язык для обучающихся – татар школ с русским языком обучения | C112: 53 | D112: Приволжский район | E112: Муниципальное бюджетное общеобразовательное учреждение "Средняя общеобразовательная школа № 171 с углубленным изучением отдельных предметов" Советского района г.Казани | F112: 601171 | G112: Залялиева | H112: Замира | I112: Зуфаровна | J112: Ж | K112: 25.09.2009 | L112: 5 | M112: 5 | N112: 41 | O112: 42 | P112: призер | Q112: нет | R112: Ахметгалиева АлсуАсхадулловна | S112: Родной (татарский) язык для обучающихся – татар школ с русским языком обучения | T112: 20.10.2020 | U112: Муниципальное бюджетное общеобразовательное учреждение "Средняя общеобразовательная школа № 171 с углубленным изучением отдельных предметов" Советского района г.Казани | V112: Советский район | W112: s53n14359 | X112: 29 | Y112: 54 | AA112: =X112+Z112 -> 29 | AB112: участник
A113: 14791 | B113: Родной (татарский) язык для обучающихся – татар школ с русским языком обучения | C113: 53 | D113: Советский район | E113: Муниципальное автономное общеобразовательное учреждение "Гимназия №141" Советского района г.Казани | F113: 601141 | G113: Ахмадуллин | H113: Инсаф | I113: Рамисович | J113: М | K113: 20.03.2009 | L113: 5 | M113: 5 | N113: 41 | O113: 42 | P113: призер | Q113: нет | R113: Салихзянова ИльмираЛукмановна | S113: Родной (татарский) язык для обучающихся – татар школ с русским языком обучения | T113: 20.10.2020 | U113: Муниципальное автономное общеобразовательное учреждение "Гимназия №141" Советского района г.Казани | V113: Советский район | W113: s53n14355 | X113: 28 | Y113: 54 | AA113: 28 | AB113: участник
A114: 14754 | B114: Родной (татарский) язык для обучающихся – татар школ с русским языком обучения | C114: 53 | D114: Приволжский район | E114: Муниципальное бюджетное общеобразовательное учреждение "Средняя общеобразовательная школа № 171 с углубленным изучением отдельных предметов" Советского района г.Казани | F114: 601171 | G114: Насыров | H114: Тамерлан | I114: Анварович | J114: М | K114: 19.06.2009 | L114: 5 | M114: 5 | N114: 40 | O114: 42 | P114: призер | Q114: нет | R114: Ахметгалиева АлсуАсхадулловна | S114: Родной (татарский) язык для обучающихся – татар школ с русским языком обучения | T114: 20.10.2020 | U114: Муниципальное бюджетное общеобразовательное учреждение "Средняя общеобразовательная школа № 171 с углубленным изучением отдельных предметов" Советского района г.Казани | V114: Советский район | W114: s53n14391 | X114: 28 | Y114: 54 | AA114: =X114+Z114 -> 28 | AB114: участник
A115: 14742 | B115: Родной (татарский) язык для обучающихся – татар школ с русским языком обучения | C115: 53 | D115: Приволжский район | E115: Муниципальное бюджетное общеобразовательное учреждение "Гимназия№52" | F115: 591052 | G115: Шакиров | H115: Самир | I115: Одилович | J115: м | K115: 2009-02-03 | L115: 5 | M115: 5 | Q115: да | R115: Гайсарова Нурия Илнуровна | U115: МБОУ "Гимназия № 52" | V115: Приволжский район | W115: s53n14406 | X115: 28 | Y115: 54 | AA115: =X115+Z115 -> 28 | AB115: участник
A116: 14759 | B116: Родной (татарский) язык для обучающихся – татар школ с русским языком обучения | C116: 53 | D116: Приволжский район | E116: Муниципальное бюджетное общеобразовательное учреждение "Средняя общеобразовательная татарско-русская школа № 80 с углубленным изучением отдельных предметов" | F116: 551080 | G116: Ибрагимов | H116: Руслан | I116: Тимурович | J116: М | K116: 01.09.2009 | L116: 5 | M116: 5 | N116: 40 | O116: 42 | P116: победитель | Q116: нет | R116: Сабирова ЛяйляГумеровна | S116: Родной (татарский) язык для обучающихся – татар школ с русским языком обучения | T116: 20.10.2020 | U116: Муниципальное бюджетное общеобразовательное учреждение "Средняя общеобразовательная татарско-русская школа № 80 с углубленным изучением отдельных предметов" | V116: Вахитовский район | W116: s53n14384 | X116: 27 | Y116: 54 | AA116: 27 | AB116: участник
A117: 14794 | B117: Родной (татарский) язык для обучающихся – татар школ с русским языком обучения | C117: 53 | D117: Ново-Савиновский район | E117: Муниципальное автономное общеобразовательное учреждение "Лицей №121 имени Героя Советского Союза С.А.Ахтямова" Советского района г.Казани | F117: 601121 | G117: Яркаев | H117: Ирхан | I117: Эльнарович | J117: М | K117: 23.08.2009 | L117: 5 | M117: 5 | N117: 42 | O117: 42 | P117: победитель | Q117: нет | R117: Валиуллина РамзияХашимовна | S117: Родной (татарский) язык для обучающихся – татар школ с русским языком обучения | T117: 20.10.2020 | U117: Муниципальное автономное общеобразовательное учреждение "Лицей №121 имени Героя Советского Союза С.А.Ахтямова" Советского района г.Казани | V117: Советский район | W117: s53n14351 | X117: 26 | Y117: 54 | AA117: 26 | AB117: участник
A118: 14746 | B118: Родной (татарский) язык для обучающихся – татар школ с русским языком обучения | C118: 53 | D118: Ново-Савиновский район | E118: МБОУ"Многопрофильный лицей №185" | F118: 601185 | G118: Шарафеева | H118: Эсмира | I118: Ильнуровна | J118: Ж | K118: 19.04.2009 | L118: 5 | M118: 5 | N118: 40 | O118: 42 | P118: призер | Q118: нет | R118: Минемуллин РишатРашитович | S118: Родной (татарский) язык для обучающихся – татар школ с русским языком обучения | T118: 20.10.2020 | U118: МБОУ"Многопрофильный лицей №185" | V118: Советский район | W118: s53n14398 | X118: 26 | Y118: 54 | AA118: =X118+Z118 -> 26 | AB118: участник
A119: 14808 | B119: Родной (татарский) язык для обучающихся – татар школ с русским языком обучения | C119: 53 | D119: Авиастроительный район | E119: Муниципальное автономное общеобразовательное учреждение "Лицей №121 имени Героя Советского Союза С.А.Ахтямова" Советского района г.Казани | F119: 601121 | G119: Куляев | H119: Амирхан | I119: Азатович | J119: М | K119: 20.09.2009 | L119: 5 | M119: 5 | N119: 42 | O119: 42 | P119: победитель | Q119: нет | R119: Валиуллина РамзияХашимовна | S119: Родной (татарский) язык для обучающихся – татар школ с русским языком обучения | T119: 20.10.2020 | U119: Муниципальное автономное общеобразовательное учреждение "Лицей №121 имени Героя Советского Союза С.А.Ахтямова" Советского района г.Казани | V119: Советский район | W119: s53n14337 | X119: 25 | Y119: 54 | AA119: 25 | AB119: участник
A120: 14797 | B120: Родной (татарский) язык для обучающихся – татар школ с русским языком обучения | C120: 53 | D120: Приволжский район | E120: Муниципальное бюджетное общеобразовательное учреждение "Гимназия № 125" Советского района г.Казани" | F120: 601125 | G120: Хайрисламова | H120: Азалия | I120: Альфритовна | J120: Ж | K120: 22.03.2009 | L120: 5 | M120: 5 | N120: 42 | O120: 42 | P120: победитель | Q120: нет | R120: Шакирова РезедаНурисламовна | S120: Родной (татарский) язык для обучающихся – татар школ с русским языком обучения | T120: 20.10.2020 | U120: Муниципальное бюджетное общеобразовательное учреждение "Гимназия № 125" Советского района г.Казани" | V120: Советский район | W120: s53n14347 | X120: 25 | Y120: 54 | AA120: =X120+Z120 -> 25 | AB120: участник
A121: 14763 | B121: Родной (татарский) язык для обучающихся – татар школ с русским языком обучения | C121: 53 | D121: Советский район | E121: Муниципальное бюджетное общеобразовательное учреждение "Многопрофильная полилингвальная гимназия №180" Советского района г. Казани" | F121: 601180 | G121: Гаффарова | H121: Дина | I121: Ильгамовна | J121: Ж | K121: 31.12.2008 | L121: 5 | M121: 5 | N121: 40 | O121: 42 | P121: призер | Q121: нет | R121: Назипова ЭльвинаРифатовна | S121: Родной (татарский) язык для обучающихся – татар школ с русским языком обучения | T121: 20.10.2020 | U121: Муниципальное бюджетное общеобразовательное учреждение "Многопрофильная полилингвальная гимназия №180" Советского района г. Казани" | V121: Советский район | W121: s53n14381 | X121: 25 | Y121: 54 | AA121: 25 | AB121: участник
A122: 14747 | B122: Родной (татарский) язык для обучающихся – татар школ с русским языком обучения | C122: 53 | D122: Ново-Савиновский район | E122: Муниципальное бюджетное общеобразовательное учреждение "Лицей №177" Ново-Савиновского района г. Казани" | F122: 581177 | G122: Шагивалеева | H122: Адиля | I122: Альбертовна | J122: Ж | K122: 15.05.2009 | L122: 5 | M122: 5 | N122: 40 | O122: 42 | P122: призер | Q122: нет | R122: Исхакова ЛилияШаукатовна | S122: Родной (татарский) язык для обучающихся – татар школ с русским языком обучения | T122: 20.10.2020 | U122: Муниципальное бюджетное общеобразовательное учреждение "Лицей №177" Ново-Савиновского района г. Казани" | V122: Ново-Савиновский район | W122: s53n14397 | X122: 22 | Y122: 54 | AA122: 22 | AB122: участник
A123: 14761 | B123: Родной (татарский) язык для обучающихся – татар школ с русским языком обучения | C123: 53 | D123: Приволжский район | E123: Муниципальное бюджетное общеобразовательное учреждение "Многопрофильная полилингвальная гимназия №180" Советского района г. Казани" | F123: 601180 | G123: Давлетшина | H123: Раиля | I123: Илдусовна | J123: Ж | K123: 12.07.2009 | L123: 5 | M123: 5 | N123: 40 | O123: 42 | P123: призер | Q123: нет | R123: Назипова ЭльвинаРифатовна | S123: Родной (татарский) язык для обучающихся – татар школ с русским языком обучения | T123: 20.10.2020 | U123: Муниципальное бюджетное общеобразовательное учреждение "Многопрофильная полилингвальная гимназия №180" Советского района г. Казани" | V123: Советский район | W123: s53n14383 | X123: 21 | Y123: 54 | AA123: 21 | AB123: участник
A124: 14756 | B124: Родной (татарский) язык для обучающихся – татар школ с русским языком обучения | C124: 53 | D124: Ново-Савиновский район | E124: Муниципальное бюджетное общеобразовательное учреждение "Гимназия №6" | F124: 591006 | G124: Миндубаев | H124: Расул | I124: Ленарович | J124: М | K124: 15.08.2009 | L124: 5 | M124: 5 | N124: 40 | O124: 42 | P124: победитель | Q124: нет | R124: Низамиева ЛилияНазимовна | S124: Родной (татарский) язык для обучающихся – татар школ с русским языком обучения | T124: 20.10.2020 | U124: Муниципальное бюджетное общеобразовательное учреждение "Гимназия №6" | V124: Приволжский район | W124: s53n14389 | X124: 21 | Y124: 54 | AA124: 21 | AB124: участник
A125: 14816 | B125: Родной (татарский) язык для обучающихся – татар школ с русским языком обучения | C125: 53 | D125: Приволжский район | E125: Муниципальное бюджетное общеобразователье учреждение "Многопрофильный лицей №187" | F125: 601187 | G125: Закиров | H125: Аяз | I125: Айратович | J125: М | K125: 10.11.2009 | L125: 5 | M125: 5 | N125: 42 | O125: 42 | P125: победитель | Q125: нет | R125: Бикмухаметова ЛейляЗульфатовна | S125: Родной (татарский) язык для обучающихся – татар школ с русским языком обучения | T125: 20.10.2020 | U125: Муниципальное бюджетное общеобразователье учреждение "Многопрофильный лицей №187" | V125: Советский район | W125: s53n14332 | X125: 19 | Y125: 54 | AA125: 19 | AB125: участник
A126: 14810 | B126: Родной (татарский) язык для обучающихся – татар школ с русским языком обучения | C126: 53 | D126: Приволжский район | E126: Муниципальное бюджетное общеобразовательное учреждение "Средняя общеобразовательная школа №167 с углубленным изучением отдельных предметов" Советского района г. Казани | F126: 601167 | G126: Зинятуллина | H126: Зарина | I126: Рамелевна | J126: Ж | K126: 15.05.2009 | L126: 5 | M126: 5 | N126: 42 | O126: 42 | P126: победитель | Q126: нет | R126: Ибраева ЛейсанРасиховна | S126: Родной (татарский) язык для обучающихся – татар школ с русским языком обучения | T126: 20.10.2020 | U126: Муниципальное бюджетное общеобразовательное учреждение "Средняя общеобразовательная школа №167 с углубленным изучением отдельных предметов" Советского района г. Казани | V126: Советский район | W126: s53n14334 | X126: 19 | Y126: 54 | AA126: 19 | AB126: участник
A127: 14833 | B127: Родной (татарский) язык для обучающихся – татар школ с русским языком обучения | C127: 53 | D127: Приволжский район | E127: Муниципальное бюджетное общеобразовательное учреждение "Средняя общеобразовательная школа №167 с углубленным изучением отдельных предметов" Советского района г. Казани | F127: 601167 | G127: Аллямов | H127: Данияр | I127: Рамисович | J127: М | K127: 25.02.2009 | L127: 5 | M127: 5 | N127: 42 | O127: 42 | P127: победитель | Q127: нет | R127: Хальфина ВенераРафкатовна | S127: Родной (татарский) язык для обучающихся – татар школ с русским языком обучения | T127: 20.10.2020 | U127: Муниципальное бюджетное общеобразовательное учреждение "Средняя общеобразовательная школа №167 с углубленным изучением отдельных предметов" Советского района г. Казани | V127: Советский район | W127: s53n14319 | X127: 17 | Y127: 54 | AA127: 17 | AB127: участник
A128: 14765 | B128: Родной (татарский) язык для обучающихся – татар школ с русским языком обучения | C128: 53 | D128: Московский район | E128: Муниципальное бюджетное общеобразовательное учреждение "Гимназия №14" Авиастроительного района г.Казани" | F128: 541014 | G128: Галяутдинов | H128: Инсаф | I128: Ленарович | J128: М | K128: 04.03.2009 | L128: 5 | M128: 5 | N128: 40 | O128: 42 | P128: призер | Q128: нет | R128: Шайхутдинова ЗульфияАдгамовна | S128: Родной (татарский) язык для обучающихся – татар школ с русским языком обучения | T128: 20.10.2020 | U128: Муниципальное бюджетное общеобразовательное учреждение "Гимназия №14" Авиастроительного района г.Казани" | V128: Авиастроительный район | W128: s53n14378 | X128: 17 | Y128: 54 | AA128: 17 | AB128: участник
A129: 14753 | B129: Родной (татарский) язык для обучающихся – татар школ с русским языком обучения | C129: 53 | D129: Вахитовский район | E129: Муниципальное бюджетное общеобразовательное учреждение "Средняя общеобразовательная школа с углубленным изучением отдельных предметов №62" Авиастроительного района г.Казани" | F129: 541062 | G129: Сабиров | H129: Вильдан | I129: Фанисович | J129: М | K129: 03.09.2009 | L129: 5 | M129: 5 | N129: 40 | O129: 42 | P129: победитель | Q129: нет | R129: Габдуллина ФлераАфызаловна | S129: Родной (татарский) язык для обучающихся – татар школ с русским языком обучения | T129: 20.10.2020 | U129: Муниципальное бюджетное общеобразовательное учреждение "Средняя общеобразовательная школа с углубленным изучением отдельных предметов №62" Авиастроительного района г.Казани" | V129: Авиастроительный район | W129: s53n14393 | X129: 15 | Y129: 54 | AA129: 15 | AB129: участник
A130: 14769 | B130: Родной (татарский) язык для обучающихся – татар школ с русским языком обучения | C130: 53 | D130: Вахитовский район | E130: Муниципальное бюджетное общеобразовательное учреждение "Татарско-русская средняя общеобразовательная школа №68 с углубленным изучением отдельных предметов" | F130: 593068 | G130: Бахриддинова | H130: Асал | I130: Асриддиновна | J130: Ж | K130: 14.11.2009 | L130: 5 | M130: 5 | N130: 40 | O130: 42 | P130: победитель | Q130: нет | R130: Назмутдинова ГульназТахировна | S130: Родной (татарский) язык для обучающихся – татар школ с русским языком обучения | T130: 20.10.2020 | U130: Муниципальное бюджетное общеобразовательное учреждение "Татарско-русская средняя общеобразовательная школа №68 с углубленным изучением отдельных предметов" | V130: Приволжский район | W130: s53n14374 | X130: 3 | Y130: 54 | AA130: 3 | AB130: участник
A131: 14735 | B131: Родной (татарский) язык для обучающихся – татар школ с русским языком обучения | C131: 53 | D131: Авиастроительный район | E131: Муниципальное бюджетное общеобразовательное учреждение "Лицей №26 им. М.Джалиля" Авиастроительного района г.Казани" | F131: 541026 | G131: Галявиева | H131: Алина | I131: Рамилевна | J131: Ж | K131: 29.09.2008 | L131: 6 | M131: 6 | N131: 42 | O131: 42 | P131: победитель | Q131: нет | R131: Камалеева ЗолфияМиннуровна | S131: Родной (татарский) язык для обучающихся – татар школ с русским языком обучения | T131: 20.10.2020 | U131: Муниципальное бюджетное общеобразовательное учреждение "Лицей №26 им. М.Джалиля" Авиастроительного района г.Казани" | V131: Авиастроительный район | W131: s53n14413 | X131: 55 | Y131: 56 | AA131: 55 | AB131: победитель
A132: 14690 | B132: Родной (татарский) язык для обучающихся – татар школ с русским языком обучения | C132: 53 | D132: Приволжский район | E132: Муниципальное бюджетное общеобразовательное учреждение "Средняя общеобразовательная школа №137 с углубленным изучением отдельных предметов"Кировского района г.Казани" | F132: 561137 | G132: Хамидуллина | H132: Айзиля | I132: Дамировна | J132: Ж | K132: 10.07.2008 | L132: 6 | M132: 6 | N132: 41 | O132: 42 | P132: победитель | Q132: да | R132: Сафина ГульнараФаргатовна | S132: Родной (татарский) язык для обучающихся – татар школ с русским языком обучения | T132: 20.10.2020 | U132: Муниципальное бюджетное общеобразовательное учреждение "Средняя общеобразовательная школа №137 с углубленным изучением отдельных предметов"Кировского района г.Казани" | V132: Кировский район | W132: s53n14457 | X132: 55 | Y132: 56 | AA132: =X132+Z132 -> 55 | AB132: победитель
A133: 14738 | B133: Родной (татарский) язык для обучающихся – татар школ с русским языком обучения | C133: 53 | D133: Советский район | E133: Муниципальное автономное общеобразовательное учреждение "Гимназия №19" | F133: 591019 | G133: Галиахметова | H133: Мадина | I133: Ильхамовна | J133: Ж | K133: 30.06.2008 | L133: 6 | M133: 6 | N133: 42 | O133: 42 | P133: победитель | Q133: да | R133: Галаветдинова ГюзелияХамитовна | S133: Родной (татарский) язык для обучающихся – татар школ с русским языком обучения | T133: 20.10.2020 | U133: Муниципальное автономное общеобразовательное учреждение "Гимназия №19" | V133: Приволжский район | W133: s53n14411 | X133: 54 | Y133: 56 | AA133: 54 | AB133: призер
A134: 14734 | B134: Родной (татарский) язык для обучающихся – татар школ с русским языком обучения | C134: 53 | D134: Приволжский район | E134: Муниципальное бюджетное общеобразовательное учреждение "Лицей №35 - образовательный центр "Галактика" Приволжского района города Казани" | F134: 591035 | G134: Гарифзянова | H134: Разиля | I134: Рамилевна | J134: Ж | K134: 05.07.2008 | L134: 6 | M134: 6 | N134: 42 | O134: 42 | P134: победитель | Q134: да | R134: Шаяхметова ВенераМиннебаевна | S134: Родной (татарский) язык для обучающихся – татар школ с русским языком обучения | T134: 20.10.2020 | U134: Муниципальное бюджетное общеобразовательное учреждение "Лицей №35 - образовательный центр "Галактика" Приволжского района города Казани" | V134: Приволжский район | W134: s53n14415 | X134: 54 | Y134: 56 | AA134: 54 | AB134: призер
A135: 14689 | B135: Родной (татарский) язык для обучающихся – татар школ с русским языком обучения | C135: 53 | D135: Приволжский район | E135: Муниципальное бюджетное общеобразовательное учреждение "Гимназия №175" Советского района г.Казани | F135: 601175 | G135: Хисамиева | H135: Адиля | I135: Ильнуровна | J135: Ж | K135: 12.07.2008 | L135: 6 | M135: 6 | N135: 41 | O135: 42 | P135: победитель | Q135: да | R135: Ахтямова ГульназМингалиевна | S135: Родной (татарский) язык для обучающихся – татар школ с русским языком обучения | T135: 20.10.2020 | U135: Муниципальное бюджетное общеобразовательное учреждение "Гимназия №175" Советского района г.Казани | V135: Советский район | W135: s53n14459 | X135: 53 | Y135: 56 | AA135: 53 | AB135: призер
A136: 14662 | B136: Родной (татарский) язык для обучающихся – татар школ с русским языком обучения | C136: 53 | D136: Приволжский район | E136: Муниципальное автономное общеобразовательное учреждение "Гимназия №37" Авиастроительного района г.Казани" | F136: 541037 | G136: Усманова | H136: Лейля | I136: Ильнуровна | J136: Ж | K136: 30.07.2008 | L136: 6 | M136: 6 | N136: 40 | O136: 42 | P136: победитель | Q136: нет | R136: Ахметшина ЗиляВагизовна | S136: Родной (татарский) язык для обучающихся – татар школ с русским языком обучения | T136: 20.10.2020 | U136: Муниципальное автономное общеобразовательное учреждение "Гимназия №37" Авиастроительного района г.Казани" | V136: Авиастроительный район | W136: s53n14487 | X136: 53 | Y136: 56 | AA136: 53 | AB136: призер
A137: 14707 | B137: Родной (татарский) язык для обучающихся – татар школ с русским языком обучения | C137: 53 | D137: Авиастроительный район | E137: МБОУ"Многопрофильный лицей №185" | F137: 601185 | G137: Газимова | H137: Ясмина | I137: Ильназовна | J137: Ж | K137: 29.03.2009 | L137: 6 | M137: 6 | N137: 41 | O137: 42 | P137: победитель | Q137: нет | R137: Хадеева ИльгияИлдусовна | S137: Родной (татарский) язык для обучающихся – татар школ с русским языком обучения | T137: 20.10.2020 | U137: МБОУ"Многопрофильный лицей №185" | V137: Советский район | W137: s53n14441 | X137: 52 | Y137: 56 | AA137: 52 | AB137: призер
A138: 14741 | B138: Родной (татарский) язык для обучающихся – татар школ с русским языком обучения | C138: 53 | D138: Кировский район | E138: Муниципальное бюджетное общеобразовательное учреждение "Средняя общеобразовательная школа №69" | F138: 591069 | G138: Абдрахимова | H138: Эвилина | I138: Ильнуровна | J138: Ж | K138: 29.08.2008 | L138: 6 | M138: 6 | N138: 42 | O138: 42 | P138: победитель | Q138: нет | R138: Махмутова ФаридаГусмановна | S138: Родной (татарский) язык для обучающихся – татар школ с русским языком обучения | T138: 20.10.2020 | U138: Муниципальное бюджетное общеобразовательное учреждение "Средняя общеобразовательная школа №69" | V138: Приволжский район | W138: s53n14408 | X138: 51 | Y138: 56 | AA138: 51 | AB138: призер
A139: 14716 | B139: Родной (татарский) язык для обучающихся – татар школ с русским языком обучения | C139: 53 | D139: Советский район | E139: Муниципальное автономное общеобразовательное учреждение "Гимназия №141" Советского района г.Казани | F139: 601141 | G139: Файзуллина | H139: Адиля | I139: Алмазовна | J139: Ж | K139: 12.07.2008 | L139: 6 | M139: 6 | N139: 42 | O139: 42 | P139: победитель | Q139: нет | R139: Салихзянова ИльмираЛукмановна | S139: Родной (татарский) язык для обучающихся – татар школ с русским языком обучения | T139: 20.10.2020 | U139: Муниципальное автономное общеобразовательное учреждение "Гимназия №141" Советского района г.Казани | V139: Советский район | W139: s53n14432 | X139: 50 | Y139: 56 | Z139: 1 | AA139: 51 | AB139: призер
A140: 14699 | B140: Родной (татарский) язык для обучающихся – татар школ с русским языком обучения | C140: 53 | D140: Советский район | E140: Муниципальное бюджетное общеобразовательное учреждение "Гимназия №155 с татарским языком обучения" Ново-Савиновского района г. Казани" | F140: 583155 | G140: Маннапов | H140: Амир | I140: Рушанович | J140: М | K140: 03.06.2008 | L140: 6 | M140: 6 | N140: 41 | O140: 42 | P140: победитель | Q140: нет | R140: Шакирова РаушанияГалаутдиновна | S140: Родной (татарский) язык для обучающихся – татар школ с русским языком обучения | T140: 20.10.2020 | U140: Муниципальное бюджетное общеобразовательное учреждение "Гимназия №155 с татарским языком обучения" Ново-Савиновского района г. Казани" | V140: Ново-Савиновский район | W140: s53n14448 | X140: 51 | Y140: 56 | AA140: 51 | AB140: призер
A141: 14740 | B141: Родной (татарский) язык для обучающихся – татар школ с русским языком обучения | C141: 53 | D141: Авиастроительный район | E141: Муниципальное бюджетное общеобразовательное учреждение "Средняя общеобразовательная школа № 82 с углубленным изучением отдельных предметов им.Р.Г.Хасановой" | F141: 591082 | G141: Бадретдинов | H141: Муса | I141: Радикович | J141: М | K141: 29.01.2008 | L141: 6 | M141: 6 | N141: 42 | O141: 42 | P141: победитель | Q141: нет | R141: Бадретдинова НазлыгульМасхутовна | S141: Родной (татарский) язык для обучающихся – татар школ с русским языком обучения | T141: 20.10.2020 | U141: Муниципальное бюджетное общеобразовательное учреждение "Средняя общеобразовательная школа № 82 с углубленным изучением отдельных предметов им.Р.Г.Хасановой" | V141: Приволжский район | W141: s53n14409 | X141: 50 | Y141: 56 | AA141: 50 | AB141: призер
A142: 14663 | B142: Родной (татарский) язык для обучающихся – татар школ с русским языком обучения | C142: 53 | D142: Авиастроительный район | E142: Муниципальное бюджетное общеобразовательное учреждение "Средняя общеобразовательная школа №89 с углубленным изучением отдельных предметов" Ново-Савиновского района г. Казани" | F142: 581089 | G142: Сафина | H142: Альфина | I142: Ильнуровна | J142: Ж | K142: 09.09.2008 | L142: 6 | M142: 6 | N142: 40 | O142: 42 | P142: победитель | Q142: нет | R142: Хусниева АлсуСагитовна | S142: Родной (татарский) язык для обучающихся – татар школ с русским языком обучения | T142: 20.10.2020 | U142: Муниципальное бюджетное общеобразовательное учреждение "Средняя общеобразовательная школа №89 с углубленным изучением отдельных предметов" Ново-Савиновского района г. Казани" | V142: Ново-Савиновский район | W142: s53n14486 | X142: 50 | Y142: 56 | AA142: =X142+Z142 -> 50 | AB142: призер
A143: 14718 | B143: Родной (татарский) язык для обучающихся – татар школ с русским языком обучения | C143: 53 | D143: Приволжский район | E143: Муниципальное бюджетное общеобразовательное учреждение "Средняя общеобразовательная школа №69" | F143: 591069 | G143: Скворцова | H143: Сафия | I143: Алексеевна | J143: Ж | K143: 26.04.2008 | L143: 6 | M143: 6 | N143: 42 | O143: 42 | P143: победитель | Q143: нет | R143: Махмутова ФаридаГусмановна | S143: Родной (татарский) язык для обучающихся – татар школ с русским языком обучения | T143: 20.10.2020 | U143: Муниципальное бюджетное общеобразовательное учреждение "Средняя общеобразовательная школа №69" | V143: Приволжский район | W143: s53n14430 | X143: 49 | Y143: 56 | AA143: =X143+Z143 -> 49 | AB143: призер
A144: 14736 | B144: Родной (татарский) язык для обучающихся – татар школ с русским языком обучения | C144: 53 | D144: Вахитовский район | E144: Муниципальное бюджетное общеобразовательное учреждение "Средняя общеобразовательная школа № 171 с углубленным изучением отдельных предметов" Советского района г.Казани | F144: 601171 | G144: Галимзянова | H144: Энже | I144: Айдаровна | J144: Ж | K144: 29.02.2008 | L144: 6 | M144: 6 | N144: 42 | O144: 42 | P144: победитель | Q144: нет | R144: Гарапшина ЛилияАльбертовна | S144: Родной (татарский) язык для обучающихся – татар школ с русским языком обучения | T144: 20.10.2020 | U144: Муниципальное бюджетное общеобразовательное учреждение "Средняя общеобразовательная школа № 171 с углубленным изучением отдельных предметов" Советского района г.Казани | V144: Советский район | W144: s53n14412 | X144: 48 | Y144: 56 | AA144: =X144+Z144 -> 48 | AB144: призер
A145: 14714 | B145: Родной (татарский) язык для обучающихся – татар школ с русским языком обучения | C145: 53 | D145: Приволжский район | E145: МБОУ "Политехнический лицей № 182" | F145: 561182 | G145: Хаертдинова | H145: Эльмира | I145: Рустемовна | J145: Ж | K145: 12.09.2008 | L145: 6 | M145: 6 | N145: 42 | O145: 42 | P145: победитель | Q145: нет | R145: Мингалиева ГульназРавильевна | S145: Родной (татарский) язык для обучающихся – татар школ с русским языком обучения | T145: 20.10.2020 | U145: МБОУ "Политехнический лицей № 182" | V145: Кировский район | W145: s53n14434 | X145: 48 | Y145: 56 | AA145: =X145+Z145 -> 48 | AB145: призер
A146: 14712 | B146: Родной (татарский) язык для обучающихся – татар школ с русским языком обучения | C146: 53 | D146: Приволжский район | E146: Муниципальное бюджетное общеобразовательное учреждение "Лицей №35 - образовательный центр "Галактика" Приволжского района города Казани" | F146: 591035 | G146: Хусаенов | H146: Нурдан | I146: Азатович | J146: М | K146: 14.06.2008 | L146: 6 | M146: 6 | N146: 42 | O146: 42 | P146: победитель | Q146: да | R146: Ханнанова МиляушаХатиповна | S146: Родной (татарский) язык для обучающихся – татар школ с русским языком обучения | T146: 20.10.2020 | U146: Муниципальное бюджетное общеобразовательное учреждение "Лицей №35 - образовательный центр "Галактика" Приволжского района города Казани" | V146: Приволжский район | W146: s53n14436 | X146: 48 | Y146: 56 | AA146: 48 | AB146: призер
A147: 14704 | B147: Родной (татарский) язык для обучающихся – татар школ с русским языком обучения | C147: 53 | D147: Советский район | E147: Муниципальное бюджетное общеобразовательное учреждение "Русско-татарская средняя общеобразовательная школа №81 с углубленным изучением отдельных предметов имени В.А.Григорьева" | F147: 561081 | G147: Гутупов | H147: Ильяс | I147: Айратович | J147: М | K147: 29.12.2008 | L147: 6 | M147: 6 | N147: 41 | O147: 42 | P147: победитель | Q147: нет | R147: Сафиуллина ГульфияМинехаковна | S147: Родной (татарский) язык для обучающихся – татар школ с русским языком обучения | T147: 20.10.2020 | U147: Муниципальное бюджетное общеобразовательное учреждение "Русско-татарская средняя общеобразовательная школа №81 с углубленным изучением отдельных предметов имени В.А.Григорьева" | V147: Кировский район | W147: s53n14444 | X147: 48 | Y147: 56 | AA147: =X147+Z147 -> 48 | AB147: призер
A148: 14679 | B148: Родной (татарский) язык для обучающихся – татар школ с русским языком обучения | C148: 53 | D148: Советский район | E148: Муниципальное бюджетное общеобразовательное учреждение "Лицей №83 - Центр образования" | F148: 591083 | G148: Габитова | H148: Камила | I148: Эльмаровна | J148: Ж | K148: 13.10.2008 | L148: 6 | M148: 6 | N148: 40 | O148: 42 | P148: призер | Q148: нет | R148: Галиева АлсуИльгизовна | S148: Родной (татарский) язык для обучающихся – татар школ с русским языком обучения | T148: 20.10.2020 | U148: Муниципальное бюджетное общеобразовательное учреждение "Лицей №83 - Центр образования" | V148: Приволжский район | W148: s53n14470 | X148: 48 | Y148: 56 | AA148: =X148+Z148 -> 48 | AB148: призер
A149: 14658 | B149: Родной (татарский) язык для обучающихся – татар школ с русским языком обучения | C149: 53 | D149: Советский район | E149: Муниципальное бюджетное общеобразовательное учреждение "Гимназия №96" | F149: 551096 | G149: Гатауллина | H149: Эльвина | I149: Азатовна | J149: Ж | K149: 19.11.2008 | L149: 6 | M149: 6 | N149: 1 | O149: 42 | P149: участник | Q149: да | R149: Закирова АльмираХанафиевна | S149: Родной (татарский) язык для обучающихся – татар школ с русским языком обучения | T149: 20.10.2020 | U149: Муниципальное бюджетное общеобразовательное учреждение "Гимназия №96" | V149: Вахитовский район | W149: s53n14492 | X149: 48 | Y149: 56 | AA149: 48 | AB149: призер
A150: 14739 | B150: Родной (татарский) язык для обучающихся – татар школ с русским языком обучения | C150: 53 | D150: Советский район | E150: Муниципальное автономное общеобразовательное учреждение "Гимназия №141" Советского района г.Казани | F150: 601141 | G150: Гайфутдинова | H150: Алсу | I150: Ильдаровна | J150: Ж | K150: 23.09.2008 | L150: 6 | M150: 6 | N150: 42 | O150: 42 | P150: победитель | Q150: нет | R150: Салихзянова ИльмираЛукмановна | S150: Родной (татарский) язык для обучающихся – татар школ с русским языком обучения | T150: 20.10.2020 | U150: Муниципальное автономное общеобразовательное учреждение "Гимназия №141" Советского района г.Казани | V150: Советский район | W150: s53n14410 | X150: 48 | Y150: 56 | AA150: 47 | AB150: призер
A151: 14686 | B151: Родной (татарский) язык для обучающихся – татар школ с русским языком обучения | C151: 53 | D151: Ново-Савиновский район | E151: Муниципальное бюджетное общеобразовательное учреждение "Лицей №83 - Центр образования" | F151: 591083 | G151: Яруллина | H151: Ралина | I151: Раилевна | J151: М | K151: 30.07.2008 | L151: 6 | M151: 6 | N151: 41 | O151: 42 | P151: победитель | Q151: нет | R151: Галиева АлсуИльгизовна | S151: Родной (татарский) язык для обучающихся – татар школ с русским языком обучения | T151: 20.10.2020 | U151: Муниципальное бюджетное общеобразовательное учреждение "Лицей №83 - Центр образования" | V151: Приволжский район | W151: s53n14463 | X151: 47 | Y151: 56 | AA151: =X151+Z151 -> 47 | AB151: призер
A152: 14715 | B152: Родной (татарский) язык для обучающихся – татар школ с русским языком обучения | C152: 53 | D152: Кировский район | E152: Муниципальное бюджетное общеобразовательное учреждение "Средняя общеобразовательная школа №73" | F152: 591073 | G152: Файзуллина | H152: Энже | I152: Алмазовна | J152: Ж | K152: 05.01.2008 | L152: 6 | M152: 6 | N152: 42 | O152: 42 | P152: победитель | Q152: нет | R152: Шарапова ЛилияКаюмовна | S152: Родной (татарский) язык для обучающихся – татар школ с русским языком обучения | T152: 20.10.2020 | U152: Муниципальное бюджетное общеобразовательное учреждение "Средняя общеобразовательная школа №73" | V152: Приволжский район | W152: s53n14433 | X152: 46 | Y152: 56 | AA152: 46 | AB152: участник
A153: 14705 | B153: Родной (татарский) язык для обучающихся – татар школ с русским языком обучения | C153: 53 | D153: Советский район | E153: Муниципальное автономное общеобразовательное учреждение "Лицей №121 имени Героя Советского Союза С.А.Ахтямова" Советского района г.Казани | F153: 601121 | G153: Гасимова | H153: Адиля | I153: Сириновна | J153: Ж | K153: 14.07.2008 | L153: 6 | M153: 6 | N153: 41 | O153: 42 | P153: победитель | Q153: нет | R153: Шигапова ЛюцияГосмановна | S153: Родной (татарский) язык для обучающихся – татар школ с русским языком обучения | T153: 20.10.2020 | U153: Муниципальное автономное общеобразовательное учреждение "Лицей №121 имени Героя Советского Союза С.А.Ахтямова" Советского района г.Казани | V153: Советский район | W153: s53n14443 | X153: 46 | Y153: 56 | AA153: 46 | AB153: участник
A154: 14693 | B154: Родной (татарский) язык для обучающихся – татар школ с русским языком обучения | C154: 53 | D154: Советский район | E154: Муниципальное бюджетное общеобразовательное учреждение "Гимназия №7 имени Героя России А.В.Козина" Ново-Савиновского района г. Казани" | F154: 581007 | G154: Хабибуллина | H154: Дина | I154: Камилевна | J154: Ж | K154: 06.02.2008 | L154: 6 | M154: 6 | N154: 41 | O154: 42 | P154: призер | Q154: нет | R154: Набиуллина ТаслимаГиниятовна | S154: Родной (татарский) язык для обучающихся – татар школ с русским языком обучения | T154: 20.10.2020 | U154: Муниципальное бюджетное общеобразовательное учреждение "Гимназия №7 имени Героя России А.В.Козина" Ново-Савиновского района г. Казани" | V154: Ново-Савиновский район | W154: s53n14453 | X154: 45 | Y154: 56 | Z154: 1 | AA154: 46 | AB154: участник
A155: 14683 | B155: Родной (татарский) язык для обучающихся – татар школ с русским языком обучения | C155: 53 | D155: Кировский район | E155: Муниципальное бюджетное общеобразовательное учреждение "Средняя общеобразовательная русско-татарская школа № 161" Советского района г.Казани" | F155: 601161 | G155: Аухадиева | H155: Диля | I155: Фидаилевна | J155: Ж | K155: 26.11.2008 | L155: 6 | M155: 6 | N155: 40 | O155: 42 | P155: призер | Q155: нет | R155: Хабибуллина КлараАльбертовна | S155: Родной (татарский) язык для обучающихся – татар школ с русским языком обучения | T155: 20.10.2020 | U155: Муниципальное бюджетное общеобразовательное учреждение "Средняя общеобразовательная русско-татарская школа № 161" Советского района г.Казани" | V155: Советский район | W155: s53n14466 | X155: 46 | Y155: 56 | AA155: 46 | AB155: участник
A156: 14673 | B156: Родной (татарский) язык для обучающихся – татар школ с русским языком обучения | C156: 53 | D156: Московский район | E156: Муниципальное бюджетное общеобразовательное учреждение "Гимназия№52" | F156: 591052 | G156: Марданшина | H156: Камиля | I156: Ленаровна | J156: Ж | K156: 06.08.2008 | L156: 6 | M156: 6 | N156: 40 | O156: 42 | P156: победитель | Q156: нет | R156: Ахметзянова ГульсуМагсумовна | S156: Родной (татарский) язык для обучающихся – татар школ с русским языком обучения | T156: 20.10.2020 | U156: Муниципальное бюджетное общеобразовательное учреждение "Гимназия№52" | V156: Приволжский район | W156: s53n14476 | X156: 46 | Y156: 56 | AA156: 46 | AB156: участник
A157: 14728 | B157: Родной (татарский) язык для обучающихся – татар школ с русским языком обучения | C157: 53 | D157: Кировский район | E157: МБОУ "Политехнический лицей № 182" | F157: 561182 | G157: Залялеева | H157: Адиля | I157: Ильгизовна | J157: Ж | K157: 23.02.2008 | L157: 6 | M157: 6 | N157: 42 | O157: 42 | P157: победитель | Q157: нет | R157: Мингалиева ГульназРавильевна | S157: Родной (татарский) язык для обучающихся – татар школ с русским языком обучения | T157: 20.10.2020 | U157: МБОУ "Политехнический лицей № 182" | V157: Кировский район | W157: s53n14421 | X157: 45 | Y157: 56 | AA157: 45 | AB157: участник
A158: 14726 | B158: Родной (татарский) язык для обучающихся – татар школ с русским языком обучения | C158: 53 | D158: Советский район | E158: Государственное автономное общеобразовательное учреждение "Полилингвальный комплекс "Адымнар - путь к знаниям и согласию" г. Казани" | F158: 581165 | G158: Мустаева | H158: Азиза | I158: Ирековна | J158: Ж | K158: 31.03.2008 | L158: 6 | M158: 6 | N158: 42 | O158: 42 | P158: победитель | Q158: да | R158: Хуснутдинова РаиляНурутдиновна | S158: Родной (татарский) язык для обучающихся – татар школ с русским языком обучения | T158: 20.10.2020 | U158: Государственное автономное общеобразовательное учреждение "Полилингвальный комплекс "Адымнар - путь к знаниям и согласию" г. Казани" | V158: Ново-Савиновский район | W158: s53n14423 | X158: 45 | Y158: 56 | AA158: 45 | AB158: участник
A159: 14697 | B159: Родной (татарский) язык для обучающихся – татар школ с русским языком обучения | C159: 53 | D159: Приволжский район | E159: Муниципальное бюджетное общеобразовательное учреждение "Средняя общеобразовательная школа с углубленным изучением отдельных предметов №62" Авиастроительного района г.Казани" | F159: 541062 | G159: Мубаракзянова | H159: Аделя | I159: Рафисовна | J159: Ж | K159: 13.12.2007 | L159: 6 | M159: 6 | N159: 41 | O159: 42 | P159: победитель | Q159: нет | R159: Ибрагимова ЭнджеСалимовна | S159: Родной (татарский) язык для обучающихся – татар школ с русским языком обучения | T159: 20.10.2020 | U159: Муниципальное бюджетное общеобразовательное учреждение "Средняя общеобразовательная школа с углубленным изучением отдельных предметов №62" Авиастроительного района г.Казани" | V159: Авиастроительный район | W159: s53n14450 | X159: 45 | Y159: 56 | AA159: =X159+Z159 -> 45 | AB159: участник
A160: 14681 | B160: Родной (татарский) язык для обучающихся – татар школ с русским языком обучения | C160: 53 | D160: Кировский район | E160: Государственное автономное общеобразовательное учреждение "Полилингвальный комплекс "Адымнар - путь к знаниям и согласию" г. Казани" | F160: 581165 | G160: Аюпова | H160: Аделина | I160: Ильшатовн | J160: Ж | K160: 14.06.2008 | L160: 6 | M160: 6 | N160: 40 | O160: 42 | P160: призер | Q160: нет | R160: Габдулина АльмираФердинантовна | S160: Родной (татарский) язык для обучающихся – татар школ с русским языком обучения | T160: 20.10.2020 | U160: Государственное автономное общеобразовательное учреждение "Полилингвальный комплекс "Адымнар - путь к знаниям и согласию" г. Казани" | V160: Ново-Савиновский район | W160: s53n14468 | X160: 45 | Y160: 56 | AA160: 45 | AB160: участник
A161: 14665 | B161: Родной (татарский) язык для обучающихся – татар школ с русским языком обучения | C161: 53 | D161: Ново-Савиновский район | E161: Муниципальное бюджетное общеобразовательное учреждение "Средняя общеобразовательная школа № 171 с углубленным изучением отдельных предметов" Советского района г.Казани | F161: 601171 | G161: Насырова | H161: Дина | I161: Маратовна | J161: Ж | K161: 07.07.2008 | L161: 6 | M161: 6 | N161: 40 | O161: 42 | P161: призер | Q161: нет | R161: Гарапшина ЛилияАльбертовна | S161: Родной (татарский) язык для обучающихся – татар школ с русским языком обучения | T161: 20.10.2020 | U161: Муниципальное бюджетное общеобразовательное учреждение "Средняя общеобразовательная школа № 171 с углубленным изучением отдельных предметов" Советского района г.Казани | V161: Советский район | W161: s53n14484 | X161: 45 | Y161: 56 | AA161: 45 | AB161: участник
A162: 14730 | B162: Родной (татарский) язык для обучающихся – татар школ с русским языком обучения | C162: 53 | D162: Ново-Савиновский район | E162: Муниципальное бюджетное общеобразовательное учреждение "Гимназия №7 имени Героя России А.В.Козина" Ново-Савиновского района г. Казани" | F162: 581007 | G162: Давлетов | H162: Карим | I162: Ранасович | J162: М | K162: 26.04.2008 | L162: 6 | M162: 6 | N162: 42 | O162: 42 | P162: победитель | Q162: нет | R162: Набиуллина ТаслимаГиниятовна | S162: Родной (татарский) язык для обучающихся – татар школ с русским языком обучения | T162: 20.10.2020 | U162: Муниципальное бюджетное общеобразовательное учреждение "Гимназия №7 имени Героя России А.В.Козина" Ново-Савиновского района г. Казани" | V162: Ново-Савиновский район | W162: s53n14419 | X162: 43 | Y162: 56 | Z162: 1 | AA162: 44 | AB162: участник
A163: 14723 | B163: Родной (татарский) язык для обучающихся – татар школ с русским языком обучения | C163: 53 | D163: Советский район | E163: Муниципальное бюджетное общеобразовательное учреждение "Многопрофильная полилингвальная гимназия №180" Советского района г. Казани" | F163: 601180 | G163: Сабирзянова | H163: Айзиля | I163: Марсовна | J163: Ж | K163: 21.02.2008 | L163: 6 | M163: 6 | N163: 42 | O163: 42 | P163: победитель | Q163: нет | R163: Валиуллова ЛилияХамбаловна | S163: Родной (татарский) язык для обучающихся – татар школ с русским языком обучения | T163: 20.10.2020 | U163: Муниципальное бюджетное общеобразовательное учреждение "Многопрофильная полилингвальная гимназия №180" Советского района г. Казани" | V163: Советский район | W163: s53n14426 | X163: 44 | Y163: 56 | AA163: 44 | AB163: участник
A164: 14692 | B164: Родной (татарский) язык для обучающихся – татар школ с русским языком обучения | C164: 53 | D164: Вахитовский район | E164: Муниципальное автономное общеобразовательное учреждение "Средняя общеобразовательная школа №39 с углубленным изучением английского языка" | F164: 551039 | G164: Халиуллина | H164: Малика | I164: Фаридовна | J164: Ж | K164: 27.06.2008 | L164: 6 | M164: 6 | N164: 41 | O164: 42 | P164: участник | Q164: нет | R164: Салихова СуюмбикаМидхатовна | S164: Родной (татарский) язык для обучающихся – татар школ с русским языком обучения | T164: 20.10.2020 | U164: Муниципальное автономное общеобразовательное учреждение "Средняя общеобразовательная школа №39 с углубленным изучением английского языка" | V164: Вахитовский район | W164: s53n14454 | X164: 44 | Y164: 56 | AA164: 44 | AB164: участник
A165: 14691 | B165: Родной (татарский) язык для обучающихся – татар школ с русским языком обучения | C165: 53 | D165: Ново-Савиновский район | E165: Муниципальное бюджетное общеобразовательное учреждение "Средняя общеобразовательная школа № 171 с углубленным изучением отдельных предметов" Советского района г.Казани | F165: 601171 | G165: Хамидуллина | H165: Азалия | I165: Азатовна | J165: Ж | K165: 13.05.2008 | L165: 6 | M165: 6 | N165: 41 | O165: 42 | P165: призер | Q165: нет | R165: Гарапшина ЛилияАльбертовна | S165: Родной (татарский) язык для обучающихся – татар школ с русским языком обучения | T165: 20.10.2020 | U165: Муниципальное бюджетное общеобразовательное учреждение "Средняя общеобразовательная школа № 171 с углубленным изучением отдельных предметов" Советского района г.Казани | V165: Советский район | W165: s53n14456 | X165: 44 | Y165: 56 | AA165: 44 | AB165: участник
A166: 14729 | B166: Родной (татарский) язык для обучающихся – татар школ с русским языком обучения | C166: 53 | D166: Советский район | E166: Муниципальное бюджетное общеобразовательное учреждение "Средняя общеобразовательная школа № 171 с углубленным изучением отдельных предметов" Советского района г.Казани | F166: 601171 | G166: Закиров | H166: Карим | I166: Ранжитович | J166: М | K166: 09.01.2008 | L166: 6 | M166: 6 | N166: 42 | O166: 42 | P166: победитель | Q166: нет | R166: Гарапшина ЛилияАльбертовна | S166: Родной (татарский) язык для обучающихся – татар школ с русским языком обучения | T166: 20.10.2020 | U166: Муниципальное бюджетное общеобразовательное учреждение "Средняя общеобразовательная школа № 171 с углубленным изучением отдельных предметов" Советского района г.Казани | V166: Советский район | W166: s53n14420 | X166: 43 | Y166: 56 | AA166: 43 | AB166: участник
A167: 14722 | B167: Родной (татарский) язык для обучающихся – татар школ с русским языком обучения | C167: 53 | D167: Авиастроительный район | E167: Муниципальное бюджетное общеобразовательное учреждение "Средняя общеобразовательная школа № 171 с углубленным изучением отдельных предметов" Советского района г.Казани | F167: 601171 | G167: Сафина | H167: Алия | I167: Алмазовна | J167: Ж | K167: 01.07.2008 | L167: 6 | M167: 6 | N167: 42 | O167: 42 | P167: победитель | Q167: нет | R167: Ахметгалиева АлсуАсхадулловна | S167: Родной (татарский) язык для обучающихся – татар школ с русским языком обучения | T167: 20.10.2020 | U167: Муниципальное бюджетное общеобразовательное учреждение "Средняя общеобразовательная школа № 171 с углубленным изучением отдельных предметов" Советского района г.Казани | V167: Советский район | W167: s53n14427 | X167: 43 | Y167: 56 | AA167: 43 | AB167: участник
A168: 14677 | B168: Родной (татарский) язык для обучающихся – татар школ с русским языком обучения | C168: 53 | D168: Ново-Савиновский район | E168: Муниципальное бюджетное общеобразовательное учреждение "Средняя общеобразовательная школа с углубленным изучением отдельных предметов №62" Авиастроительного района г.Казани" | F168: 541062 | G168: Залялиев | H168: Разиль | I168: Радисович | J168: М | K168: 28.08.2008 | L168: 6 | M168: 6 | N168: 40 | O168: 42 | P168: призер | Q168: нет | R168: Ибрагимова ЭнджеСалимовна | S168: Родной (татарский) язык для обучающихся – татар школ с русским языком обучения | T168: 20.10.2020 | U168: Муниципальное бюджетное общеобразовательное учреждение "Средняя общеобразовательная школа с углубленным изучением отдельных предметов №62" Авиастроительного района г.Казани" | V168: Авиастроительный район | W168: s53n14473 | X168: 43 | Y168: 56 | AA168: =X168+Z168 -> 43 | AB168: участник
A169: 14659 | B169: Родной (татарский) язык для обучающихся – татар школ с русским языком обучения | C169: 53 | D169: Московский район | E169: Муниципальное автономное общеобразовательное учреждение "Лицей №146 "Ресурс" Ново-Савиновского района г. Казани" | F169: 581146 | G169: Бочкарева | H169: Лиана | I169: Александровна | J169: Ж | K169: 26.02.2008 | L169: 6 | M169: 6 | N169: 38 | O169: 42 | P169: призер | Q169: да | R169: Агмалетдинова РозаНиколаевна | S169: Родной (татарский) язык для обучающихся – татар школ с русским языком обучения | T169: 20.10.2020 | U169: Муниципальное автономное общеобразовательное учреждение "Лицей №146 "Ресурс" Ново-Савиновского района г. Казани" | V169: Ново-Савиновский район | W169: s53n14491 | X169: 43 | Y169: 56 | AA169: 43 | AB169: участник
A170: 14711 | B170: Родной (татарский) язык для обучающихся – татар школ с русским языком обучения | C170: 53 | D170: Советский район | E170: Муниципальное бюджетное общеобразовательное учреждение "Средняя общеобразовательная школа №73" | F170: 591073 | G170: Шарафиев | H170: Гадель | I170: Булатович | J170: М | K170: 19.06.2008 | L170: 6 | M170: 6 | N170: 42 | O170: 42 | P170: победитель | Q170: нет | R170: Шарапова ЛилияКаюмовна | S170: Родной (татарский) язык для обучающихся – татар школ с русским языком обучения | T170: 20.10.2020 | U170: Муниципальное бюджетное общеобразовательное учреждение "Средняя общеобразовательная школа №73" | V170: Приволжский район | W170: s53n14437 | X170: 41 | Y170: 56 | AA170: 41 | AB170: участник
A171: 14700 | B171: Родной (татарский) язык для обучающихся – татар школ с русским языком обучения | C171: 53 | D171: Приволжский район | E171: Муниципальное бюджетное общеобразовательное учреждение "Средняя общеобразовательная школа № 171 с углубленным изучением отдельных предметов" Советского района г.Казани | F171: 601171 | G171: Зайнуллина | H171: Зарина | I171: Рушановна | J171: Ж | K171: 16.04.2008 | L171: 6 | M171: 6 | N171: 41 | O171: 42 | P171: призер | Q171: нет | R171: Ахметгалиева АлсуАсхадулловна | S171: Родной (татарский) язык для обучающихся – татар школ с русским языком обучения | T171: 20.10.2020 | U171: Муниципальное бюджетное общеобразовательное учреждение "Средняя общеобразовательная школа № 171 с углубленным изучением отдельных предметов" Советского района г.Казани | V171: Советский район | W171: s53n14447 | X171: 41 | Y171: 56 | AA171: 41 | AB171: участник
A172: 14684 | B172: Родной (татарский) язык для обучающихся – татар школ с русским языком обучения | C172: 53 | D172: Советский район | E172: Муниципальное бюджетное общеобразовательное учреждение "Татарско-русская средняя общеобразовательная школа №68 с углубленным изучением отдельных предметов" | F172: 593068 | G172: Алякина | H172: Ландыш | I172: Алексеевна | J172: Ж | K172: 25.04.2009 | L172: 6 | M172: 6 | N172: 40 | O172: 42 | P172: победитель | Q172: нет | R172: Иксанова АльфияМиннеабзальтыновна | S172: Родной (татарский) язык для обучающихся – татар школ с русским языком обучения | T172: 20.10.2020 | U172: Муниципальное бюджетное общеобразовательное учреждение "Татарско-русская средняя общеобразовательная школа №68 с углубленным изучением отдельных предметов" | V172: Приволжский район | W172: s53n14465 | X172: 41 | Y172: 56 | AA172: 41 | AB172: участник
A173: 14675 | B173: Родной (татарский) язык для обучающихся – татар школ с русским языком обучения | C173: 53 | D173: Московский район | E173: Муниципальное автономное общеобразовательное учреждение "Лицей №146 "Ресурс" Ново-Савиновского района г. Казани" | F173: 581146 | G173: Зиляева | H173: Алия | I173: Дамировна | J173: Ж | K173: 05.04.2008 | L173: 6 | M173: 6 | N173: 40 | O173: 42 | P173: победитель | Q173: нет | R173: Агмалетдинова РозаНиколаевна | S173: Родной (татарский) язык для обучающихся – татар школ с русским языком обучения | T173: 20.10.2020 | U173: Муниципальное автономное общеобразовательное учреждение "Лицей №146 "Ресурс" Ново-Савиновского района г. Казани" | V173: Ново-Савиновский район | W173: s53n14474 | X173: 41 | Y173: 56 | AA173: 41 | AB173: участник
A174: 14733 | B174: Родной (татарский) язык для обучающихся – татар школ с русским языком обучения | C174: 53 | D174: Приволжский район | E174: Муниципальное бюджетное общеобразовательное учреждение "Средняя общеобразовательная татарско-русская школа № 34 " Московского района г.Казани" | F174: 571034 | G174: Гарифуллин | H174: Аяз | I174: Марселевич | J174: М | K174: 18.10.2008 | L174: 6 | M174: 6 | N174: 42 | O174: 42 | P174: победитель | Q174: да | R174: Галимова ИльмираГайсовна | S174: Родной (татарский) язык для обучающихся – татар школ с русским языком обучения | T174: 20.10.2020 | U174: Муниципальное бюджетное общеобразовательное учреждение "Средняя общеобразовательная татарско-русская школа № 34 " Московского района г.Казани" | V174: Московский район | W174: s53n14416 | X174: 40 | Y174: 56 | AA174: 40 | AB174: участник
A175: 14721 | B175: Родной (татарский) язык для обучающихся – татар школ с русским языком обучения | C175: 53 | D175: Приволжский район | E175: Муниципальное бюджетное общеобразовательное учреждение "Гимназия №33" Авиастроительного района г.Казани" | F175: 541033 | G175: Сибгатуллина | H175: Амина | I175: Айратовна | J175: Ж | K175: 14.11.2007 | L175: 6 | M175: 6 | N175: 42 | O175: 42 | P175: победитель | Q175: да | R175: Мусаяпова НасимаХайбулловна | S175: Родной (татарский) язык для обучающихся – татар школ с русским языком обучения | T175: 20.10.2020 | U175: Муниципальное бюджетное общеобразовательное учреждение "Гимназия №33" Авиастроительного района г.Казани" | V175: Авиастроительный район | W175: s53n14428 | X175: 40 | Y175: 56 | AA175: =X175+Z175 -> 40 | AB175: участник
A176: 14698 | B176: Родной (татарский) язык для обучающихся – татар школ с русским языком обучения | C176: 53 | D176: Ново-Савиновский район | E176: Муниципальное бюджетное общеобразовательное учреждение "Гимназия № 90" Советского района г.Казани" | F176: 601090 | G176: Мифтахова | H176: Альбина | I176: Ильнуровна | J176: Ж | K176: 12.07.2008 | L176: 6 | M176: 6 | N176: 41 | O176: 42 | P176: победитель | Q176: нет | R176: Габдулхакова ГульчачакРашитовна | S176: Родной (татарский) язык для обучающихся – татар школ с русским языком обучения | T176: 20.10.2020 | U176: Муниципальное бюджетное общеобразовательное учреждение "Гимназия № 90" Советского района г.Казани" | V176: Советский район | W176: s53n14449 | X176: 40 | Y176: 56 | AA176: 40 | AB176: участник
A177: 14695 | B177: Родной (татарский) язык для обучающихся – татар школ с русским языком обучения | C177: 53 | D177: Кировский район | E177: Муниципальное автономное общеобразовательное учреждение "Гимназия №141" Советского района г.Казани | F177: 601141 | G177: Мустафина | H177: Амалия | I177: Маратовна | J177: Ж | K177: 21.12.2008 | L177: 6 | M177: 6 | N177: 41 | O177: 42 | P177: призер | Q177: нет | R177: Салихзянова ИльмираЛукмановна | S177: Родной (татарский) язык для обучающихся – татар школ с русским языком обучения | T177: 20.10.2020 | U177: Муниципальное автономное общеобразовательное учреждение "Гимназия №141" Советского района г.Казани | V177: Советский район | W177: s53n14452 | X177: 40 | Y177: 56 | AA177: 40 | AB177: участник
A178: 14674 | B178: Родной (татарский) язык для обучающихся – татар школ с русским языком обучения | C178: 53 | D178: Советский район | E178: Муниципальное бюджетное общеобразовательное учреждение "Гимназия № 90" Советского района г.Казани" | F178: 601090 | G178: Исмагилова | H178: Ралина | I178: Радифовна | J178: Ж | K178: 29.06.2008 | L178: 6 | M178: 6 | N178: 40 | O178: 42 | P178: победитель | Q178: нет | R178: Насипова ЛейлаРаисовна | S178: Родной (татарский) язык для обучающихся – татар школ с русским языком обучения | T178: 20.10.2020 | U178: Муниципальное бюджетное общеобразовательное учреждение "Гимназия № 90" Советского района г.Казани" | V178: Советский район | W178: s53n14475 | X178: 40 | Y178: 56 | AA178: 40 | AB178: участник
A179: 14725 | B179: Родной (татарский) язык для обучающихся – татар школ с русским языком обучения | C179: 53 | D179: Советский район | E179: Муниципальное бюджетное общеобразовательное учреждение "Многопрофильная полилингвальная гимназия №180" Советского района г. Казани" | F179: 601180 | G179: Нурмиева | H179: Зиля | I179: Азатовна | J179: Ж | K179: 23.10.2008 | L179: 6 | M179: 6 | N179: 42 | O179: 42 | P179: победитель | Q179: да | R179: Валиуллова ЛилияХамбаловна | S179: Родной (татарский) язык для обучающихся – татар школ с русским языком обучения | T179: 20.10.2020 | U179: Муниципальное бюджетное общеобразовательное учреждение "Многопрофильная полилингвальная гимназия №180" Советского района г. Казани" | V179: Советский район | W179: s53n14424 | X179: 39 | Y179: 56 | AA179: =X179+Z179 -> 39 | AB179: участник
A180: 14706 | B180: Родной (татарский) язык для обучающихся – татар школ с русским языком обучения | C180: 53 | D180: Советский район | E180: Государственное автономное общеобразовательное учреждение "Полилингвальный комплекс "Адымнар - путь к знаниям и согласию" г. Казани" | F180: 581165 | G180: Галияхметова | H180: Айнур | I180: Альбертович | J180: М | K180: 09.12.2008 | L180: 6 | M180: 6 | N180: 41 | O180: 42 | P180: победитель | Q180: нет | R180: Хуснутдинова РаиляНурутдиновна | S180: Родной (татарский) язык для обучающихся – татар школ с русским языком обучения | T180: 20.10.2020 | U180: Государственное автономное общеобразовательное учреждение "Полилингвальный комплекс "Адымнар - путь к знаниям и согласию" г. Казани" | V180: Ново-Савиновский район | W180: s53n14442 | X180: 39 | Y180: 56 | AA180: 39 | AB180: участник
A181: 14667 | B181: Родной (татарский) язык для обучающихся – татар школ с русским языком обучения | C181: 53 | D181: Советский район | E181: Муниципальное автономное общеобразовательное учреждение "Гимназия №19" | F181: 591019 | G181: Набиуллина | H181: Эльвина | I181: Рамилевна | J181: Ж | K181: 16.11.2007 | L181: 6 | M181: 6 | N181: 40 | O181: 42 | P181: призер | Q181: нет | R181: Залялеева АлсуКотдусовна | S181: Родной (татарский) язык для обучающихся – татар школ с русским языком обучения | T181: 20.10.2020 | U181: Муниципальное автономное общеобразовательное учреждение "Гимназия №19" | V181: Приволжский район | W181: s53n14482 | X181: 39 | Y181: 56 | AA181: 39 | AB181: участник
A182: 14732 | B182: Родной (татарский) язык для обучающихся – татар школ с русским языком обучения | C182: 53 | D182: Вахитовский район | E182: Муниципальное бюджетное общеобразовательное учреждение "Средняя общеобразовательная школа №132 с углубленным изучением иностранных языков" Ново-Савиновского района г. Казани" | F182: 581132 | G182: Гилазетдинов | H182: Булат | I182: Ильсафович | J182: М | K182: 04.12.2008 | L182: 6 | M182: 6 | N182: 42 | O182: 42 | P182: победитель | Q182: нет | R182: Шарафиева МуслимаРавиловна | S182: Родной (татарский) язык для обучающихся – татар школ с русским языком обучения | T182: 20.10.2020 | U182: Муниципальное бюджетное общеобразовательное учреждение "Средняя общеобразовательная школа №132 с углубленным изучением иностранных языков" Ново-Савиновского района г. Казани" | V182: Ново-Савиновский район | W182: s53n14417 | X182: 38 | Y182: 56 | AA182: 38 | AB182: участник
A183: 14720 | B183: Родной (татарский) язык для обучающихся – татар школ с русским языком обучения | C183: 53 | D183: Советский район | E183: Муниципальное бюджетное общеобразовательное учреждение "Средняя общеобразовательная школа № 169" Советского района г.Казани" | F183: 601169 | G183: Ситдикова | H183: Алия | I183: Ульфатовна | J183: Ж | K183: 21.06.2008 | L183: 6 | M183: 6 | N183: 42 | O183: 42 | P183: победитель | Q183: да | R183: Саликиева ВалентинаМихайловна | S183: Родной (татарский) язык для обучающихся – татар школ с русским языком обучения | T183: 20.10.2020 | U183: Муниципальное бюджетное общеобразовательное учреждение "Средняя общеобразовательная школа № 169" Советского района г.Казани" | V183: Советский район | W183: s53n14429 | X183: 38 | Y183: 56 | AA183: 38 | AB183: участник
A184: 14696 | B184: Родной (татарский) язык для обучающихся – татар школ с русским языком обучения | C184: 53 | D184: Приволжский район | E184: Муниципальное бюджетное общеобразовательное учреждение "Гимназия №155 с татарским языком обучения" Ново-Савиновского района г. Казани" | F184: 583155 | G184: Мунасипова | H184: Зиля | I184: Алмазовна | J184: Ж | K184: 28.03.2008 | L184: 6 | M184: 6 | N184: 41 | O184: 42 | P184: победитель | Q184: нет | R184: Хасанзянова МадинаХайдаровна | S184: Родной (татарский) язык для обучающихся – татар школ с русским языком обучения | T184: 20.10.2020 | U184: Муниципальное бюджетное общеобразовательное учреждение "Гимназия №155 с татарским языком обучения" Ново-Савиновского района г. Казани" | V184: Ново-Савиновский район | W184: s53n14451 | X184: 37 | Y184: 56 | AA184: 37 | AB184: участник
A185: 14687 | B185: Родной (татарский) язык для обучающихся – татар школ с русским языком обучения | C185: 53 | D185: Авиастроительный район | E185: Муниципальное бюджетное общеобразовательное учреждение "Гимназия №6" | F185: 591006 | G185: Яруллина | H185: Камилла | I185: Ниязовна | J185: Ж | K185: 04.06.2008 | L185: 6 | M185: 6 | N185: 41 | O185: 42 | P185: победитель | Q185: нет | R185: Закирова МавсияЗагитовна | S185: Родной (татарский) язык для обучающихся – татар школ с русским языком обучения | T185: 20.10.2020 | U185: Муниципальное бюджетное общеобразовательное учреждение "Гимназия №6" | V185: Приволжский район | W185: s53n14462 | X185: 37 | Y185: 56 | AA185: 37 | AB185: участник
A186: 14713 | B186: Родной (татарский) язык для обучающихся – татар школ с русским языком обучения | C186: 53 | D186: Советский район | E186: Муниципальное бюджетное общеобразователье учреждение "Многопрофильный лицей №187" | F186: 601187 | G186: Хайрутдинова | H186: Гульшат | I186: Ильшатовна | J186: Ж | K186: 10.03.2008 | L186: 6 | M186: 6 | N186: 42 | O186: 42 | P186: победитель | Q186: нет | R186: Бикмухаметова ЛейляЗульфатовна | S186: Родной (татарский) язык для обучающихся – татар школ с русским языком обучения | T186: 20.10.2020 | U186: Муниципальное бюджетное общеобразователье учреждение "Многопрофильный лицей №187" | V186: Советский район | W186: s53n14435 | X186: 36 | Y186: 56 | AA186: 36 | AB186: участник
A187: 14709 | B187: Родной (татарский) язык для обучающихся – татар школ с русским языком обучения | C187: 53 | D187: Советский район | E187: Государственное автономное общеобразовательное учреждение "Полилингвальный комплекс "Адымнар - путь к знаниям и согласию" г. Казани" | F187: 581165 | G187: Абдуллна | H187: Ралина | I187: Рустемовна | J187: Ж | K187: 13.01.2008 | L187: 6 | M187: 6 | N187: 41 | O187: 42 | P187: призер | Q187: да | R187: Хуснутдинова РаиляНурутдиновна | S187: Родной (татарский) язык для обучающихся – татар школ с русским языком обучения | T187: 20.10.2020 | U187: Государственное автономное общеобразовательное учреждение "Полилингвальный комплекс "Адымнар - путь к знаниям и согласию" г. Казани" | V187: Ново-Савиновский район | W187: s53n14439 | X187: 36 | Y187: 56 | AA187: 36 | AB187: участник
A188: 14682 | B188: Родной (татарский) язык для обучающихся – татар школ с русским языком обучения | C188: 53 | D188: Ново-Савиновский район | E188: Муниципальное бюджетное общеобразовательное учреждение "Средняя общеобразовательная школа №170 с углубленным изучением отдельных предметов" Ново-Савиновского района г. Казани" | F188: 581170 | G188: Ахметова | H188: Айзида | I188: Алмазовна | J188: Ж | K188: 15.12.2007 | L188: 6 | M188: 6 | N188: 40 | O188: 42 | P188: победитель | Q188: нет | R188: Халитова ЛилияАзатовна | S188: Родной (татарский) язык для обучающихся – татар школ с русским языком обучения | T188: 20.10.2020 | U188: Муниципальное бюджетное общеобразовательное учреждение "Средняя общеобразовательная школа №170 с углубленным изучением отдельных предметов" Ново-Савиновского района г. Казани" | V188: Ново-Савиновский район | W188: s53n14467 | X188: 36 | Y188: 56 | AA188: 36 | AB188: участник
A189: 14724 | B189: Родной (татарский) язык для обучающихся – татар школ с русским языком обучения | C189: 53 | D189: Приволжский район | E189: Муниципальное бюджетное общеобразователье учреждение "Многопрофильный лицей №187" | F189: 601187 | G189: Нуруллин | H189: Карим | I189: Рустемович | J189: М | K189: 15.12.2007 | L189: 6 | M189: 6 | N189: 42 | O189: 42 | P189: победитель | Q189: нет | R189: Бикмухаметова ЛейляЗульфатовна | S189: Родной (татарский) язык для обучающихся – татар школ с русским языком обучения | T189: 20.10.2020 | U189: Муниципальное бюджетное общеобразователье учреждение "Многопрофильный лицей №187" | V189: Советский район | W189: s53n14425 | X189: 34 | Y189: 56 | AA189: 34 | AB189: участник
A190: 14708 | B190: Родной (татарский) язык для обучающихся – татар школ с русским языком обучения | C190: 53 | D190: Приволжский район | E190: Муниципальное бюджетное общеобразовательное учреждение "Средняя общеобразовательная школа № 22 с углубленным изучением отдельных предметов - Центр образования" Советского района г.Казани" | F190: 601022 | G190: Адгамова | H190: Самира | I190: Хурматовна | J190: Ж | K190: 20.10.2008 | L190: 6 | M190: 6 | N190: 41 | O190: 42 | P190: победитель | Q190: нет | R190: Сайфутдинова ГульназИмамутдиновна | S190: Родной (татарский) язык для обучающихся – татар школ с русским языком обучения | T190: 20.10.2020 | U190: Муниципальное бюджетное общеобразовательное учреждение "Средняя общеобразовательная школа № 22 с углубленным изучением отдельных предметов - Центр образования" Советского района г.Казани" | V190: Советский район | W190: s53n14440 | X190: 34 | Y190: 56 | AA190: 34 | AB190: участник
A191: 14701 | B191: Родной (татарский) язык для обучающихся – татар школ с русским языком обучения | C191: 53 | D191: Советский район | E191: Муниципальное бюджетное общеобразовательное учреждение "Средняя общеобразовательная русско-татарская школа № 161" Советского района г.Казани" | F191: 601161 | G191: Загидуллина | H191: Алиса | I191: Ильмировна | J191: Ж | K191: 03.09.2008 | L191: 6 | M191: 6 | N191: 41 | O191: 42 | P191: победитель | Q191: нет | R191: Девятеева АнисаАнваровна | S191: Родной (татарский) язык для обучающихся – татар школ с русским языком обучения | T191: 20.10.2020 | U191: Муниципальное бюджетное общеобразовательное учреждение "Средняя общеобразовательная русско-татарская школа № 161" Советского района г.Казани" | V191: Советский район | W191: s53n14446 | X191: 33 | Y191: 56 | AA191: 33 | AB191: участник
A192: 14671 | B192: Родной (татарский) язык для обучающихся – татар школ с русским языком обучения | C192: 53 | D192: Авиастроительный район | E192: Муниципальное бюджетное общеобразовательное учреждение "Гимназия №175" Советского района г.Казани | F192: 601175 | G192: Мубаракшина | H192: Гузель | I192: Сайдашевна | J192: Ж | K192: 18.02.2008 | L192: 6 | M192: 6 | N192: 40 | O192: 42 | P192: призер | Q192: нет | R192: Мустафина АльфияВахитовна | S192: Родной (татарский) язык для обучающихся – татар школ с русским языком обучения | T192: 20.10.2020 | U192: Муниципальное бюджетное общеобразовательное учреждение "Гимназия №175" Советского района г.Казани | V192: Советский район | W192: s53n14479 | X192: 33 | Y192: 56 | AA192: 33 | AB192: участник
A193: 14657 | B193: Родной (татарский) язык для обучающихся – татар школ с русским языком обучения | C193: 53 | D193: Кировский район | E193: Муниципальное бюджетное общеобразовательное учреждение "Средняя общеобразовательная русско-татарская школа №103" Ново-Савиновского района г. Казани" | F193: 581103 | G193: Хисамутдинова | H193: Камила | I193: Ильнуровна | J193: ж | K193: 2009-01-22 | L193: 6 | M193: 6 | Q193: да | R193: Зиатдинова Нафиса Валиахметовна | U193: МБОУ «Средняя общеобразовательная русско-татарская школа №103» | V193: Ново-Савиновский район | W193: s53n14494 | X193: 33 | Y193: 56 | AA193: 33 | AB193: участник
A194: 14727 | B194: Родной (татарский) язык для обучающихся – татар школ с русским языком обучения | C194: 53 | D194: Ново-Савиновский район | E194: Муниципальное бюджетное общеобразовательное учреждение "Гимназия № 125" Советского района г.Казани" | F194: 601125 | G194: Мифтахов | H194: Камиль | I194: Азатович | J194: М | K194: 15.08.2008 | L194: 6 | M194: 6 | N194: 42 | O194: 42 | P194: победитель | Q194: нет | R194: Халилова ЭльмераШаммехаматовна | S194: Родной (татарский) язык для обучающихся – татар школ с русским языком обучения | T194: 20.10.2020 | U194: Муниципальное бюджетное общеобразовательное учреждение "Гимназия № 125" Советского района г.Казани" | V194: Советский район | W194: s53n14422 | X194: 32 | Y194: 56 | AA194: 32 | AB194: участник
A195: 14678 | B195: Родной (татарский) язык для обучающихся – татар школ с русским языком обучения | C195: 53 | D195: Ново-Савиновский район | E195: Муниципальное бюджетное общеобразовательное учреждение "Гимназия №6" | F195: 591006 | G195: Гимадиев | H195: Искандер | I195: Айдарович | J195: М | K195: 27.11.2008 | L195: 6 | M195: 6 | N195: 40 | O195: 42 | P195: призер | Q195: нет | R195: Гусманова НалияХуснулловна | S195: Родной (татарский) язык для обучающихся – татар школ с русским языком обучения | T195: 20.10.2020 | U195: Муниципальное бюджетное общеобразовательное учреждение "Гимназия №6" | V195: Приволжский район | W195: s53n14472 | X195: 32 | Y195: 56 | AA195: 32 | AB195: участник
A196: 14680 | B196: Родной (татарский) язык для обучающихся – татар школ с русским языком обучения | C196: 53 | D196: Приволжский район | E196: Муниципальное бюджетное общеобразовательное учреждение "Русско-татарская средняя общеобразовательная школа №129" | F196: 591129 | G196: Бикмуллин | H196: Ильназ | I196: Дамирович | J196: М | K196: 10.04.2008 | L196: 6 | M196: 6 | N196: 40 | O196: 42 | P196: победитель | Q196: нет | R196: Мусина ГульфияАбдулловна | S196: Родной (татарский) язык для обучающихся – татар школ с русским языком обучения | T196: 20.10.2020 | U196: Муниципальное бюджетное общеобразовательное учреждение "Русско-татарская средняя общеобразовательная школа №129" | V196: Приволжский район | W196: s53n14469 | X196: 31 | Y196: 56 | AA196: 31 | AB196: участник
A197: 14672 | B197: Родной (татарский) язык для обучающихся – татар школ с русским языком обучения | C197: 53 | D197: Авиастроительный район | E197: Муниципальное бюджетное общеобразовательное учреждение "Средняя общеобразовательная школа № 171 с углубленным изучением отдельных предметов" Советского района г.Казани | F197: 601171 | G197: Миннеханова | H197: Дина | I197: Азатовна | J197: Ж | K197: 18.06.2008 | L197: 6 | M197: 6 | N197: 40 | O197: 42 | P197: призер | Q197: нет | R197: Гарапшина ЛилияАльбертовна | S197: Родной (татарский) язык для обучающихся – татар школ с русским языком обучения | T197: 20.10.2020 | U197: Муниципальное бюджетное общеобразовательное учреждение "Средняя общеобразовательная школа № 171 с углубленным изучением отдельных предметов" Советского района г.Казани | V197: Советский район | W197: s53n14477 | X197: 31 | Y197: 56 | AA197: 31 | AB197: участник
A198: 14668 | B198: Родной (татарский) язык для обучающихся – татар школ с русским языком обучения | C198: 53 | D198: Советский район | E198: Муниципальное бюджетное общеобразовательное учреждение "Гимназия №96" | F198: 551096 | G198: Мустафина | H198: Амина | I198: Зуфаровна | J198: Ж | K198: 29.09.2008 | L198: 6 | M198: 6 | N198: 40 | O198: 42 | P198: победитель | Q198: нет | R198: Мифтахутдинова АльфияЗахраповна | S198: Родной (татарский) язык для обучающихся – татар школ с русским языком обучения | T198: 20.10.2020 | U198: Муниципальное бюджетное общеобразовательное учреждение "Гимназия №96" | V198: Вахитовский район | W198: s53n14481 | X198: 30 | Y198: 56 | AA198: 30 | AB198: участник
A199: 14710 | B199: Родной (татарский) язык для обучающихся – татар школ с русским языком обучения | C199: 53 | D199: Ново-Савиновский район | E199: Муниципальное автономное общеобразовательное учреждение - "лицей-интернат № 2" Московского района города Казани" | F199: 573001 | G199: Яруллин | H199: Салих | I199: Фаилевич | J199: М | K199: 29.09.2008 | L199: 6 | M199: 6 | N199: 42 | O199: 42 | P199: призер | Q199: нет | R199: Каримова РузияГабдулловна | S199: Родной (татарский) язык для обучающихся – татар школ с русским языком обучения | T199: 20.10.2020 | U199: Муниципальное автономное общеобразовательное учреждение - "лицей-интернат № 2" Московского района города Казани" | V199: Московский район | W199: s53n14438 | X199: 29 | Y199: 56 | AA199: 29 | AB199: участник
A200: 14669 | B200: Родной (татарский) язык для обучающихся – татар школ с русским языком обучения | C200: 53 | D200: Авиастроительный район | E200: Муниципальное автономное общеобразовательное учреждение "Гимназия №19" | F200: 591019 | G200: Мугинов | H200: Айдар | I200: Булатович | J200: М | K200: 04.03.2009 | L200: 6 | M200: 6 | N200: 40 | O200: 42 | P200: призер | Q200: нет | R200: Залялеева АлсуКотдусовна | S200: Родной (татарский) язык для обучающихся – татар школ с русским языком обучения | T200: 20.10.2020 | U200: Муниципальное автономное общеобразовательное учреждение "Гимназия №19" | V200: Приволжский район | W200: s53n14480 | X200: 29 | Y200: 56 | AA200: 29 | AB200: участник
... 357 more rows

Sheet В РОЦ
A1: Протокол
A2: № п/п | B2: Муниципалитет | C2: Полное наименование образовательного учреждения (по уставу) | D2: Фамилия | E2: Имя | F2: Отчество | G2: Класс | H2: Дата рождения | I2: Пол | J2: Балл | K2: Апеляционный балл | L2: Итоговый балл | M2: Максимальный балл | N2: Статус | O2: Фамилия, имя, отчество педагога, подготовившего участника олимпиады | P2: Полное наименование образовательного учреждения (по уставу) | Q2: Предмет
A3: 1 | B3: =Основной!D2 -> Вахитовский район | C3: =Основной!E2 -> Муниципальное бюджетное общеобразовательное учреждение "Гимназия №3" Вахитовского района г.Казани" | D3: =Основной!G2 -> Сабирзянова | E3: =Основной!H2 -> Фарида | F3: =Основной!I2 -> Ильнаровна | G3: =Основной!M2 -> 4 | H3: =Основной!K2 -> 20.12.2009 | I3: =Основной!J2 -> Ж | J3: =Основной!X2 -> 53 | K3: =IF(Основной!Z2="","",Основной!Z2) ->  | L3: =Основной!AA2 -> 53 | M3: =Основной!Y2 -> 54 | N3: =Основной!P2 -> призер | O3: =Основной!R2 -> Сабирзянова РушанияИншатовна | P3: =Основной!U2 -> Муниципальное бюджетное общеобразовательное учреждение "Гимназия №3" Вахитовского района г.Казани" | Q3: =Основной!B2 -> Родной (татарский) язык для обучающихся – татар школ с русским языком обучения
A4: 2 | B4: =Основной!D3 -> Советский район | C4: =Основной!E3 -> Муниципальное бюджетное общеобразовательное учреждение "Средняя общеобразовательная школа №170 с углубленным изучением отдельных предметов" Ново-Савиновского района г. Казани" | D4: =Основной!G3 -> Камалиева | E4: =Основной!H3 -> Камиля | F4: =Основной!I3 -> Рамилевна | G4: =Основной!M3 -> 4 | H4: =Основной!K3 -> 04.08.2010 | I4: =Основной!J3 -> Ж | J4: =Основной!X3 -> 53 | K4: =IF(Основной!Z3="","",Основной!Z3) ->  | L4: =Основной!AA3 -> 53 | M4: =Основной!Y3 -> 54 | N4: =Основной!P3 -> победитель | O4: =Основной!R3 -> Файзуллина РавияАгзамовна | P4: =Основной!U3 -> Муниципальное бюджетное общеобразовательное учреждение "Средняя общеобразовательная школа №170 с углубленным изучением отдельных предметов" Ново-Савиновского района г. Казани" | Q4: =Основной!B3 -> Родной (татарский) язык для обучающихся – татар школ с русским языком обучения
A5: 3 | B5: =Основной!D4 -> Ново-Савиновский район | C5: =Основной!E4 -> Муниципальное бюджетное общеобразовательное учреждение "Гимназия №3" Вахитовского района г.Казани" | D5: =Основной!G4 -> Халиуллин | E5: =Основной!H4 -> Искандер | F5: =Основной!I4 -> Маратович | G5: =Основной!M4 -> 4 | H5: =Основной!K4 -> 18.01.2011 | I5: =Основной!J4 -> М | J5: =Основной!X4 -> 50 | K5: =IF(Основной!Z4="","",Основной!Z4) -> 2 | L5: =Основной!AA4 -> 52 | M5: =Основной!Y4 -> 54 | N5: =Основной!P4 -> победитель | O5: =Основной!R4 -> Шайхелмарданова ДиляРашитовна | P5: =Основной!U4 -> Муниципальное бюджетное общеобразовательное учреждение "Гимназия №3" Вахитовского района г.Казани" | Q5: =Основной!B4 -> Родной (татарский) язык для обучающихся – татар школ с русским языком обучения
A6: 4 | B6: =Основной!D5 -> Приволжский район | C6: =Основной!E5 -> Муниципальное бюджетное общеобразовательное учреждение "Гимназия №175" Советского района г.Казани | D6: =Основной!G5 -> Камалова | E6: =Основной!H5 -> Айсылу | F6: =Основной!I5 -> Айратовна | G6: =Основной!M5 -> 4 | H6: =Основной!K5 -> 24.09.2010 | I6: =Основной!J5 -> Ж | J6: =Основной!X5 -> 52 | K6: =IF(Основной!Z5="","",Основной!Z5) ->  | L6: =Основной!AA5 -> 52 | M6: =Основной!Y5 -> 54 | N6: =Основной!P5 -> победитель | O6: =Основной!R5 -> Ахтямова ГульназМингалиевна | P6: =Основной!U5 -> Муниципальное бюджетное общеобразовательное учреждение "Гимназия №175" Советского района г.Казани | Q6: =Основной!B5 -> Родной (татарский) язык для обучающихся – татар школ с русским языком обучения
A7: 5 | B7: =Основной!D6 -> Советский район | C7: =Основной!E6 -> Муниципальное бюджетное общеобразовательное учреждение "Лицей № 159" Советского района г.Казани" | D7: =Основной!G6 -> Файзутдинов | E7: =Основной!H6 -> Хасан | F7: =Основной!I6 -> Русланович | G7: =Основной!M6 -> 4 | H7: =Основной!K6 -> 10.02.2010 | I7: =Основной!J6 -> М | J7: =Основной!X6 -> 52 | K7: =IF(Основной!Z6="","",Основной!Z6) ->  | L7: =Основной!AA6 -> 52 | M7: =Основной!Y6 -> 54 | N7: =Основной!P6 -> победитель | O7: =Основной!R6 -> Аскарова ДжаухарияФаритовна | P7: =Основной!U6 -> Муниципальное бюджетное общеобразовательное учреждение "Лицей № 159" Советского района г.Казани" | Q7: =Основной!B6 -> Родной (татарский) язык для обучающихся – татар школ с русским языком обучения
A8: 6 | B8: =Основной!D7 -> Советский район | C8: =Основной!E7 -> Муниципальное бюджетное общеобразовательное учреждение "Лицей №35 - образовательный центр "Галактика" Приволжского района города Казани" | D8: =Основной!G7 -> Сафина | E8: =Основной!H7 -> Камиля | F8: =Основной!I7 -> Ибрагимовна | G8: =Основной!M7 -> 4 | H8: =Основной!K7 -> 26.05.2010 | I8: =Основной!J7 -> Ж | J8: =Основной!X7 -> 51 | K8: =IF(Основной!Z7="","",Основной!Z7) ->  | L8: =Основной!AA7 -> 51 | M8: =Основной!Y7 -> 54 | N8: =Основной!P7 -> победитель | O8: =Основной!R7 -> Сафина КадрияЮлдузовна | P8: =Основной!U7 -> Муниципальное бюджетное общеобразовательное учреждение "Лицей №35 - образовательный центр "Галактика" Приволжского района города Казани" | Q8: =Основной!B7 -> Родной (татарский) язык для обучающихся – татар школ с русским языком обучения
A9: 7 | B9: =Основной!D8 -> Московский район | C9: =Основной!E8 -> Муниципальное бюджетное общеобразовательное учреждение «Средняя общеобразовательная школа с углубленным изучением отдельных предметов №184 им.М.И.Махмутова» | D9: =Основной!G8 -> Валиева | E9: =Основной!H8 -> Диана | F9: =Основной!I8 -> Данилевна | G9: =Основной!M8 -> 4 | H9: =Основной!K8 -> 26.02.2010 | I9: =Основной!J8 -> Ж | J9: =Основной!X8 -> 51 | K9: =IF(Основной!Z8="","",Основной!Z8) ->  | L9: =Основной!AA8 -> 51 | M9: =Основной!Y8 -> 54 | N9: =Основной!P8 -> победитель | O9: =Основной!R8 -> Зигангирова АлсуХалиловна | P9: =Основной!U8 -> Муниципальное бюджетное общеобразовательное учреждение «Средняя общеобразовательная школа с углубленным изучением отдельных предметов №184 им.М.И.Махмутова» | Q9: =Основной!B8 -> Родной (татарский) язык для обучающихся – татар школ с русским языком обучения
A10: 8 | B10: =Основной!D9 -> Советский район | C10: =Основной!E9 -> Муниципальное автономное общеобразовательное учреждение "Гимназия №37" Авиастроительного района г.Казани" | D10: =Основной!G9 -> Габидуллина | E10: =Основной!H9 -> Алсу | F10: =Основной!I9 -> Гулусовна | G10: =Основной!M9 -> 4 | H10: =Основной!K9 -> 02.03.2010 | I10: =Основной!J9 -> Ж | J10: =Основной!X9 -> 51 | K10: =IF(Основной!Z9="","",Основной!Z9) ->  | L10: =Основной!AA9 -> 51 | M10: =Основной!Y9 -> 54 | N10: =Основной!P9 -> победитель | O10: =Основной!R9 -> Денисова ГелюсаРашидовна | P10: =Основной!U9 -> Муниципальное автономное общеобразовательное учреждение "Гимназия №37" Авиастроительного района г.Казани" | Q10: =Основной!B9 -> Родной (татарский) язык для обучающихся – татар школ с русским языком обучения
A11: 9 | B11: =Основной!D10 -> Советский район | C11: =Основной!E10 -> Муниципальное бюджетное общеобразовательное учреждение "Многопрофильная полилингвальная гимназия №180" Советского района г. Казани" | D11: =Основной!G10 -> Шамсутдинова | E11: =Основной!H10 -> Самира | F11: =Основной!I10 -> Маратовна | G11: =Основной!M10 -> 4 | H11: =Основной!K10 -> 16.11.2010 | I11: =Основной!J10 -> Ж | J11: =Основной!X10 -> 47 | K11: =IF(Основной!Z10="","",Основной!Z10) ->  | L11: =Основной!AA10 -> 47 | M11: =Основной!Y10 -> 54 | N11: =Основной!P10 -> победитель | O11: =Основной!R10 -> Фатыхова РузиляФоатовна | P11: =Основной!U10 -> Муниципальное бюджетное общеобразовательное учреждение "Многопрофильная полилингвальная гимназия №180" Советского района г. Казани" | Q11: =Основной!B10 -> Родной (татарский) язык для обучающихся – татар школ с русским языком обучения
A12: 10 | B12: =Основной!D11 -> Советский район | C12: =Основной!E11 -> Муниципальное бюджетное общеобразовательное учреждение «Средняя общеобразовательная школа с углубленным изучением отдельных предметов №184 им.М.И.Махмутова» | D12: =Основной!G11 -> Егорова | E12: =Основной!H11 -> Ралина | F12: =Основной!I11 -> Олеговна | G12: =Основной!M11 -> 4 | H12: =Основной!K11 -> 08.10.2010 | I12: =Основной!J11 -> Ж | J12: =Основной!X11 -> 47 | K12: =IF(Основной!Z11="","",Основной!Z11) ->  | L12: =Основной!AA11 -> 47 | M12: =Основной!Y11 -> 54 | N12: =Основной!P11 -> призер | O12: =Основной!R11 -> Зигангирова АлсуХалиловна | P12: =Основной!U11 -> Муниципальное бюджетное общеобразовательное учреждение «Средняя общеобразовательная школа с углубленным изучением отдельных предметов №184 им.М.И.Махмутова» | Q12: =Основной!B11 -> Родной (татарский) язык для обучающихся – татар школ с русским языком обучения
A13: 11 | B13: =Основной!D12 -> Авиастроительный район | C13: =Основной!E12 -> Муниципальное автономное общеобразовательное учреждение "Основная общеобразовательная школа №30" Ново-Савиновского района г.Казани" | D13: =Основной!G12 -> Бадретдинова | E13: =Основной!H12 -> Лина | F13: =Основной!I12 -> Руслановна | G13: =Основной!M12 -> 4 | H13: =Основной!K12 -> 25.11.2010 | I13: =Основной!J12 -> Ж | J13: =Основной!X12 -> 46 | K13: =IF(Основной!Z12="","",Основной!Z12) ->  | L13: =Основной!AA12 -> 46 | M13: =Основной!Y12 -> 54 | N13: =Основной!P12 -> призер | O13: =Основной!R12 -> Мардеева РумияСалиховна | P13: =Основной!U12 -> Муниципальное автономное общеобразовательное учреждение "Основная общеобразовательная школа №30" Ново-Савиновского района г.Казани" | Q13: =Основной!B12 -> Родной (татарский) язык для обучающихся – татар школ с русским языком обучения
A14: 12 | B14: =Основной!D13 -> Советский район | C14: =Основной!E13 -> Муниципальное автономное общеобразовательное учреждение "Основная общеобразовательная школа №30" Ново-Савиновского района г.Казани" | D14: =Основной!G13 -> Хадиев | E14: =Основной!H13 -> Аяз | F14: =Основной!I13 -> Камилевич | G14: =Основной!M13 -> 4 | H14: =Основной!K13 -> 09.09.2010 | I14: =Основной!J13 -> М | J14: =Основной!X13 -> 46 | K14: =IF(Основной!Z13="","",Основной!Z13) ->  | L14: =Основной!AA13 -> 46 | M14: =Основной!Y13 -> 54 | N14: =Основной!P13 -> призер | O14: =Основной!R13 -> Мардеева РумияСалиховна | P14: =Основной!U13 -> Муниципальное автономное общеобразовательное учреждение "Основная общеобразовательная школа №30" Ново-Савиновского района г.Казани" | Q14: =Основной!B13 -> Родной (татарский) язык для обучающихся – татар школ с русским языком обучения
A15: 13 | B15: =Основной!D14 -> Приволжский район | C15: =Основной!E14 -> Муниципальное бюджетное общеобразовательное учреждение "Гимназия №33" Авиастроительного района г.Казани" | D15: =Основной!G14 -> Гарипова | E15: =Основной!H14 -> Камиля | F15: =Основной!I14 -> Ильфатовна | G15: =Основной!M14 -> 4 | H15: =Основной!K14 -> 19.12.2009 | I15: =Основной!J14 -> Ж | J15: =Основной!X14 -> 44 | K15: =IF(Основной!Z14="","",Основной!Z14) ->  | L15: =Основной!AA14 -> 44 | M15: =Основной!Y14 -> 54 | N15: =Основной!P14 -> победитель | O15: =Основной!R14 -> Абдрахманова ФагимаХайдаровна | P15: =Основной!U14 -> Муниципальное бюджетное общеобразовательное учреждение "Гимназия №33" Авиастроительного района г.Казани" | Q15: =Основной!B14 -> Родной (татарский) язык для обучающихся – татар школ с русским языком обучения
A16: 14 | B16: =Основной!D15 -> Вахитовский район | C16: =Основной!E15 -> Муниципальное бюджетное общеобразовательное учреждение "Лицей №35 - образовательный центр "Галактика" Приволжского района города Казани" | D16: =Основной!G15 -> Габдуллина | E16: =Основной!H15 -> Диана | F16: =Основной!I15 -> Айдаровна | G16: =Основной!M15 -> 4 | H16: =Основной!K15 -> 29.12.2009 | I16: =Основной!J15 -> Ж | J16: =Основной!X15 -> 44 | K16: =IF(Основной!Z15="","",Основной!Z15) ->  | L16: =Основной!AA15 -> 44 | M16: =Основной!Y15 -> 54 | N16: =Основной!P15 -> призер | O16: =Основной!R15 -> Сафина КадрияЮлдузовна | P16: =Основной!U15 -> Муниципальное бюджетное общеобразовательное учреждение "Лицей №35 - образовательный центр "Галактика" Приволжского района города Казани" | Q16: =Основной!B15 -> Родной (татарский) язык для обучающихся – татар школ с русским языком обучения
A17: 15 | B17: =Основной!D16 -> Советский район | C17: =Основной!E16 -> Муниципальное бюджетное общеобразовательное учреждение "Многопрофильная полилингвальная гимназия №180" Советского района г. Казани" | D17: =Основной!G16 -> Фаттахова | E17: =Основной!H16 -> Алия | F17: =Основной!I16 -> Наилевна | G17: =Основной!M16 -> 4 | H17: =Основной!K16 -> 28.01.2010 | I17: =Основной!J16 -> Ж | J17: =Основной!X16 -> 43 | K17: =IF(Основной!Z16="","",Основной!Z16) ->  | L17: =Основной!AA16 -> 43 | M17: =Основной!Y16 -> 54 | N17: =Основной!P16 -> победитель | O17: =Основной!R16 -> Ибрагимова НуранияМансуровна | P17: =Основной!U16 -> Муниципальное бюджетное общеобразовательное учреждение "Многопрофильная полилингвальная гимназия №180" Советского района г. Казани" | Q17: =Основной!B16 -> Родной (татарский) язык для обучающихся – татар школ с русским языком обучения
A18: 16 | B18: =Основной!D17 -> Московский район | C18: =Основной!E17 -> Муниципальное бюджетное общеобразовательное учреждение "Средняя общеобразовательная школа № 82 с углубленным изучением отдельных предметов им.Р.Г.Хасановой" | D18: =Основной!G17 -> Шарифуллина | E18: =Основной!H17 -> Диляра | F18: =Основной!I17 -> Айратовна | G18: =Основной!M17 -> 4 | H18: =Основной!K17 -> 30.12.2010 | I18: =Основной!J17 -> Ж | J18: =Основной!X17 -> 43 | K18: =IF(Основной!Z17="","",Основной!Z17) ->  | L18: =Основной!AA17 -> 43 | M18: =Основной!Y17 -> 54 | N18: =Основной!P17 -> победитель | O18: =Основной!R17 -> Яковлева РозаАнатольевна | P18: =Основной!U17 -> Муниципальное бюджетное общеобразовательное учреждение "Средняя общеобразовательная школа № 82 с углубленным изучением отдельных предметов им.Р.Г.Хасановой" | Q18: =Основной!B17 -> Родной (татарский) язык для обучающихся – татар школ с русским языком обучения
A19: 17 | B19: =Основной!D18 -> Советский район | C19: =Основной!E18 -> Муниципальное бюджетное общеобразовательное учреждение "Средняя общеобразовательная школа с углубленным изучением отдельных предметов №62" Авиастроительного района г.Казани" | D19: =Основной!G18 -> Шакиров | E19: =Основной!H18 -> Азамат | F19: =Основной!I18 -> Фаязович | G19: =Основной!M18 -> 4 | H19: =Основной!K18 -> 02.09.2010 | I19: =Основной!J18 -> М | J19: =Основной!X18 -> 43 | K19: =IF(Основной!Z18="","",Основной!Z18) ->  | L19: =Основной!AA18 -> 43 | M19: =Основной!Y18 -> 54 | N19: =Основной!P18 -> призер | O19: =Основной!R18 -> Ахмадиева ЭнджеЗакариевна | P19: =Основной!U18 -> Муниципальное бюджетное общеобразовательное учреждение "Средняя общеобразовательная школа с углубленным изучением отдельных предметов №62" Авиастроительного района г.Казани" | Q19: =Основной!B18 -> Родной (татарский) язык для обучающихся – татар школ с русским языком обучения
A20: 18 | B20: =Основной!D19 -> Советский район | C20: =Основной!E19 -> МБОУ "Политехнический лицей № 182" | D20: =Основной!G19 -> Нуриева | E20: =Основной!H19 -> Иделия | F20: =Основной!I19 -> Ильдаровна | G20: =Основной!M19 -> 4 | H20: =Основной!K19 -> 15.12.2009 | I20: =Основной!J19 -> Ж | J20: =Основной!X19 -> 41 | K20: =IF(Основной!Z19="","",Основной!Z19) ->  | L20: =Основной!AA19 -> 41 | M20: =Основной!Y19 -> 54 | N20: =Основной!P19 -> победитель | O20: =Основной!R19 -> Гибадуллина ЭльвираАзхатовна | P20: =Основной!U19 -> МБОУ "Политехнический лицей № 182" | Q20: =Основной!B19 -> Родной (татарский) язык для обучающихся – татар школ с русским языком обучения
A21: 19 | B21: =Основной!D20 -> Советский район | C21: =Основной!E20 -> Муниципальное бюджетное общеобразовательное учреждение "Средняя общеобразовательная школа №132 с углубленным изучением иностранных языков" Ново-Савиновского района г. Казани" | D21: =Основной!G20 -> Гильматдинов | E21: =Основной!H20 -> Азамат | F21: =Основной!I20 -> Ирекович | G21: =Основной!M20 -> 4 | H21: =Основной!K20 -> 29.07.2010 | I21: =Основной!J20 -> М | J21: =Основной!X20 -> 41 | K21: =IF(Основной!Z20="","",Основной!Z20) ->  | L21: =Основной!AA20 -> 41 | M21: =Основной!Y20 -> 54 | N21: =Основной!P20 -> победитель | O21: =Основной!R20 -> Шарафиева МуслимаРавиловна | P21: =Основной!U20 -> Муниципальное бюджетное общеобразовательное учреждение "Средняя общеобразовательная школа №132 с углубленным изучением иностранных языков" Ново-Савиновского района г. Казани" | Q21: =Основной!B20 -> Родной (татарский) язык для обучающихся – татар школ с русским языком обучения
A22: 20 | B22: =Основной!D21 -> Приволжский район | C22: =Основной!E21 -> Муниципальное автономное общеобразовательное учреждение "Гимназия №37" Авиастроительного района г.Казани" | D22: =Основной!G21 -> Гараева | E22: =Основной!H21 -> Малика | F22: =Основной!I21 -> Марселевна | G22: =Основной!M21 -> 4 | H22: =Основной!K21 -> 01.01.2010 | I22: =Основной!J21 -> Ж | J22: =Основной!X21 -> 41 | K22: =IF(Основной!Z21="","",Основной!Z21) ->  | L22: =Основной!AA21 -> 41 | M22: =Основной!Y21 -> 54 | N22: =Основной!P21 -> призер | O22: =Основной!R21 -> Ахметшина ЗиляВагизовна | P22: =Основной!U21 -> Муниципальное автономное общеобразовательное учреждение "Гимназия №37" Авиастроительного района г.Казани" | Q22: =Основной!B21 -> Родной (татарский) язык для обучающихся – татар школ с русским языком обучения
A23: 21 | B23: =Основной!D22 -> Приволжский район | C23: =Основной!E22 -> Муниципальное автономное общеобразовательное учреждение "Гимназия №37" Авиастроительного района г.Казани" | D23: =Основной!G22 -> Валиева | E23: =Основной!H22 -> Диляра | F23: =Основной!I22 -> Рамилевна | G23: =Основной!M22 -> 4 | H23: =Основной!K22 -> 05.06.2010 | I23: =Основной!J22 -> Ж | J23: =Основной!X22 -> 40 | K23: =IF(Основной!Z22="","",Основной!Z22) ->  | L23: =Основной!AA22 -> 40 | M23: =Основной!Y22 -> 54 | N23: =Основной!P22 -> победитель | O23: =Основной!R22 -> Ахметшина ЗиляВагизовна | P23: =Основной!U22 -> Муниципальное автономное общеобразовательное учреждение "Гимназия №37" Авиастроительного района г.Казани" | Q23: =Основной!B22 -> Родной (татарский) язык для обучающихся – татар школ с русским языком обучения
A24: 22 | B24: =Основной!D23 -> Кировский район | C24: =Основной!E23 -> Муниципальное автономное общеобразовательное учреждение "Гимназия №19" | D24: =Основной!G23 -> Шаймарданова | E24: =Основной!H23 -> Айгуль | F24: =Основной!I23 -> Айратовна | G24: =Основной!M23 -> 4 | H24: =Основной!K23 -> 22.09.2010 | I24: =Основной!J23 -> Ж | J24: =Основной!X23 -> 40 | K24: =IF(Основной!Z23="","",Основной!Z23) ->  | L24: =Основной!AA23 -> 40 | M24: =Основной!Y23 -> 54 | N24: =Основной!P23 -> призер | O24: =Основной!R23 -> Зинатуллина ЧулпанХабировна | P24: =Основной!U23 -> Муниципальное автономное общеобразовательное учреждение "Гимназия №19" | Q24: =Основной!B23 -> Родной (татарский) язык для обучающихся – татар школ с русским языком обучения
A25: 23 | B25: =Основной!D24 -> Вахитовский район | C25: =Основной!E24 -> Муниципальное бюджетное общеобразовательное учреждение "Многопрофильная полилингвальная гимназия №180" Советского района г. Казани" | D25: =Основной!G24 -> Ахметова | E25: =Основной!H24 -> Самира | F25: =Основной!I24 -> Расиховна | G25: =Основной!M24 -> 4 | H25: =Основной!K24 -> 13.10.2010 | I25: =Основной!J24 -> Ж | J25: =Основной!X24 -> 39 | K25: =IF(Основной!Z24="","",Основной!Z24) ->  | L25: =Основной!AA24 -> 39 | M25: =Основной!Y24 -> 54 | N25: =Основной!P24 -> победитель | O25: =Основной!R24 -> Ибрагимова НуранияМансуровна | P25: =Основной!U24 -> Муниципальное бюджетное общеобразовательное учреждение "Многопрофильная полилингвальная гимназия №180" Советского района г. Казани" | Q25: =Основной!B24 -> Родной (татарский) язык для обучающихся – татар школ с русским языком обучения
A26: 24 | B26: =Основной!D25 -> Приволжский район | C26: =Основной!E25 -> Муниципальное автономное общеобразовательное учреждение "Гимназия №19" | D26: =Основной!G25 -> Ахтямова | E26: =Основной!H25 -> Рамина | F26: =Основной!I25 -> Рустемовна | G26: =Основной!M25 -> 4 | H26: =Основной!K25 -> 18.08.2010 | I26: =Основной!J25 -> Ж | J26: =Основной!X25 -> 39 | K26: =IF(Основной!Z25="","",Основной!Z25) ->  | L26: =Основной!AA25 -> 39 | M26: =Основной!Y25 -> 54 | N26: =Основной!P25 -> победитель | O26: =Основной!R25 -> Зинатуллина ЧулпанХабировна | P26: =Основной!U25 -> Муниципальное автономное общеобразовательное учреждение "Гимназия №19" | Q26: =Основной!B25 -> Родной (татарский) язык для обучающихся – татар школ с русским языком обучения
A27: 25 | B27: =Основной!D26 -> Приволжский район | C27: =Основной!E26 -> Муниципальное бюджетное общеобразовательное учреждение "Многопрофильная полилингвальная гимназия №180" Советского района г. Казани" | D27: =Основной!G26 -> Сунгатуллина | E27: =Основной!H26 -> Ралина | F27: =Основной!I26 -> Рамилевна | G27: =Основной!M26 -> 4 | H27: =Основной!K26 -> 19.07.2010 | I27: =Основной!J26 -> Ж | J27: =Основной!X26 -> 38 | K27: =IF(Основной!Z26="","",Основной!Z26) ->  | L27: =Основной!AA26 -> 38 | M27: =Основной!Y26 -> 54 | N27: =Основной!P26 -> победитель | O27: =Основной!R26 -> Ибрагимова НуранияМансуровна | P27: =Основной!U26 -> Муниципальное бюджетное общеобразовательное учреждение "Многопрофильная полилингвальная гимназия №180" Советского района г. Казани" | Q27: =Основной!B26 -> Родной (татарский) язык для обучающихся – татар школ с русским языком обучения
A28: 26 | B28: =Основной!D27 -> Приволжский район | C28: =Основной!E27 -> Муниципальное автономное общеобразовательное учреждение "Лицей №146 "Ресурс" Ново-Савиновского района г. Казани" | D28: =Основной!G27 -> Галимова | E28: =Основной!H27 -> Наргиза | F28: =Основной!I27 -> Булатовна | G28: =Основной!M27 -> 4 | H28: =Основной!K27 -> 08.07.2010 | I28: =Основной!J27 -> Ж | J28: =Основной!X27 -> 38 | K28: =IF(Основной!Z27="","",Основной!Z27) ->  | L28: =Основной!AA27 -> 38 | M28: =Основной!Y27 -> 54 | N28: =Основной!P27 -> победитель | O28: =Основной!R27 -> Сайфутдинова ЧулпанДаниловна | P28: =Основной!U27 -> Муниципальное автономное общеобразовательное учреждение "Лицей №146 "Ресурс" Ново-Савиновского района г. Казани" | Q28: =Основной!B27 -> Родной (татарский) язык для обучающихся – татар школ с русским языком обучения
A29: 27 | B29: =Основной!D28 -> Советский район | C29: =Основной!E28 -> Муниципальное бюджетное общеобразовательное учреждение "Гимназия№52" | D29: =Основной!G28 -> Зиннатуллина | E29: =Основной!H28 -> Зиля | F29: =Основной!I28 -> Рафаилевна | G29: =Основной!M28 -> 4 | H29: =Основной!K28 -> 12.02.2010 | I29: =Основной!J28 -> Ж | J29: =Основной!X28 -> 38 | K29: =IF(Основной!Z28="","",Основной!Z28) ->  | L29: =Основной!AA28 -> 38 | M29: =Основной!Y28 -> 54 | N29: =Основной!P28 -> победитель | O29: =Основной!R28 -> Шафигуллина СиринаИльдусовна | P29: =Основной!U28 -> Муниципальное бюджетное общеобразовательное учреждение "Гимназия№52" | Q29: =Основной!B28 -> Родной (татарский) язык для обучающихся – татар школ с русским языком обучения
A30: 28 | B30: =Основной!D29 -> Советский район | C30: =Основной!E29 -> Муниципальное бюджетное общеобразовательное учреждение "Гимназия №6" | D30: =Основной!G29 -> Каримова | E30: =Основной!H29 -> Амина | F30: =Основной!I29 -> Азатовна | G30: =Основной!M29 -> 4 | H30: =Основной!K29 -> 08.07.2010 | I30: =Основной!J29 -> Ж | J30: =Основной!X29 -> 38 | K30: =IF(Основной!Z29="","",Основной!Z29) ->  | L30: =Основной!AA29 -> 38 | M30: =Основной!Y29 -> 54 | N30: =Основной!P29 -> победитель | O30: =Основной!R29 -> Гильманова ЭльмираХайдаровна | P30: =Основной!U29 -> Муниципальное бюджетное общеобразовательное учреждение "Гимназия №6" | Q30: =Основной!B29 -> Родной (татарский) язык для обучающихся – татар школ с русским языком обучения
A31: 29 | B31: =Основной!D30 -> Приволжский район | C31: =Основной!E30 -> Муниципальное бюджетное общеобразовательное учреждение "Многопрофильная полилингвальная гимназия №180" Советского района г. Казани" | D31: =Основной!G30 -> Шакирова | E31: =Основной!H30 -> Надира | F31: =Основной!I30 -> Ильнаровна | G31: =Основной!M30 -> 4 | H31: =Основной!K30 -> 21.08.2010 | I31: =Основной!J30 -> Ж | J31: =Основной!X30 -> 37 | K31: =IF(Основной!Z30="","",Основной!Z30) ->  | L31: =Основной!AA30 -> 37 | M31: =Основной!Y30 -> 54 | N31: =Основной!P30 -> победитель | O31: =Основной!R30 -> Ибрагимова НуранияМансуровна | P31: =Основной!U30 -> Муниципальное бюджетное общеобразовательное учреждение "Многопрофильная полилингвальная гимназия №180" Советского района г. Казани" | Q31: =Основной!B30 -> Родной (татарский) язык для обучающихся – татар школ с русским языком обучения
A32: 30 | B32: =Основной!D31 -> Приволжский район | C32: =Основной!E31 -> Муниципальное бюджетное общеобразовательное учреждение "Средняя общеобразовательная школа № 171 с углубленным изучением отдельных предметов" Советского района г.Казани | D32: =Основной!G31 -> Хасанова | E32: =Основной!H31 -> Азалия | F32: =Основной!I31 -> Ирековна | G32: =Основной!M31 -> 4 | H32: =Основной!K31 -> 15.06.2010 | I32: =Основной!J31 -> Ж | J32: =Основной!X31 -> 37 | K32: =IF(Основной!Z31="","",Основной!Z31) ->  | L32: =Основной!AA31 -> 37 | M32: =Основной!Y31 -> 54 | N32: =Основной!P31 -> победитель | O32: =Основной!R31 -> Гумарова ГалинаАлександровна | P32: =Основной!U31 -> Муниципальное бюджетное общеобразовательное учреждение "Средняя общеобразовательная школа № 171 с углубленным изучением отдельных предметов" Советского района г.Казани | Q32: =Основной!B31 -> Родной (татарский) язык для обучающихся – татар школ с русским языком обучения
A33: 31 | B33: =Основной!D32 -> Московский район | C33: =Основной!E32 -> Муниципальное бюджетное общеобразовательное учреждение "Русско-татарская средняя общеобразовательная школа №129" | D33: =Основной!G32 -> Хасанова | E33: =Основной!H32 -> Аделина | F33: =Основной!I32 -> Рамилевна | G33: =Основной!M32 -> 4 | H33: =Основной!K32 -> 28.07.2010 | I33: =Основной!J32 -> Ж | J33: =Основной!X32 -> 36 | K33: =IF(Основной!Z32="","",Основной!Z32) ->  | L33: =Основной!AA32 -> 36 | M33: =Основной!Y32 -> 54 | N33: =Основной!P32 -> победитель | O33: =Основной!R32 -> Исмагилова РамзияТалгатовна | P33: =Основной!U32 -> Муниципальное бюджетное общеобразовательное учреждение "Русско-татарская средняя общеобразовательная школа №129" | Q33: =Основной!B32 -> Родной (татарский) язык для обучающихся – татар школ с русским языком обучения
A34: 32 | B34: =Основной!D33 -> Вахитовский район | C34: =Основной!E33 -> Муниципальное бюджетное общеобразовательное учреждение "Русско-татарская средняя общеобразовательная школа №129" | D34: =Основной!G33 -> Закирова | E34: =Основной!H33 -> Адиля | F34: =Основной!I33 -> Ильнуровна | G34: =Основной!M33 -> 4 | H34: =Основной!K33 -> 05.11.2009 | I34: =Основной!J33 -> Ж | J34: =Основной!X33 -> 36 | K34: =IF(Основной!Z33="","",Основной!Z33) ->  | L34: =Основной!AA33 -> 36 | M34: =Основной!Y33 -> 54 | N34: =Основной!P33 -> победитель | O34: =Основной!R33 -> Исмагилова РамзияТалгатовна | P34: =Основной!U33 -> Муниципальное бюджетное общеобразовательное учреждение "Русско-татарская средняя общеобразовательная школа №129" | Q34: =Основной!B33 -> Родной (татарский) язык для обучающихся – татар школ с русским языком обучения
A35: 33 | B35: =Основной!D34 -> Кировский район | C35: =Основной!E34 -> Муниципальное бюджетное общеобразовательное учреждение "Средняя общеобразовательная школа №73" | D35: =Основной!G34 -> Гиззатуллина | E35: =Основной!H34 -> Алина | F35: =Основной!I34 -> Фаридовна | G35: =Основной!M34 -> 4 | H35: =Основной!K34 -> 24.07.2010 | I35: =Основной!J34 -> Ж | J35: =Основной!X34 -> 35 | K35: =IF(Основной!Z34="","",Основной!Z34) ->  | L35: =Основной!AA34 -> 35 | M35: =Основной!Y34 -> 54 | N35: =Основной!P34 -> победитель | O35: =Основной!R34 -> Арсланова АнисаДаулиевна | P35: =Основной!U34 -> Муниципальное бюджетное общеобразовательное учреждение "Средняя общеобразовательная школа №73" | Q35: =Основной!B34 -> Родной (татарский) язык для обучающихся – татар школ с русским языком обучения
A36: 34 | B36: =Основной!D35 -> Приволжский район | C36: =Основной!E35 -> Муниципальное бюджетное общеобразовательное учреждение "Средняя общеобразовательная школа №70 с углубленным изучениемотдельных предметов" Кировского района г. Казани" | D36: =Основной!G35 -> Нурмиева | E36: =Основной!H35 -> Диляра | F36: =Основной!I35 -> Ильфатовна | G36: =Основной!M35 -> 4 | H36: =Основной!K35 -> 28.01.1900 | I36: =Основной!J35 -> Ж | J36: =Основной!X35 -> 35 | K36: =IF(Основной!Z35="","",Основной!Z35) ->  | L36: =Основной!AA35 -> 35 | M36: =Основной!Y35 -> 54 | N36: =Основной!P35 -> победитель | O36: =Основной!R35 -> Хафизова ГулияСаматовна | P36: =Основной!U35 -> Муниципальное бюджетное общеобразовательное учреждение "Средняя общеобразовательная школа №70 с углубленным изучениемотдельных предметов" Кировского района г. Казани" | Q36: =Основной!B35 -> Родной (татарский) язык для обучающихся – татар школ с русским языком обучения
A37: 35 | B37: =Основной!D36 -> Советский район | C37: =Основной!E36 -> Муниципальное бюджетное общеобразовательное учреждение "Гимназия №96" | D37: =Основной!G36 -> Гайнуллина | E37: =Основной!H36 -> Азалия | F37: =Основной!I36 -> Маратовна | G37: =Основной!M36 -> 4 | H37: =Основной!K36 -> 02.06.2010 | I37: =Основной!J36 -> Ж | J37: =Основной!X36 -> 34 | K37: =IF(Основной!Z36="","",Основной!Z36) ->  | L37: =Основной!AA36 -> 34 | M37: =Основной!Y36 -> 54 | N37: =Основной!P36 -> победитель | O37: =Основной!R36 -> Мифтахутдинова АльфияЗахраповна | P37: =Основной!U36 -> Муниципальное бюджетное общеобразовательное учреждение "Гимназия №96" | Q37: =Основной!B36 -> Родной (татарский) язык для обучающихся – татар школ с русским языком обучения
A38: 36 | B38: =Основной!D37 -> Приволжский район | C38: =Основной!E37 -> Муниципальное бюджетное общеобразовательное учреждение "Гимназия № 125" Советского района г.Казани" | D38: =Основной!G37 -> Галиуллина | E38: =Основной!H37 -> Алина | F38: =Основной!I37 -> Витальевна | G38: =Основной!M37 -> 4 | H38: =Основной!K37 -> 13.12.2009 | I38: =Основной!J37 -> Ж | J38: =Основной!X37 -> 32 | K38: =IF(Основной!Z37="","",Основной!Z37) ->  | L38: =Основной!AA37 -> 32 | M38: =Основной!Y37 -> 54 | N38: =Основной!P37 -> победитель | O38: =Основной!R37 -> Халилова ЭльмераШаммехаматовна | P38: =Основной!U37 -> Муниципальное бюджетное общеобразовательное учреждение "Гимназия № 125" Советского района г.Казани" | Q38: =Основной!B37 -> Родной (татарский) язык для обучающихся – татар школ с русским языком обучения
A39: 37 | B39: =Основной!D38 -> Советский район | C39: =Основной!E38 -> Муниципальное бюджетное общеобразовательное учреждение "Гимназия №175" Советского района г.Казани | D39: =Основной!G38 -> Шакирова | E39: =Основной!H38 -> Зиля | F39: =Основной!I38 -> Ниязовна | G39: =Основной!M38 -> 4 | H39: =Основной!K38 -> 05.03.2010 | I39: =Основной!J38 -> Ж | J39: =Основной!X38 -> 31 | K39: =IF(Основной!Z38="","",Основной!Z38) ->  | L39: =Основной!AA38 -> 31 | M39: =Основной!Y38 -> 54 | N39: =Основной!P38 -> победитель | O39: =Основной!R38 -> Ахтямова ГульназМингалиевна | P39: =Основной!U38 -> Муниципальное бюджетное общеобразовательное учреждение "Гимназия №175" Советского района г.Казани | Q39: =Основной!B38 -> Родной (татарский) язык для обучающихся – татар школ с русским языком обучения
A40: 38 | B40: =Основной!D39 -> Кировский район | C40: =Основной!E39 -> Муниципальное автономное общеобразовательное учреждение "Гимназия №19" | D40: =Основной!G39 -> Мухаметгалиева | E40: =Основной!H39 -> Саида | F40: =Основной!I39 -> Маратовна | G40: =Основной!M39 -> 4 | H40: =Основной!K39 -> 03.01.2011 | I40: =Основной!J39 -> Ж | J40: =Основной!X39 -> 30 | K40: =IF(Основной!Z39="","",Основной!Z39) ->  | L40: =Основной!AA39 -> 30 | M40: =Основной!Y39 -> 54 | N40: =Основной!P39 -> призер | O40: =Основной!R39 -> Залялеева АлсуКотдусовна | P40: =Основной!U39 -> Муниципальное автономное общеобразовательное учреждение "Гимназия №19" | Q40: =Основной!B39 -> Родной (татарский) язык для обучающихся – татар школ с русским языком обучения
A41: 39 | B41: =Основной!D40 -> Вахитовский район | C41: =Основной!E40 -> Муниципальное бюджетное общеобразовательное учреждение "Средняя общеобразовательная русско-татарская школа № 161" Советского района г.Казани" | D41: =Основной!G40 -> Фаизова | E41: =Основной!H40 -> Алина | F41: =Основной!I40 -> Ниязовна | G41: =Основной!M40 -> 4 | H41: =Основной!K40 -> 27.06.2010 | I41: =Основной!J40 -> Ж | J41: =Основной!X40 -> 30 | K41: =IF(Основной!Z40="","",Основной!Z40) ->  | L41: =Основной!AA40 -> 30 | M41: =Основной!Y40 -> 54 | N41: =Основной!P40 -> призер | O41: =Основной!R40 -> Девятеева АнисаАнваровна | P41: =Основной!U40 -> Муниципальное бюджетное общеобразовательное учреждение "Средняя общеобразовательная русско-татарская школа № 161" Советского района г.Казани" | Q41: =Основной!B40 -> Родной (татарский) язык для обучающихся – татар школ с русским языком обучения
A42: 40 | B42: =Основной!D41 -> Кировский район | C42: =Основной!E41 -> Муниципальное бюджетное общеобразовательное учреждение "Средняя общеобразовательная школа № 54 с углубленным изучением отдельных предметов" Авиастроительного района г.Казани" | D42: =Основной!G41 -> Закирзянов | E42: =Основной!H41 -> Райнур | F42: =Основной!I41 -> Ильнарович | G42: =Основной!M41 -> 4 | H42: =Основной!K41 -> 06.10.2010 | I42: =Основной!J41 -> М | J42: =Основной!X41 -> 29 | K42: =IF(Основной!Z41="","",Основной!Z41) ->  | L42: =Основной!AA41 -> 29 | M42: =Основной!Y41 -> 54 | N42: =Основной!P41 -> призер | O42: =Основной!R41 -> Мубаракшина ЗухраМаксутовна | P42: =Основной!U41 -> Муниципальное бюджетное общеобразовательное учреждение "Средняя общеобразовательная школа № 54 с углубленным изучением отдельных предметов" Авиастроительного района г.Казани" | Q42: =Основной!B41 -> Родной (татарский) язык для обучающихся – татар школ с русским языком обучения
A43: 41 | B43: =Основной!D42 -> Приволжский район | C43: =Основной!E42 -> Муниципальное бюджетное общеобразовательное учреждение «Многопрофильный лицей №186 - "Перспектива" Приволжского района г. Казани | D43: =Основной!G42 -> Сафина | E43: =Основной!H42 -> Зарина | F43: =Основной!I42 -> Алмазовна | G43: =Основной!M42 -> 4 | H43: =Основной!K42 -> 07.10.2009 | I43: =Основной!J42 -> Ж | J43: =Основной!X42 -> 28 | K43: =IF(Основной!Z42="","",Основной!Z42) ->  | L43: =Основной!AA42 -> 28 | M43: =Основной!Y42 -> 54 | N43: =Основной!P42 -> победитель | O43: =Основной!R42 -> Фазлыева АлсуФаритовна | P43: =Основной!U42 -> Муниципальное бюджетное общеобразовательное учреждение «Многопрофильный лицей №186 - "Перспектива" Приволжского района г. Казани | Q43: =Основной!B42 -> Родной (татарский) язык для обучающихся – татар школ с русским языком обучения
A44: 42 | B44: =Основной!D43 -> Советский район | C44: =Основной!E43 -> Муниципальное бюджетное общеобразовательное учреждение "Средняя общеобразовательная русско-татарская школа № 161" Советского района г.Казани" | D44: =Основной!G43 -> Халимова | E44: =Основной!H43 -> Мадина | F44: =Основной!I43 -> Ильдаровна | G44: =Основной!M43 -> 4 | H44: =Основной!K43 -> 23.03.2010 | I44: =Основной!J43 -> Ж | J44: =Основной!X43 -> 26 | K44: =IF(Основной!Z43="","",Основной!Z43) ->  | L44: =Основной!AA43 -> 26 | M44: =Основной!Y43 -> 54 | N44: =Основной!P43 -> победитель | O44: =Основной!R43 -> Девятеева АнисаАнваровна | P44: =Основной!U43 -> Муниципальное бюджетное общеобразовательное учреждение "Средняя общеобразовательная русско-татарская школа № 161" Советского района г.Казани" | Q44: =Основной!B43 -> Родной (татарский) язык для обучающихся – татар школ с русским языком обучения
A45: 43 | B45: =Основной!D44 -> Приволжский район | C45: =Основной!E44 -> Муниципальное бюджетное общеобразовательное учреждение "Средняя общеобразовательная школа № 144 с углубленным изучением отдельных предметов" Советского района г.Казани" | D45: =Основной!G44 -> Валиева | E45: =Основной!H44 -> Алия | F45: =Основной!I44 -> Алмазовна | G45: =Основной!M44 -> 4 | H45: =Основной!K44 -> 17.02.2010 | I45: =Основной!J44 -> Ж | J45: =Основной!X44 -> 25 | K45: =IF(Основной!Z44="","",Основной!Z44) ->  | L45: =Основной!AA44 -> 25 | M45: =Основной!Y44 -> 54 | N45: =Основной!P44 -> победитель | O45: =Основной!R44 -> Курманова АйсылуШаукатовна | P45: =Основной!U44 -> Муниципальное бюджетное общеобразовательное учреждение "Средняя общеобразовательная школа № 144 с углубленным изучением отдельных предметов" Советского района г.Казани" | Q45: =Основной!B44 -> Родной (татарский) язык для обучающихся – татар школ с русским языком обучения
A46: 44 | B46: =Основной!D45 -> Приволжский район | C46: =Основной!E45 -> Муниципальное бюджетное общеобразовательное учреждение "Средняя общеобразовательная школа с углубленным изучением отдельных предметов №62" Авиастроительного района г.Казани" | D46: =Основной!G45 -> Валитова | E46: =Основной!H45 -> Венера | F46: =Основной!I45 -> Ильдаровна | G46: =Основной!M45 -> 4 | H46: =Основной!K45 -> 14.05.2010 | I46: =Основной!J45 -> Ж | J46: =Основной!X45 -> 25 | K46: =IF(Основной!Z45="","",Основной!Z45) ->  | L46: =Основной!AA45 -> 25 | M46: =Основной!Y45 -> 54 | N46: =Основной!P45 -> победитель | O46: =Основной!R45 -> Ибрагимова ЭнджеСалимовна | P46: =Основной!U45 -> Муниципальное бюджетное общеобразовательное учреждение "Средняя общеобразовательная школа с углубленным изучением отдельных предметов №62" Авиастроительного района г.Казани" | Q46: =Основной!B45 -> Родной (татарский) язык для обучающихся – татар школ с русским языком обучения
A47: 45 | B47: =Основной!D46 -> Советский район | C47: =Основной!E46 -> Муниципальное бюджетное общеобразовательное учреждение "Гимназия № 90" Советского района г.Казани" | D47: =Основной!G46 -> Хусайнов | E47: =Основной!H46 -> Карим | F47: =Основной!I46 -> Русланович | G47: =Основной!M46 -> 4 | H47: =Основной!K46 -> 04.10.2010 | I47: =Основной!J46 -> М | J47: =Основной!X46 -> 25 | K47: =IF(Основной!Z46="","",Основной!Z46) ->  | L47: =Основной!AA46 -> 25 | M47: =Основной!Y46 -> 54 | N47: =Основной!P46 -> победитель | O47: =Основной!R46 -> Насипова ЛейлаРаисовна | P47: =Основной!U46 -> Муниципальное бюджетное общеобразовательное учреждение "Гимназия № 90" Советского района г.Казани" | Q47: =Основной!B46 -> Родной (татарский) язык для обучающихся – татар школ с русским языком обучения
A48: 46 | B48: =Основной!D47 -> Приволжский район | C48: =Основной!E47 -> Муниципальное бюджетное общеобразовательное учреждение "Гимназия № 90" Советского района г.Казани" | D48: =Основной!G47 -> Хафизова | E48: =Основной!H47 -> Жаннет | F48: =Основной!I47 -> Линаровна | G48: =Основной!M47 -> 4 | H48: =Основной!K47 -> 25.06.2010 | I48: =Основной!J47 -> Ж | J48: =Основной!X47 -> 25 | K48: =IF(Основной!Z47="","",Основной!Z47) ->  | L48: =Основной!AA47 -> 25 | M48: =Основной!Y47 -> 54 | N48: =Основной!P47 -> призер | O48: =Основной!R47 -> Насипова ЛейлаРаисовна | P48: =Основной!U47 -> Муниципальное бюджетное общеобразовательное учреждение "Гимназия № 90" Советского района г.Казани" | Q48: =Основной!B47 -> Родной (татарский) язык для обучающихся – татар школ с русским языком обучения
A49: 47 | B49: =Основной!D48 -> Приволжский район | C49: =Основной!E48 -> Муниципальное бюджетное общеобразовательное учреждение "Средняя общеобразовательная русско-татарская школа №103" Ново-Савиновского района г. Казани" | D49: =Основной!G48 -> Бикинеев | E49: =Основной!H48 -> Амир | F49: =Основной!I48 -> Айратович | G49: =Основной!M48 -> 4 | H49: =Основной!K48 -> 16.06.2010 | I49: =Основной!J48 -> М | J49: =Основной!X48 -> 23 | K49: =IF(Основной!Z48="","",Основной!Z48) ->  | L49: =Основной!AA48 -> 23 | M49: =Основной!Y48 -> 54 | N49: =Основной!P48 -> победитель | O49: =Основной!R48 -> Хайрутдинова АйгульХамитовна | P49: =Основной!U48 -> Муниципальное бюджетное общеобразовательное учреждение "Средняя общеобразовательная русско-татарская школа №103" Ново-Савиновского района г. Казани" | Q49: =Основной!B48 -> Родной (татарский) язык для обучающихся – татар школ с русским языком обучения
A50: 48 | B50: =Основной!D49 -> Приволжский район | C50: =Основной!E49 -> Муниципальное автономное общеобразовательное учреждение "Лицей №121 имени Героя Советского Союза С.А.Ахтямова" Советского района г.Казани | D50: =Основной!G49 -> Исмагилов | E50: =Основной!H49 -> Амир | F50: =Основной!I49 -> Алмазович | G50: =Основной!M49 -> 4 | H50: =Основной!K49 -> 18.06.2010 | I50: =Основной!J49 -> М | J50: =Основной!X49 -> 23 | K50: =IF(Основной!Z49="","",Основной!Z49) ->  | L50: =Основной!AA49 -> 23 | M50: =Основной!Y49 -> 54 | N50: =Основной!P49 -> победитель | O50: =Основной!R49 -> Шигапова ЛюцияГосмановна | P50: =Основной!U49 -> Муниципальное автономное общеобразовательное учреждение "Лицей №121 имени Героя Советского Союза С.А.Ахтямова" Советского района г.Казани | Q50: =Основной!B49 -> Родной (татарский) язык для обучающихся – татар школ с русским языком обучения
A51: 49 | B51: =Основной!D50 -> Советский район | C51: =Основной!E50 -> Муниципальное бюджетное общеобразовательное учреждение "Средняя общеобразовательная школа № 174" Советского района г.Казани" | D51: =Основной!G50 -> Шахиева | E51: =Основной!H50 -> Айзиля | F51: =Основной!I50 -> Алмазовна | G51: =Основной!M50 -> 4 | H51: =Основной!K50 -> 06.10.2010 | I51: =Основной!J50 -> Ж | J51: =Основной!X50 -> 23 | K51: =IF(Основной!Z50="","",Основной!Z50) ->  | L51: =Основной!AA50 -> 23 | M51: =Основной!Y50 -> 54 | N51: =Основной!P50 -> победитель | O51: =Основной!R50 -> Гулькеева РазимяРахимулловна | P51: =Основной!U50 -> Муниципальное бюджетное общеобразовательное учреждение "Средняя общеобразовательная школа № 174" Советского района г.Казани" | Q51: =Основной!B50 -> Родной (татарский) язык для обучающихся – татар школ с русским языком обучения
A52: 50 | B52: =Основной!D51 -> Советский район | C52: =Основной!E51 -> Муниципальное бюджетное общеобразовательное учреждение "Средняя общеобразовательная русско-татарская школа № 161" Советского района г.Казани" | D52: =Основной!G51 -> Хасанов | E52: =Основной!H51 -> Зиннур | F52: =Основной!I51 -> Азатович | G52: =Основной!M51 -> 4 | H52: =Основной!K51 -> 22.12.2009 | I52: =Основной!J51 -> М | J52: =Основной!X51 -> 21 | K52: =IF(Основной!Z51="","",Основной!Z51) ->  | L52: =Основной!AA51 -> 21 | M52: =Основной!Y51 -> 54 | N52: =Основной!P51 -> призер | O52: =Основной!R51 -> Девятеева АнисаАнваровна | P52: =Основной!U51 -> Муниципальное бюджетное общеобразовательное учреждение "Средняя общеобразовательная русско-татарская школа № 161" Советского района г.Казани" | Q52: =Основной!B51 -> Родной (татарский) язык для обучающихся – татар школ с русским языком обучения
A53: 51 | B53: =Основной!D52 -> Приволжский район | C53: =Основной!E52 -> Муниципальное бюджетное общеобразовательное учреждение "Многопрофильная школа №181" Советского района г. Казани" | D53: =Основной!G52 -> Кадырова | E53: =Основной!H52 -> Адиля | F53: =Основной!I52 -> Айратовна | G53: =Основной!M52 -> 4 | H53: =Основной!K52 -> 11.02.2010 | I53: =Основной!J52 -> Ж | J53: =Основной!X52 -> 20 | K53: =IF(Основной!Z52="","",Основной!Z52) ->  | L53: =Основной!AA52 -> 20 | M53: =Основной!Y52 -> 54 | N53: =Основной!P52 -> победитель | O53: =Основной!R52 -> Насыбуллина АлсуИльдаровна | P53: =Основной!U52 -> Муниципальное бюджетное общеобразовательное учреждение "Многопрофильная школа №181" Советского района г. Казани" | Q53: =Основной!B52 -> Родной (татарский) язык для обучающихся – татар школ с русским языком обучения
A54: 52 | B54: =Основной!D53 -> Советский район | C54: =Основной!E53 -> Муниципальное автономное общеобразовательное учреждение "Гимназия №141" Советского района г.Казани | D54: =Основной!G53 -> Шайдуллина | E54: =Основной!H53 -> Амина | F54: =Основной!I53 -> Айратовна | G54: =Основной!M53 -> 4 | H54: =Основной!K53 -> 31.10.2010 | I54: =Основной!J53 -> Ж | J54: =Основной!X53 -> 19 | K54: =IF(Основной!Z53="","",Основной!Z53) ->  | L54: =Основной!AA53 -> 19 | M54: =Основной!Y53 -> 54 | N54: =Основной!P53 -> победитель | O54: =Основной!R53 -> Сунгатуллина РузиляФаизовна | P54: =Основной!U53 -> Муниципальное автономное общеобразовательное учреждение "Гимназия №141" Советского района г.Казани | Q54: =Основной!B53 -> Родной (татарский) язык для обучающихся – татар школ с русским языком обучения
A55: 53 | B55: =Основной!D54 -> Приволжский район | C55: =Основной!E54 -> Муниципальное бюджетное общеобразовательное учреждение "Лицей №83 - Центр образования" | D55: =Основной!G54 -> Аюпова | E55: =Основной!H54 -> Кадрия | F55: =Основной!I54 -> Ринатовна | G55: =Основной!M54 -> 4 | H55: =Основной!K54 -> 25.10.2010 | I55: =Основной!J54 -> М | J55: =Основной!X54 -> 15 | K55: =IF(Основной!Z54="","",Основной!Z54) ->  | L55: =Основной!AA54 -> 15 | M55: =Основной!Y54 -> 54 | N55: =Основной!P54 -> победитель | O55: =Основной!R54 -> Сафина ГульназВасиловна | P55: =Основной!U54 -> Муниципальное бюджетное общеобразовательное учреждение "Лицей №83 - Центр образования" | Q55: =Основной!B54 -> Родной (татарский) язык для обучающихся – татар школ с русским языком обучения
A56: 54 | B56: =Основной!D55 -> Советский район | C56: =Основной!E55 -> Муниципальное бюджетное общеобразовательное учреждение "Средняя общеобразовательная русско-татарская школа №103" Ново-Савиновского района г. Казани" | D56: =Основной!G55 -> Мифтахова | E56: =Основной!H55 -> Асылъяр | F56: =Основной!I55 -> Рушановна | G56: =Основной!M55 -> 4 | H56: =Основной!K55 -> 05.05.2010 | I56: =Основной!J55 -> Ж | J56: =Основной!X55 -> 14 | K56: =IF(Основной!Z55="","",Основной!Z55) ->  | L56: =Основной!AA55 -> 14 | M56: =Основной!Y55 -> 54 | N56: =Основной!P55 -> призер | O56: =Основной!R55 -> Хайрутдинова АйгульХамитовна | P56: =Основной!U55 -> Муниципальное бюджетное общеобразовательное учреждение "Средняя общеобразовательная русско-татарская школа №103" Ново-Савиновского района г. Казани" | Q56: =Основной!B55 -> Родной (татарский) язык для обучающихся – татар школ с русским языком обучения
A57: 55 | B57: =Основной!D56 -> Советский район | C57: =Основной!E56 -> Муниципальное бюджетное общеобразовательное учреждение "Средняя общеобразовательная школа № 171 с углубленным изучением отдельных предметов" Советского района г.Казани | D57: =Основной!G56 -> Миннуллина | E57: =Основной!H56 -> Адиля | F57: =Основной!I56 -> Рифатовна | G57: =Основной!M56 -> 5 | H57: =Основной!K56 -> 20.08.2009 | I57: =Основной!J56 -> Ж | J57: =Основной!X56 -> 53 | K57: =IF(Основной!Z56="","",Основной!Z56) ->  | L57: =Основной!AA56 -> 53 | M57: =Основной!Y56 -> 54 | N57: =Основной!P56 -> победитель | O57: =Основной!R56 -> Ахметгалиева АлсуАсхадулловна | P57: =Основной!U56 -> Муниципальное бюджетное общеобразовательное учреждение "Средняя общеобразовательная школа № 171 с углубленным изучением отдельных предметов" Советского района г.Казани | Q57: =Основной!B56 -> Родной (татарский) язык для обучающихся – татар школ с русским языком обучения
A58: 56 | B58: =Основной!D57 -> Советский район | C58: =Основной!E57 -> Муниципальное бюджетное общеобразовательное учреждение "Гимназия №175" Советского района г.Казани | D58: =Основной!G57 -> Мухетдинов | E58: =Основной!H57 -> Марсель | F58: =Основной!I57 -> Радисович | G58: =Основной!M57 -> 5 | H58: =Основной!K57 -> 18.09.0200 | I58: =Основной!J57 -> М | J58: =Основной!X57 -> 52 | K58: =IF(Основной!Z57="","",Основной!Z57) ->  | L58: =Основной!AA57 -> 52 | M58: =Основной!Y57 -> 54 | N58: =Основной!P57 -> победитель | O58: =Основной!R57 -> Хакимова МадинаСагидулловна | P58: =Основной!U57 -> Муниципальное бюджетное общеобразовательное учреждение "Гимназия №175" Советского района г.Казани | Q58: =Основной!B57 -> Родной (татарский) язык для обучающихся – татар школ с русским языком обучения
A59: 57 | B59: =Основной!D58 -> Советский район | C59: =Основной!E58 -> Муниципальное автономное общеобразовательное учреждение "Гимназия №37" Авиастроительного района г.Казани" | D59: =Основной!G58 -> Шагиахметова | E59: =Основной!H58 -> Камила | F59: =Основной!I58 -> Ленаровна | G59: =Основной!M58 -> 5 | H59: =Основной!K58 -> 20.02.2009 | I59: =Основной!J58 -> Ж | J59: =Основной!X58 -> 52 | K59: =IF(Основной!Z58="","",Основной!Z58) ->  | L59: =Основной!AA58 -> 52 | M59: =Основной!Y58 -> 54 | N59: =Основной!P58 -> победитель | O59: =Основной!R58 -> Ахметшина ЗиляВагизовна | P59: =Основной!U58 -> Муниципальное автономное общеобразовательное учреждение "Гимназия №37" Авиастроительного района г.Казани" | Q59: =Основной!B58 -> Родной (татарский) язык для обучающихся – татар школ с русским языком обучения
A60: 58 | B60: =Основной!D59 -> Ново-Савиновский район | C60: =Основной!E59 -> Муниципальное автономное общеобразовательное учреждение "Гимназия №37" Авиастроительного района г.Казани" | D60: =Основной!G59 -> Ямбаева | E60: =Основной!H59 -> Асель | F60: =Основной!I59 -> Рафаэлевна | G60: =Основной!M59 -> 5 | H60: =Основной!K59 -> 14.11.2009 | I60: =Основной!J59 -> Ж | J60: =Основной!X59 -> 52 | K60: =IF(Основной!Z59="","",Основной!Z59) ->  | L60: =Основной!AA59 -> 52 | M60: =Основной!Y59 -> 54 | N60: =Основной!P59 -> победитель | O60: =Основной!R59 -> Фахрутдинова АленаРишатовна | P60: =Основной!U59 -> Муниципальное автономное общеобразовательное учреждение "Гимназия №37" Авиастроительного района г.Казани" | Q60: =Основной!B59 -> Родной (татарский) язык для обучающихся – татар школ с русским языком обучения
A61: 59 | B61: =Основной!D60 -> Ново-Савиновский район | C61: =Основной!E60 -> Муниципальное бюджетное общеобразовательное учреждение "Гимназия №3" Вахитовского района г.Казани" | D61: =Основной!G60 -> Хасанова | E61: =Основной!H60 -> Эмилия | F61: =Основной!I60 -> Марселевна | G61: =Основной!M60 -> 5 | H61: =Основной!K60 -> 14.07.2009 | I61: =Основной!J60 -> Ж | J61: =Основной!X60 -> 51 | K61: =IF(Основной!Z60="","",Основной!Z60) ->  | L61: =Основной!AA60 -> 51 | M61: =Основной!Y60 -> 54 | N61: =Основной!P60 -> победитель | O61: =Основной!R60 -> Сабирзянова РушанияИншатовна | P61: =Основной!U60 -> Муниципальное бюджетное общеобразовательное учреждение "Гимназия №3" Вахитовского района г.Казани" | Q61: =Основной!B60 -> Родной (татарский) язык для обучающихся – татар школ с русским языком обучения
A62: 60 | B62: =Основной!D61 -> Приволжский район | C62: =Основной!E61 -> Муниципальное бюджетное общеобразовательное учреждение "Средняя общеобразовательная школа №98 (татарско-русская)" | D62: =Основной!G61 -> Калимуллин | E62: =Основной!H61 -> Динар | F62: =Основной!I61 -> Ильшатович | G62: =Основной!M61 -> 5 | H62: =Основной!K61 -> 04.06.2009 | I62: =Основной!J61 -> М | J62: =Основной!X61 -> 50 | K62: =IF(Основной!Z61="","",Основной!Z61) ->  | L62: =Основной!AA61 -> 50 | M62: =Основной!Y61 -> 54 | N62: =Основной!P61 -> победитель | O62: =Основной!R61 -> Игтисамова ЛандышИльгизаровна | P62: =Основной!U61 -> Муниципальное бюджетное общеобразовательное учреждение "Средняя общеобразовательная школа №98 (татарско-русская)" | Q62: =Основной!B61 -> Родной (татарский) язык для обучающихся – татар школ с русским языком обучения
A63: 61 | B63: =Основной!D62 -> Советский район | C63: =Основной!E62 -> МБОУ "Политехнический лицей № 182" | D63: =Основной!G62 -> Хабриева | E63: =Основной!H62 -> Камилла | F63: =Основной!I62 -> Данияровна | G63: =Основной!M62 -> 5 | H63: =Основной!K62 -> 03.02.2009 | I63: =Основной!J62 -> Ж | J63: =Основной!X62 -> 51 | K63: =IF(Основной!Z62="","",Основной!Z62) ->  | L63: =Основной!AA62 -> 49 | M63: =Основной!Y62 -> 54 | N63: =Основной!P62 -> победитель | O63: =Основной!R62 -> Хайрутдинова ЛюзияНазифовна | P63: =Основной!U62 -> МБОУ "Политехнический лицей № 182" | Q63: =Основной!B62 -> Родной (татарский) язык для обучающихся – татар школ с русским языком обучения
A64: 62 | B64: =Основной!D63 -> Советский район | C64: =Основной!E63 -> Муниципальное автономное общеобразовательное учреждение "Гимназия №19" | D64: =Основной!G63 -> Зигангараева | E64: =Основной!H63 -> Зифа | F64: =Основной!I63 -> Булатовна | G64: =Основной!M63 -> 5 | H64: =Основной!K63 -> 11.08.2009 | I64: =Основной!J63 -> Ж | J64: =Основной!X63 -> 48 | K64: =IF(Основной!Z63="","",Основной!Z63) ->  | L64: =Основной!AA63 -> 48 | M64: =Основной!Y63 -> 54 | N64: =Основной!P63 -> победитель | O64: =Основной!R63 -> Зинатуллина ЧулпанХабировна | P64: =Основной!U63 -> Муниципальное автономное общеобразовательное учреждение "Гимназия №19" | Q64: =Основной!B63 -> Родной (татарский) язык для обучающихся – татар школ с русским языком обучения
A65: 63 | B65: =Основной!D64 -> Ново-Савиновский район | C65: =Основной!E64 -> Муниципальное автономное общеобразовательное учреждение "Гимназия №37" Авиастроительного района г.Казани" | D65: =Основной!G64 -> Бикбулатова | E65: =Основной!H64 -> Азалия | F65: =Основной!I64 -> Айнуровна | G65: =Основной!M64 -> 5 | H65: =Основной!K64 -> 21.04.2009 | I65: =Основной!J64 -> Ж | J65: =Основной!X64 -> 48 | K65: =IF(Основной!Z64="","",Основной!Z64) ->  | L65: =Основной!AA64 -> 48 | M65: =Основной!Y64 -> 54 | N65: =Основной!P64 -> победитель | O65: =Основной!R64 -> Ахметшина ЗиляВагизовна | P65: =Основной!U64 -> Муниципальное автономное общеобразовательное учреждение "Гимназия №37" Авиастроительного района г.Казани" | Q65: =Основной!B64 -> Родной (татарский) язык для обучающихся – татар школ с русским языком обучения
A66: 64 | B66: =Основной!D65 -> Советский район | C66: =Основной!E65 -> Муниципальное бюджетное общеобразовательное учреждение "Средняя общеобразовательная школа №69" | D66: =Основной!G65 -> Фахрутдинов | E66: =Основной!H65 -> Камиля | F66: =Основной!I65 -> Рамисовна | G66: =Основной!M65 -> 5 | H66: =Основной!K65 -> 31.10.2009 | I66: =Основной!J65 -> Ж | J66: =Основной!X65 -> 47 | K66: =IF(Основной!Z65="","",Основной!Z65) ->  | L66: =Основной!AA65 -> 47 | M66: =Основной!Y65 -> 54 | N66: =Основной!P65 -> победитель | O66: =Основной!R65 -> Борисова РиммаВладимировна | P66: =Основной!U65 -> Муниципальное бюджетное общеобразовательное учреждение "Средняя общеобразовательная школа №69" | Q66: =Основной!B65 -> Родной (татарский) язык для обучающихся – татар школ с русским языком обучения
A67: 65 | B67: =Основной!D66 -> Советский район | C67: =Основной!E66 -> Муниципальное бюджетное общеобразовательное учреждение "Гимназия №155 с татарским языком обучения" Ново-Савиновского района г. Казани" | D67: =Основной!G66 -> Галиева | E67: =Основной!H66 -> Камиля | F67: =Основной!I66 -> Рамилевна | G67: =Основной!M66 -> 5 | H67: =Основной!K66 -> 16.07.2009 | I67: =Основной!J66 -> Ж | J67: =Основной!X66 -> 46 | K67: =IF(Основной!Z66="","",Основной!Z66) ->  | L67: =Основной!AA66 -> 46 | M67: =Основной!Y66 -> 54 | N67: =Основной!P66 -> победитель | O67: =Основной!R66 -> Назипова ГульнараСабирзяновна | P67: =Основной!U66 -> Муниципальное бюджетное общеобразовательное учреждение "Гимназия №155 с татарским языком обучения" Ново-Савиновского района г. Казани" | Q67: =Основной!B66 -> Родной (татарский) язык для обучающихся – татар школ с русским языком обучения
A68: 66 | B68: =Основной!D67 -> Советский район | C68: =Основной!E67 -> Муниципальное бюджетное общеобразовательное учреждение "Средняя общеобразовательная школа №69" | D68: =Основной!G67 -> Альманова | E68: =Основной!H67 -> Лия | F68: =Основной!I67 -> Руслановна | G68: =Основной!M67 -> 5 | H68: =Основной!K67 -> 08.07.2009 | I68: =Основной!J67 -> Ж | J68: =Основной!X67 -> 45 | K68: =IF(Основной!Z67="","",Основной!Z67) ->  | L68: =Основной!AA67 -> 45 | M68: =Основной!Y67 -> 54 | N68: =Основной!P67 -> победитель | O68: =Основной!R67 -> Борисова РиммаВладимировна | P68: =Основной!U67 -> Муниципальное бюджетное общеобразовательное учреждение "Средняя общеобразовательная школа №69" | Q68: =Основной!B67 -> Родной (татарский) язык для обучающихся – татар школ с русским языком обучения
A69: 67 | B69: =Основной!D68 -> Советский район | C69: =Основной!E68 -> Муниципальное автономное общеобразовательное учреждение "Гимназия №37" Авиастроительного района г.Казани" | D69: =Основной!G68 -> Садыкова | E69: =Основной!H68 -> Азалия | F69: =Основной!I68 -> Ильдаровна | G69: =Основной!M68 -> 5 | H69: =Основной!K68 -> 28.09.2009 | I69: =Основной!J68 -> Ж | J69: =Основной!X68 -> 45 | K69: =IF(Основной!Z68="","",Основной!Z68) ->  | L69: =Основной!AA68 -> 45 | M69: =Основной!Y68 -> 54 | N69: =Основной!P68 -> призер | O69: =Основной!R68 -> Ахметшина ЗиляВагизовна | P69: =Основной!U68 -> Муниципальное автономное общеобразовательное учреждение "Гимназия №37" Авиастроительного района г.Казани" | Q69: =Основной!B68 -> Родной (татарский) язык для обучающихся – татар школ с русским языком обучения
A70: 68 | B70: =Основной!D69 -> Советский район | C70: =Основной!E69 -> Муниципальное бюджетное общеобразовательное учреждение "Средняя общеобразовательная школа № 169" Советского района г.Казани" | D70: =Основной!G69 -> Саликиева | E70: =Основной!H69 -> Диана | F70: =Основной!I69 -> Витальевна | G70: =Основной!M69 -> 5 | H70: =Основной!K69 -> 23.03.2009 | I70: =Основной!J69 -> Ж | J70: =Основной!X69 -> 44 | K70: =IF(Основной!Z69="","",Основной!Z69) ->  | L70: =Основной!AA69 -> 44 | M70: =Основной!Y69 -> 54 | N70: =Основной!P69 -> победитель | O70: =Основной!R69 -> Ахметзянова ИльвираШамилевна | P70: =Основной!U69 -> Муниципальное бюджетное общеобразовательное учреждение "Средняя общеобразовательная школа № 169" Советского района г.Казани" | Q70: =Основной!B69 -> Родной (татарский) язык для обучающихся – татар школ с русским языком обучения
A71: 69 | B71: =Основной!D70 -> Авиастроительный район | C71: =Основной!E70 -> Муниципальное бюджетное общеобразовательное учреждение "Гимназия №14" Авиастроительного района г.Казани" | D71: =Основной!G70 -> Ильязова | E71: =Основной!H70 -> Азалия | F71: =Основной!I70 -> Азатовна | G71: =Основной!M70 -> 5 | H71: =Основной!K70 -> 28.02.2009 | I71: =Основной!J70 -> Ж | J71: =Основной!X70 -> 43 | K71: =IF(Основной!Z70="","",Основной!Z70) ->  | L71: =Основной!AA70 -> 43 | M71: =Основной!Y70 -> 54 | N71: =Основной!P70 -> победитель | O71: =Основной!R70 -> Шайхутдинова ЗульфияАдгамовна | P71: =Основной!U70 -> Муниципальное бюджетное общеобразовательное учреждение "Гимназия №14" Авиастроительного района г.Казани" | Q71: =Основной!B70 -> Родной (татарский) язык для обучающихся – татар школ с русским языком обучения
A72: 70 | B72: =Основной!D71 -> Советский район | C72: =Основной!E71 -> Муниципальное автономное общеобразовательное учреждение "Гимназия №19" | D72: =Основной!G71 -> Шарифуллина | E72: =Основной!H71 -> Амина | F72: =Основной!I71 -> Ринатовна | G72: =Основной!M71 -> 5 | H72: =Основной!K71 -> 12.06.2009 | I72: =Основной!J71 -> Ж | J72: =Основной!X71 -> 42 | K72: =IF(Основной!Z71="","",Основной!Z71) -> 1 | L72: =Основной!AA71 -> 43 | M72: =Основной!Y71 -> 54 | N72: =Основной!P71 -> призер | O72: =Основной!R71 -> Зинатуллина ЧулпанХабировна | P72: =Основной!U71 -> Муниципальное автономное общеобразовательное учреждение "Гимназия №19" | Q72: =Основной!B71 -> Родной (татарский) язык для обучающихся – татар школ с русским языком обучения
A73: 71 | B73: =Основной!D72 -> Приволжский район | C73: =Основной!E72 -> Муниципальное автономное общеобразовательное учреждение "Гимназия №37" Авиастроительного района г.Казани" | D73: =Основной!G72 -> Гайфуллина | E73: =Основной!H72 -> Диляра | F73: =Основной!I72 -> Марселевна | G73: =Основной!M72 -> 5 | H73: =Основной!K72 -> 06.09.2009 | I73: =Основной!J72 -> Ж | J73: =Основной!X72 -> 43 | K73: =IF(Основной!Z72="","",Основной!Z72) ->  | L73: =Основной!AA72 -> 43 | M73: =Основной!Y72 -> 54 | N73: =Основной!P72 -> призер | O73: =Основной!R72 -> Ахметшина ЗиляВагизовна | P73: =Основной!U72 -> Муниципальное автономное общеобразовательное учреждение "Гимназия №37" Авиастроительного района г.Казани" | Q73: =Основной!B72 -> Родной (татарский) язык для обучающихся – татар школ с русским языком обучения
A74: 72 | B74: =Основной!D73 -> Приволжский район | C74: =Основной!E73 -> Муниципальное бюджетное общеобразовательное учреждение «Гимназия № 183» Советского района г.Казани | D74: =Основной!G73 -> Валеев | E74: =Основной!H73 -> Камиль | F74: =Основной!I73 -> Ядгарович | G74: =Основной!M73 -> 5 | H74: =Основной!K73 -> 05.10.2009 | I74: =Основной!J73 -> М | J74: =Основной!X73 -> 42 | K74: =IF(Основной!Z73="","",Основной!Z73) ->  | L74: =Основной!AA73 -> 42 | M74: =Основной!Y73 -> 54 | N74: =Основной!P73 -> победитель | O74: =Основной!R73 -> Ибрагимова ЛилияРашитовна | P74: =Основной!U73 -> Муниципальное бюджетное общеобразовательное учреждение «Гимназия № 183» Советского района г.Казани | Q74: =Основной!B73 -> Родной (татарский) язык для обучающихся – татар школ с русским языком обучения
A75: 73 | B75: =Основной!D74 -> Советский район | C75: =Основной!E74 -> Муниципальное бюджетное общеобразовательное учреждение "Средняя общеобразовательная школа № 171 с углубленным изучением отдельных предметов" Советского района г.Казани | D75: =Основной!G74 -> Салахутдинова | E75: =Основной!H74 -> Ралина | F75: =Основной!I74 -> Рамилевна | G75: =Основной!M74 -> 5 | H75: =Основной!K74 -> 05.02.2009 | I75: =Основной!J74 -> Ж | J75: =Основной!X74 -> 42 | K75: =IF(Основной!Z74="","",Основной!Z74) ->  | L75: =Основной!AA74 -> 42 | M75: =Основной!Y74 -> 54 | N75: =Основной!P74 -> призер | O75: =Основной!R74 -> Гумарова ГалинаАлександровна | P75: =Основной!U74 -> Муниципальное бюджетное общеобразовательное учреждение "Средняя общеобразовательная школа № 171 с углубленным изучением отдельных предметов" Советского района г.Казани | Q75: =Основной!B74 -> Родной (татарский) язык для обучающихся – татар школ с русским языком обучения
A76: 74 | B76: =Основной!D75 -> Вахитовский район | C76: =Основной!E75 -> Муниципальное бюджетное общеобразовательное учреждение "Гимназия №33" Авиастроительного района г.Казани" | D76: =Основной!G75 -> Гарипова | E76: =Основной!H75 -> Диля | F76: =Основной!I75 -> Ильфатовна | G76: =Основной!M75 -> 5 | H76: =Основной!K75 -> 26.10.2008 | I76: =Основной!J75 -> Ж | J76: =Основной!X75 -> 41 | K76: =IF(Основной!Z75="","",Основной!Z75) ->  | L76: =Основной!AA75 -> 41 | M76: =Основной!Y75 -> 54 | N76: =Основной!P75 -> победитель | O76: =Основной!R75 -> Шакирова РасулаГабделвалиевна | P76: =Основной!U75 -> Муниципальное бюджетное общеобразовательное учреждение "Гимназия №33" Авиастроительного района г.Казани" | Q76: =Основной!B75 -> Родной (татарский) язык для обучающихся – татар школ с русским языком обучения
A77: 75 | B77: =Основной!D76 -> Советский район | C77: =Основной!E76 -> Муниципальное бюджетное общеобразовательное учреждение "Гимназия №175" Советского района г.Казани | D77: =Основной!G76 -> Фаттахова | E77: =Основной!H76 -> Мадина | F77: =Основной!I76 -> Ильшатовна | G77: =Основной!M76 -> 5 | H77: =Основной!K76 -> 07.07.2009 | I77: =Основной!J76 -> Ж | J77: =Основной!X76 -> 41 | K77: =IF(Основной!Z76="","",Основной!Z76) ->  | L77: =Основной!AA76 -> 41 | M77: =Основной!Y76 -> 54 | N77: =Основной!P76 -> призер | O77: =Основной!R76 -> Хакимова МадинаСагидулловна | P77: =Основной!U76 -> Муниципальное бюджетное общеобразовательное учреждение "Гимназия №175" Советского района г.Казани | Q77: =Основной!B76 -> Родной (татарский) язык для обучающихся – татар школ с русским языком обучения
A78: 76 | B78: =Основной!D77 -> Советский район | C78: =Основной!E77 -> Муниципальное бюджетное общеобразовательное учреждение "Лицей №83 - Центр образования" | D78: =Основной!G77 -> Гайнутдинов | E78: =Основной!H77 -> Тимерхан | F78: =Основной!I77 -> Алмазович | G78: =Основной!M77 -> 5 | H78: =Основной!K77 -> 08.03.2009 | I78: =Основной!J77 -> М | J78: =Основной!X77 -> 41 | K78: =IF(Основной!Z77="","",Основной!Z77) ->  | L78: =Основной!AA77 -> 41 | M78: =Основной!Y77 -> 54 | N78: =Основной!P77 -> призер | O78: =Основной!R77 -> Сафина ГульназВасиловна | P78: =Основной!U77 -> Муниципальное бюджетное общеобразовательное учреждение "Лицей №83 - Центр образования" | Q78: =Основной!B77 -> Родной (татарский) язык для обучающихся – татар школ с русским языком обучения
A79: 77 | B79: =Основной!D78 -> Приволжский район | C79: =Основной!E78 -> Муниципальное бюджетное общеобразовательное учреждение "Гимназия №179 - центр образования" Ново-Савиновского района г.Казани" | D79: =Основной!G78 -> Галимуллина | E79: =Основной!H78 -> Эльмира | F79: =Основной!I78 -> Ришатовна | G79: =Основной!M78 -> 5 | H79: =Основной!K78 -> 16.05.2009 | I79: =Основной!J78 -> Ж | J79: =Основной!X78 -> 40 | K79: =IF(Основной!Z78="","",Основной!Z78) -> 0 | L79: =Основной!AA78 -> 40 | M79: =Основной!Y78 -> 54 | N79: =Основной!P78 -> победитель | O79: =Основной!R78 -> Габдеева ФаридаРафаэлевна | P79: =Основной!U78 -> Муниципальное бюджетное общеобразовательное учреждение "Гимназия №179 - центр образования" Ново-Савиновского района г.Казани" | Q79: =Основной!B78 -> Родной (татарский) язык для обучающихся – татар школ с русским языком обучения
A80: 78 | B80: =Основной!D79 -> Советский район | C80: =Основной!E79 -> Муниципальное бюджетное общеобразовательное учреждение "Русско-татарская средняя общеобразовательная школа №129" | D80: =Основной!G79 -> Насыбуллина | E80: =Основной!H79 -> Камиля | F80: =Основной!I79 -> Маратовна | G80: =Основной!M79 -> 5 | H80: =Основной!K79 -> 29.03.2009 | I80: =Основной!J79 -> Ж | J80: =Основной!X79 -> 40 | K80: =IF(Основной!Z79="","",Основной!Z79) ->  | L80: =Основной!AA79 -> 40 | M80: =Основной!Y79 -> 54 | N80: =Основной!P79 -> победитель | O80: =Основной!R79 -> Габдрахманова ДинаГиматдиновна | P80: =Основной!U79 -> Муниципальное бюджетное общеобразовательное учреждение "Русско-татарская средняя общеобразовательная школа №129" | Q80: =Основной!B79 -> Родной (татарский) язык для обучающихся – татар школ с русским языком обучения
A81: 79 | B81: =Основной!D80 -> Ново-Савиновский район | C81: =Основной!E80 -> Муниципальное бюджетное общеобразовательное учреждение "Средняя общеобразовательная школа №167 с углубленным изучением отдельных предметов" Советского района г. Казани | D81: =Основной!G80 -> Махмутова | E81: =Основной!H80 -> Камиля | F81: =Основной!I80 -> Айратовна | G81: =Основной!M80 -> 5 | H81: =Основной!K80 -> 01.08.2009 | I81: =Основной!J80 -> Ж | J81: =Основной!X80 -> 40 | K81: =IF(Основной!Z80="","",Основной!Z80) ->  | L81: =Основной!AA80 -> 40 | M81: =Основной!Y80 -> 54 | N81: =Основной!P80 -> призер | O81: =Основной!R80 -> Камалова ФаягульЗуфаровна | P81: =Основной!U80 -> Муниципальное бюджетное общеобразовательное учреждение "Средняя общеобразовательная школа №167 с углубленным изучением отдельных предметов" Советского района г. Казани | Q81: =Основной!B80 -> Родной (татарский) язык для обучающихся – татар школ с русским языком обучения
A82: 80 | B82: =Основной!D81 -> Авиастроительный район | C82: =Основной!E81 -> Муниципальное автономное общеобразовательное учреждение "Лицей №121 имени Героя Советского Союза С.А.Ахтямова" Советского района г.Казани | D82: =Основной!G81 -> Каримуллина | E82: =Основной!H81 -> Исламия | F82: =Основной!I81 -> Разиловна | G82: =Основной!M81 -> 5 | H82: =Основной!K81 -> 14.08.2009 | I82: =Основной!J81 -> Ж | J82: =Основной!X81 -> 40 | K82: =IF(Основной!Z81="","",Основной!Z81) ->  | L82: =Основной!AA81 -> 40 | M82: =Основной!Y81 -> 54 | N82: =Основной!P81 -> победитель | O82: =Основной!R81 -> Миннуллина АйгульИльдусовна | P82: =Основной!U81 -> Муниципальное автономное общеобразовательное учреждение "Лицей №121 имени Героя Советского Союза С.А.Ахтямова" Советского района г.Казани | Q82: =Основной!B81 -> Родной (татарский) язык для обучающихся – татар школ с русским языком обучения
A83: 81 | B83: =Основной!D82 -> Московский район | C83: =Основной!E82 -> Муниципальное бюджетное общеобразовательное учреждение "Гимназия № 8 -Центр образования" Советского района г. Казани" | D83: =Основной!G82 -> Шарафутдинов | E83: =Основной!H82 -> Шамиль | F83: =Основной!I82 -> Радикович | G83: =Основной!M82 -> 5 | H83: =Основной!K82 -> 28.12.2008 | I83: =Основной!J82 -> М | J83: =Основной!X82 -> 40 | K83: =IF(Основной!Z82="","",Основной!Z82) ->  | L83: =Основной!AA82 -> 40 | M83: =Основной!Y82 -> 54 | N83: =Основной!P82 -> призер | O83: =Основной!R82 -> Айзатуллова АльфияМунировна | P83: =Основной!U82 -> Муниципальное бюджетное общеобразовательное учреждение "Гимназия № 8 -Центр образования" Советского района г. Казани" | Q83: =Основной!B82 -> Родной (татарский) язык для обучающихся – татар школ с русским языком обучения
A84: 82 | B84: =Основной!D83 -> Авиастроительный район | C84: =Основной!E83 -> Муниципальное бюджетное общеобразовательное учреждение "Средняя общеобразовательная школа №73" | D84: =Основной!G83 -> Габделганеева | E84: =Основной!H83 -> Айсылу | F84: =Основной!I83 -> Маратовна | G84: =Основной!M83 -> 5 | H84: =Основной!K83 -> 21.07.2009 | I84: =Основной!J83 -> Ж | J84: =Основной!X83 -> 39 | K84: =IF(Основной!Z83="","",Основной!Z83) ->  | L84: =Основной!AA83 -> 39 | M84: =Основной!Y83 -> 54 | N84: =Основной!P83 -> победитель | O84: =Основной!R83 -> Арсланова АнисаДаулиевна | P84: =Основной!U83 -> Муниципальное бюджетное общеобразовательное учреждение "Средняя общеобразовательная школа №73" | Q84: =Основной!B83 -> Родной (татарский) язык для обучающихся – татар школ с русским языком обучения
A85: 83 | B85: =Основной!D84 -> Советский район | C85: =Основной!E84 -> Муниципальное бюджетное общеобразовательное учреждение "Средняя общеобразовательная школа №73" | D85: =Основной!G84 -> Миннуллина | E85: =Основной!H84 -> Лилия | F85: =Основной!I84 -> Наилевна | G85: =Основной!M84 -> 5 | H85: =Основной!K84 -> 27.08.2009 | I85: =Основной!J84 -> Ж | J85: =Основной!X84 -> 39 | K85: =IF(Основной!Z84="","",Основной!Z84) ->  | L85: =Основной!AA84 -> 39 | M85: =Основной!Y84 -> 54 | N85: =Основной!P84 -> победитель | O85: =Основной!R84 -> Арсланова АнисаДаулиевна | P85: =Основной!U84 -> Муниципальное бюджетное общеобразовательное учреждение "Средняя общеобразовательная школа №73" | Q85: =Основной!B84 -> Родной (татарский) язык для обучающихся – татар школ с русским языком обучения
A86: 84 | B86: =Основной!D85 -> Вахитовский район | C86: =Основной!E85 -> Муниципальное автономное общеобразовательное учреждение "Лицей №146 "Ресурс" Ново-Савиновского района г. Казани" | D86: =Основной!G85 -> Закирова | E86: =Основной!H85 -> Амира | F86: =Основной!I85 -> Рафаэлевна | G86: =Основной!M85 -> 5 | H86: =Основной!K85 -> 13.01.2009 | I86: =Основной!J85 -> Ж | J86: =Основной!X85 -> 38 | K86: =IF(Основной!Z85="","",Основной!Z85) ->  | L86: =Основной!AA85 -> 38 | M86: =Основной!Y85 -> 54 | N86: =Основной!P85 -> победитель | O86: =Основной!R85 -> Агмалетдинова РозаНиколаевна | P86: =Основной!U85 -> Муниципальное автономное общеобразовательное учреждение "Лицей №146 "Ресурс" Ново-Савиновского района г. Казани" | Q86: =Основной!B85 -> Родной (татарский) язык для обучающихся – татар школ с русским языком обучения
A87: 85 | B87: =Основной!D86 -> Приволжский район | C87: =Основной!E86 -> Муниципальное бюджетное общеобразовательное учреждение "Средняя общеобразовательная русско-татарская школа №103" Ново-Савиновского района г. Казани" | D87: =Основной!G86 -> Валиуллина | E87: =Основной!H86 -> Камилла | F87: =Основной!I86 -> Ильназовна | G87: =Основной!M86 -> 5 | H87: =Основной!K86 -> 16.06.2009 | I87: =Основной!J86 -> Ж | J87: =Основной!X86 -> 38 | K87: =IF(Основной!Z86="","",Основной!Z86) ->  | L87: =Основной!AA86 -> 38 | M87: =Основной!Y86 -> 54 | N87: =Основной!P86 -> победитель | O87: =Основной!R86 -> Хайрутдинова АйгульХамитовна | P87: =Основной!U86 -> Муниципальное бюджетное общеобразовательное учреждение "Средняя общеобразовательная русско-татарская школа №103" Ново-Савиновского района г. Казани" | Q87: =Основной!B86 -> Родной (татарский) язык для обучающихся – татар школ с русским языком обучения
A88: 86 | B88: =Основной!D87 -> Советский район | C88: =Основной!E87 -> Муниципальное бюджетное общеобразовательное учреждение "Лицей №83 - Центр образования" | D88: =Основной!G87 -> Муртазин | E88: =Основной!H87 -> Мурат | F88: =Основной!I87 -> Шаукатович | G88: =Основной!M87 -> 5 | H88: =Основной!K87 -> 19.03.2009 | I88: =Основной!J87 -> М | J88: =Основной!X87 -> 38 | K88: =IF(Основной!Z87="","",Основной!Z87) ->  | L88: =Основной!AA87 -> 38 | M88: =Основной!Y87 -> 54 | N88: =Основной!P87 -> призер | O88: =Основной!R87 -> Сафина ГульназВасиловна | P88: =Основной!U87 -> Муниципальное бюджетное общеобразовательное учреждение "Лицей №83 - Центр образования" | Q88: =Основной!B87 -> Родной (татарский) язык для обучающихся – татар школ с русским языком обучения
A89: 87 | B89: =Основной!D88 -> Ново-Савиновский район | C89: =Основной!E88 -> Муниципальное бюджетное общеобразовательное учреждение "Лицей №83 - Центр образования" | D89: =Основной!G88 -> Насибуллина | E89: =Основной!H88 -> Марьян | F89: =Основной!I88 -> Ильшатовна | G89: =Основной!M88 -> 5 | H89: =Основной!K88 -> 07.05.2009 | I89: =Основной!J88 -> Ж | J89: =Основной!X88 -> 38 | K89: =IF(Основной!Z88="","",Основной!Z88) ->  | L89: =Основной!AA88 -> 38 | M89: =Основной!Y88 -> 54 | N89: =Основной!P88 -> призер | O89: =Основной!R88 -> Галиева АлсуИльгизовна | P89: =Основной!U88 -> Муниципальное бюджетное общеобразовательное учреждение "Лицей №83 - Центр образования" | Q89: =Основной!B88 -> Родной (татарский) язык для обучающихся – татар школ с русским языком обучения
A90: 88 | B90: =Основной!D89 -> Советский район | C90: =Основной!E89 -> Муниципальное бюджетное общеобразователье учреждение "Многопрофильный лицей №187" | D90: =Основной!G89 -> Шамсиев | E90: =Основной!H89 -> Карим | F90: =Основной!I89 -> Фирузович | G90: =Основной!M89 -> 5 | H90: =Основной!K89 -> 26.11.2009 | I90: =Основной!J89 -> М | J90: =Основной!X89 -> 37 | K90: =IF(Основной!Z89="","",Основной!Z89) ->  | L90: =Основной!AA89 -> 37 | M90: =Основной!Y89 -> 54 | N90: =Основной!P89 -> призер | O90: =Основной!R89 -> Нугманова ДилараРашитовна | P90: =Основной!U89 -> Муниципальное бюджетное общеобразователье учреждение "Многопрофильный лицей №187" | Q90: =Основной!B89 -> Родной (татарский) язык для обучающихся – татар школ с русским языком обучения
A91: 89 | B91: =Основной!D90 -> Советский район | C91: =Основной!E90 -> Муниципальное бюджетное общеобразовательное учреждение "Лицей №35 - образовательный центр "Галактика" Приволжского района города Казани" | D91: =Основной!G90 -> Гимадеева | E91: =Основной!H90 -> Гульназ | F91: =Основной!I90 -> Фанисовна | G91: =Основной!M90 -> 5 | H91: =Основной!K90 -> 12.03.2009 | I91: =Основной!J90 -> Ж | J91: =Основной!X90 -> 37 | K91: =IF(Основной!Z90="","",Основной!Z90) ->  | L91: =Основной!AA90 -> 37 | M91: =Основной!Y90 -> 54 | N91: =Основной!P90 -> призер | O91: =Основной!R90 -> Шаяхметова ВенераМиннебаевна | P91: =Основной!U90 -> Муниципальное бюджетное общеобразовательное учреждение "Лицей №35 - образовательный центр "Галактика" Приволжского района города Казани" | Q91: =Основной!B90 -> Родной (татарский) язык для обучающихся – татар школ с русским языком обучения
A92: 90 | B92: =Основной!D91 -> Кировский район | C92: =Основной!E91 -> Муниципальное бюджетное общеобразовательное учреждение "Лицей №35 - образовательный центр "Галактика" Приволжского района города Казани" | D92: =Основной!G91 -> Муртазина | E92: =Основной!H91 -> Саида | F92: =Основной!I91 -> Ниязовна | G92: =Основной!M91 -> 5 | H92: =Основной!K91 -> 21.12.2009 | I92: =Основной!J91 -> Ж | J92: =Основной!X91 -> 36 | K92: =IF(Основной!Z91="","",Основной!Z91) ->  | L92: =Основной!AA91 -> 36 | M92: =Основной!Y91 -> 54 | N92: =Основной!P91 -> победитель | O92: =Основной!R91 -> Гилязова ГульнараФаиловна | P92: =Основной!U91 -> Муниципальное бюджетное общеобразовательное учреждение "Лицей №35 - образовательный центр "Галактика" Приволжского района города Казани" | Q92: =Основной!B91 -> Родной (татарский) язык для обучающихся – татар школ с русским языком обучения
A93: 91 | B93: =Основной!D92 -> Советский район | C93: =Основной!E92 -> Муниципальное автономное общеобразовательное учреждение - "лицей-интернат № 2" Московского района города Казани" | D93: =Основной!G92 -> Мухаметов | E93: =Основной!H92 -> Керим | F93: =Основной!I92 -> Ильдарович | G93: =Основной!M92 -> 5 | H93: =Основной!K92 -> 18.10.2008 | I93: =Основной!J92 -> М | J93: =Основной!X92 -> 36 | K93: =IF(Основной!Z92="","",Основной!Z92) ->  | L93: =Основной!AA92 -> 36 | M93: =Основной!Y92 -> 54 | N93: =Основной!P92 -> победитель | O93: =Основной!R92 -> Каримова РузияГабдулловна | P93: =Основной!U92 -> Муниципальное автономное общеобразовательное учреждение - "лицей-интернат № 2" Московского района города Казани" | Q93: =Основной!B92 -> Родной (татарский) язык для обучающихся – татар школ с русским языком обучения
A94: 92 | B94: =Основной!D93 -> Московский район | C94: =Основной!E93 -> Муниципальное бюджетное общеобразовательное учреждение «Гимназия № 183» Советского района г.Казани | D94: =Основной!G93 -> Латыпова | E94: =Основной!H93 -> Зарина | F94: =Основной!I93 -> Ильнуровна | G94: =Основной!M93 -> 5 | H94: =Основной!K93 -> 03.07.2009 | I94: =Основной!J93 -> Ж | J94: =Основной!X93 -> 34 | K94: =IF(Основной!Z93="","",Основной!Z93) ->  | L94: =Основной!AA93 -> 34 | M94: =Основной!Y93 -> 54 | N94: =Основной!P93 -> победитель | O94: =Основной!R93 -> Ибрагимова ЛилияРашитовна | P94: =Основной!U93 -> Муниципальное бюджетное общеобразовательное учреждение «Гимназия № 183» Советского района г.Казани | Q94: =Основной!B93 -> Родной (татарский) язык для обучающихся – татар школ с русским языком обучения
A95: 93 | B95: =Основной!D94 -> Советский район | C95: =Основной!E94 -> Муниципальное бюджетное общеобразовательное учреждение "Гимназия №179 - центр образования" Ново-Савиновского района г.Казани" | D95: =Основной!G94 -> Валеева | E95: =Основной!H94 -> Малика | F95: =Основной!I94 -> Марселевна | G95: =Основной!M94 -> 5 | H95: =Основной!K94 -> 11.06.2009 | I95: =Основной!J94 -> Ж | J95: =Основной!X94 -> 33 | K95: =IF(Основной!Z94="","",Основной!Z94) -> 1 | L95: =Основной!AA94 -> 34 | M95: =Основной!Y94 -> 54 | N95: =Основной!P94 -> призер | O95: =Основной!R94 -> Габдеева ФаридаРафаэлевна | P95: =Основной!U94 -> Муниципальное бюджетное общеобразовательное учреждение "Гимназия №179 - центр образования" Ново-Савиновского района г.Казани" | Q95: =Основной!B94 -> Родной (татарский) язык для обучающихся – татар школ с русским языком обучения
A96: 94 | B96: =Основной!D95 -> Приволжский район | C96: =Основной!E95 -> МБОУ"Многопрофильный лицей №185" | D96: =Основной!G95 -> Рахматуллина | E96: =Основной!H95 -> Самира | F96: =Основной!I95 -> Рамисовна | G96: =Основной!M95 -> 5 | H96: =Основной!K95 -> 28.11.2009 | I96: =Основной!J95 -> Ж | J96: =Основной!X95 -> 34 | K96: =IF(Основной!Z95="","",Основной!Z95) ->  | L96: =Основной!AA95 -> 34 | M96: =Основной!Y95 -> 54 | N96: =Основной!P95 -> победитель | O96: =Основной!R95 -> Минемуллин РишатРашитович | P96: =Основной!U95 -> МБОУ"Многопрофильный лицей №185" | Q96: =Основной!B95 -> Родной (татарский) язык для обучающихся – татар школ с русским языком обучения
A97: 95 | B97: =Основной!D96 -> Советский район | C97: =Основной!E96 -> Муниципальное автономное общеобразовательное учреждение "Гимназия №141" Советского района г.Казани | D97: =Основной!G96 -> Абдрахманова | E97: =Основной!H96 -> Амина | F97: =Основной!I96 -> Ильнаровна | G97: =Основной!M96 -> 5 | H97: =Основной!K96 -> 27.01.2010 | I97: =Основной!J96 -> Ж | J97: =Основной!X96 -> 33 | K97: =IF(Основной!Z96="","",Основной!Z96) ->  | L97: =Основной!AA96 -> 33 | M97: =Основной!Y96 -> 54 | N97: =Основной!P96 -> победитель | O97: =Основной!R96 -> Салихзянова ИльмираЛукмановна | P97: =Основной!U96 -> Муниципальное автономное общеобразовательное учреждение "Гимназия №141" Советского района г.Казани | Q97: =Основной!B96 -> Родной (татарский) язык для обучающихся – татар школ с русским языком обучения
A98: 96 | B98: =Основной!D97 -> Советский район | C98: =Основной!E97 -> Муниципальное бюджетное общеобразовательное учреждение "Средняя общеобразовательная татарско-русская школа № 34 " Московского района г.Казани" | D98: =Основной!G97 -> Гарипова | E98: =Основной!H97 -> Алзира | F98: =Основной!I97 -> Рафиковна | G98: =Основной!M97 -> 5 | H98: =Основной!K97 -> 03.03.2009 | I98: =Основной!J97 -> Ж | J98: =Основной!X97 -> 33 | K98: =IF(Основной!Z97="","",Основной!Z97) ->  | L98: =Основной!AA97 -> 33 | M98: =Основной!Y97 -> 54 | N98: =Основной!P97 -> победитель | O98: =Основной!R97 -> Гимадеева НурияРашидовна | P98: =Основной!U97 -> Муниципальное бюджетное общеобразовательное учреждение "Средняя общеобразовательная татарско-русская школа № 34 " Московского района г.Казани" | Q98: =Основной!B97 -> Родной (татарский) язык для обучающихся – татар школ с русским языком обучения
A99: 97 | B99: =Основной!D98 -> Ново-Савиновский район | C99: =Основной!E98 -> Муниципальное автономное общеобразовательное учреждение "Лицей №146 "Ресурс" Ново-Савиновского района г. Казани" | D99: =Основной!G98 -> Кильдеева | E99: =Основной!H98 -> Адиля | F99: =Основной!I98 -> Мансуровна | G99: =Основной!M98 -> 5 | H99: =Основной!K98 -> 06.11.2009 | I99: =Основной!J98 -> Ж | J99: =Основной!X98 -> 33 | K99: =IF(Основной!Z98="","",Основной!Z98) ->  | L99: =Основной!AA98 -> 33 | M99: =Основной!Y98 -> 54 | N99: =Основной!P98 -> призер | O99: =Основной!R98 -> Агмалетдинова РозаНиколаевна | P99: =Основной!U98 -> Муниципальное автономное общеобразовательное учреждение "Лицей №146 "Ресурс" Ново-Савиновского района г. Казани" | Q99: =Основной!B98 -> Родной (татарский) язык для обучающихся – татар школ с русским языком обучения
A100: 98 | B100: =Основной!D99 -> Авиастроительный район | C100: =Основной!E99 -> Муниципальное бюджетное общеобразовательное учреждение "Многопрофильная полилингвальная гимназия №180" Советского района г. Казани" | D100: =Основной!G99 -> Мухаметзянова | E100: =Основной!H99 -> Элина | F100: =Основной!I99 -> Альбертовна | G100: =Основной!M99 -> 5 | H100: =Основной!K99 -> 23.08.2009 | I100: =Основной!J99 -> Ж | J100: =Основной!X99 -> 33 | K100: =IF(Основной!Z99="","",Основной!Z99) ->  | L100: =Основной!AA99 -> 33 | M100: =Основной!Y99 -> 54 | N100: =Основной!P99 -> призер | O100: =Основной!R99 -> Хафизова ГюзельРахмизяновна | P100: =Основной!U99 -> Муниципальное бюджетное общеобразовательное учреждение "Многопрофильная полилингвальная гимназия №180" Советского района г. Казани" | Q100: =Основной!B99 -> Родной (татарский) язык для обучающихся – татар школ с русским языком обучения
A101: 99 | B101: =Основной!D100 -> Советский район | C101: =Основной!E100 -> Муниципальное бюджетное общеобразователье учреждение "Многопрофильный лицей №187" | D101: =Основной!G100 -> Ахметов | E101: =Основной!H100 -> Ислам | F101: =Основной!I100 -> Илдарович | G101: =Основной!M100 -> 5 | H101: =Основной!K100 -> 16.06.2009 | I101: =Основной!J100 -> М | J101: =Основной!X100 -> 32 | K101: =IF(Основной!Z100="","",Основной!Z100) ->  | L101: =Основной!AA100 -> 32 | M101: =Основной!Y100 -> 54 | N101: =Основной!P100 -> победитель | O101: =Основной!R100 -> Бикмухаметова Лейля Зульфатовна | P101: =Основной!U100 -> Муниципальное бюджетное общеобразователье учреждение "Многопрофильный лицей №187" | Q101: =Основной!B100 -> Родной (татарский) язык для обучающихся – татар школ с русским языком обучения
A102: 100 | B102: =Основной!D101 -> Советский район | C102: =Основной!E101 -> Муниципальное бюджетное общеобразовательное учреждение "Лицей №83 - Центр образования" | D102: =Основной!G101 -> Гарипова | E102: =Основной!H101 -> Нурия | F102: =Основной!I101 -> Ильнуровна | G102: =Основной!M101 -> 5 | H102: =Основной!K101 -> 26.07.2009 | I102: =Основной!J101 -> М | J102: =Основной!X101 -> 32 | K102: =IF(Основной!Z101="","",Основной!Z101) ->  | L102: =Основной!AA101 -> 32 | M102: =Основной!Y101 -> 54 | N102: =Основной!P101 -> победитель | O102: =Основной!R101 -> Сафина ГульназВасиловна | P102: =Основной!U101 -> Муниципальное бюджетное общеобразовательное учреждение "Лицей №83 - Центр образования" | Q102: =Основной!B101 -> Родной (татарский) язык для обучающихся – татар школ с русским языком обучения
A103: 101 | B103: =Основной!D102 -> Советский район | C103: =Основной!E102 -> Муниципальное бюджетное общеобразовательное учреждение "Многопрофильная полилингвальная гимназия №180" Советского района г. Казани" | D103: =Основной!G102 -> Гарипова | E103: =Основной!H102 -> Амина | F103: =Основной!I102 -> Ильнуровна | G103: =Основной!M102 -> 5 | H103: =Основной!K102 -> 22.01.2009 | I103: =Основной!J102 -> Ж | J103: =Основной!X102 -> 32 | K103: =IF(Основной!Z102="","",Основной!Z102) ->  | L103: =Основной!AA102 -> 32 | M103: =Основной!Y102 -> 54 | N103: =Основной!P102 -> победитель | O103: =Основной!R102 -> Хафизова ГюзельРахмизяновна | P103: =Основной!U102 -> Муниципальное бюджетное общеобразовательное учреждение "Многопрофильная полилингвальная гимназия №180" Советского района г. Казани" | Q103: =Основной!B102 -> Родной (татарский) язык для обучающихся – татар школ с русским языком обучения
A104: 102 | B104: =Основной!D103 -> Приволжский район | C104: =Основной!E103 -> Муниципальное бюджетное общеобразовательное учреждение "Средняя общеобразовательная школа № 174" Советского района г.Казани" | D104: =Основной!G103 -> Сиразетдинова | E104: =Основной!H103 -> Самира | F104: =Основной!I103 -> Зуфаровна | G104: =Основной!M103 -> 5 | H104: =Основной!K103 -> 17.06.2009 | I104: =Основной!J103 -> Ж | J104: =Основной!X103 -> 32 | K104: =IF(Основной!Z103="","",Основной!Z103) ->  | L104: =Основной!AA103 -> 32 | M104: =Основной!Y103 -> 54 | N104: =Основной!P103 -> победитель | O104: =Основной!R103 -> Сафиуллина ГульфияРауфовна | P104: =Основной!U103 -> Муниципальное бюджетное общеобразовательное учреждение "Средняя общеобразовательная школа № 174" Советского района г.Казани" | Q104: =Основной!B103 -> Родной (татарский) язык для обучающихся – татар школ с русским языком обучения
A105: 103 | B105: =Основной!D104 -> Авиастроительный район | C105: =Основной!E104 -> Муниципальное бюджетное общеобразовательное учреждение "Гимназия № 8 -Центр образования" Советского района г. Казани" | D105: =Основной!G104 -> Хакимуллина | E105: =Основной!H104 -> Азиза | F105: =Основной!I104 -> Рустемовна | G105: =Основной!M104 -> 5 | H105: =Основной!K104 -> 08.09.2009 | I105: =Основной!J104 -> Ж | J105: =Основной!X104 -> 32 | K105: =IF(Основной!Z104="","",Основной!Z104) ->  | L105: =Основной!AA104 -> 32 | M105: =Основной!Y104 -> 54 | N105: =Основной!P104 -> победитель | O105: =Основной!R104 -> Айзатуллова АльфияМунировна | P105: =Основной!U104 -> Муниципальное бюджетное общеобразовательное учреждение "Гимназия № 8 -Центр образования" Советского района г. Казани" | Q105: =Основной!B104 -> Родной (татарский) язык для обучающихся – татар школ с русским языком обучения
A106: 104 | B106: =Основной!D105 -> Советский район | C106: =Основной!E105 -> Муниципальное автономное общеобразовательное учреждение Средняя общеобразовательная школа-интернат "Специализированный олимпиадно-научный центр "СОлНЦе" | D106: =Основной!G105 -> Шакиров | E106: =Основной!H105 -> Искандер | F106: =Основной!I105 -> Айдарович | G106: =Основной!M105 -> 5 | H106: =Основной!K105 -> 06.03.2009 | I106: =Основной!J105 -> М | J106: =Основной!X105 -> 32 | K106: =IF(Основной!Z105="","",Основной!Z105) ->  | L106: =Основной!AA105 -> 32 | M106: =Основной!Y105 -> 54 | N106: =Основной!P105 -> победитель | O106: =Основной!R105 -> Гараева Лейсян Фаритовна | P106: =Основной!U105 -> Муниципальное автономное общеобразовательное учреждение Средняя общеобразовательная школа-интернат "Специализированный олимпиадно-научный центр "СОлНЦе" | Q106: =Основной!B105 -> Родной (татарский) язык для обучающихся – татар школ с русским языком обучения
A107: 105 | B107: =Основной!D106 -> Московский район | C107: =Основной!E106 -> Муниципальное бюджетное общеобразовательное учреждение "Многопрофильная полилингвальная гимназия №180" Советского района г. Казани" | D107: =Основной!G106 -> Гарифуллина | E107: =Основной!H106 -> Мадина | F107: =Основной!I106 -> Булатовна | G107: =Основной!M106 -> 5 | H107: =Основной!K106 -> 30.04.2009 | I107: =Основной!J106 -> Ж | J107: =Основной!X106 -> 31 | K107: =IF(Основной!Z106="","",Основной!Z106) ->  | L107: =Основной!AA106 -> 31 | M107: =Основной!Y106 -> 54 | N107: =Основной!P106 -> победитель | O107: =Основной!R106 -> Назипова ЭльвинаРифатовна | P107: =Основной!U106 -> Муниципальное бюджетное общеобразовательное учреждение "Многопрофильная полилингвальная гимназия №180" Советского района г. Казани" | Q107: =Основной!B106 -> Родной (татарский) язык для обучающихся – татар школ с русским языком обучения
A108: 106 | B108: =Основной!D107 -> Советский район | C108: =Основной!E107 -> Муниципальное автономное общеобразовательное учреждение "Гимназия №141" Советского района г.Казани | D108: =Основной!G107 -> Гилязова | E108: =Основной!H107 -> Амина | F108: =Основной!I107 -> Айратовна | G108: =Основной!M107 -> 5 | H108: =Основной!K107 -> 01.05.2009 | I108: =Основной!J107 -> Ж | J108: =Основной!X107 -> 31 | K108: =IF(Основной!Z107="","",Основной!Z107) ->  | L108: =Основной!AA107 -> 31 | M108: =Основной!Y107 -> 54 | N108: =Основной!P107 -> победитель | O108: =Основной!R107 -> Салихзянова ИльмираЛукмановна | P108: =Основной!U107 -> Муниципальное автономное общеобразовательное учреждение "Гимназия №141" Советского района г.Казани | Q108: =Основной!B107 -> Родной (татарский) язык для обучающихся – татар школ с русским языком обучения
A109: 107 | B109: =Основной!D108 -> Авиастроительный район | C109: =Основной!E108 -> Муниципальное автономное общеобразовательное учреждение "Гимназия № 139" | D109: =Основной!G108 -> Галимова | E109: =Основной!H108 -> Амина | F109: =Основной!I108 -> Ильшатовна | G109: =Основной!M108 -> 5 | H109: =Основной!K108 -> 13.12.2008 | I109: =Основной!J108 -> Ж | J109: =Основной!X108 -> 31 | K109: =IF(Основной!Z108="","",Основной!Z108) ->  | L109: =Основной!AA108 -> 31 | M109: =Основной!Y108 -> 54 | N109: =Основной!P108 -> победитель | O109: =Основной!R108 -> Касымова ГульназРишатовна | P109: =Основной!U108 -> Муниципальное автономное общеобразовательное учреждение "Гимназия № 139" | Q109: =Основной!B108 -> Родной (татарский) язык для обучающихся – татар школ с русским языком обучения
A110: 108 | B110: =Основной!D109 -> Приволжский район | C110: =Основной!E109 -> Муниципальное бюджетное общеобразовательное учреждение "Средняя общеобразовательная школа № 171 с углубленным изучением отдельных предметов" Советского района г.Казани | D110: =Основной!G109 -> Гильмутдинова | E110: =Основной!H109 -> Малика | F110: =Основной!I109 -> Ильфаровна | G110: =Основной!M109 -> 5 | H110: =Основной!K109 -> 07.06.2009 | I110: =Основной!J109 -> Ж | J110: =Основной!X109 -> 30 | K110: =IF(Основной!Z109="","",Основной!Z109) ->  | L110: =Основной!AA109 -> 30 | M110: =Основной!Y109 -> 54 | N110: =Основной!P109 -> победитель | O110: =Основной!R109 -> Ахметгалиева АлсуАсхадулловна | P110: =Основной!U109 -> Муниципальное бюджетное общеобразовательное учреждение "Средняя общеобразовательная школа № 171 с углубленным изучением отдельных предметов" Советского района г.Казани | Q110: =Основной!B109 -> Родной (татарский) язык для обучающихся – татар школ с русским языком обучения
A111: 109 | B111: =Основной!D110 -> Авиастроительный район | C111: =Основной!E110 -> Муниципальное бюджетное общеобразовательное учреждение "Гимназия №175" Советского района г.Казани | D111: =Основной!G110 -> Гафиятуллин | E111: =Основной!H110 -> Булат | F111: =Основной!I110 -> Наилевич | G111: =Основной!M110 -> 5 | H111: =Основной!K110 -> 04.06.2009 | I111: =Основной!J110 -> М | J111: =Основной!X110 -> 30 | K111: =IF(Основной!Z110="","",Основной!Z110) ->  | L111: =Основной!AA110 -> 30 | M111: =Основной!Y110 -> 54 | N111: =Основной!P110 -> призер | O111: =Основной!R110 -> Хакимова МадинаСагидулловна | P111: =Основной!U110 -> Муниципальное бюджетное общеобразовательное учреждение "Гимназия №175" Советского района г.Казани | Q111: =Основной!B110 -> Родной (татарский) язык для обучающихся – татар школ с русским языком обучения
A112: 110 | B112: =Основной!D111 -> Ново-Савиновский район | C112: =Основной!E111 -> Муниципальное автономное общеобразовательное учреждение "Гимназия №141" Советского района г.Казани | D112: =Основной!G111 -> Даминова | E112: =Основной!H111 -> Аниса | F112: =Основной!I111 -> Расимовна | G112: =Основной!M111 -> 5 | H112: =Основной!K111 -> 12.03.2009 | I112: =Основной!J111 -> Ж | J112: =Основной!X111 -> 29 | K112: =IF(Основной!Z111="","",Основной!Z111) ->  | L112: =Основной!AA111 -> 29 | M112: =Основной!Y111 -> 54 | N112: =Основной!P111 -> призер | O112: =Основной!R111 -> Салихзянова ИльмираЛукмановна | P112: =Основной!U111 -> Муниципальное автономное общеобразовательное учреждение "Гимназия №141" Советского района г.Казани | Q112: =Основной!B111 -> Родной (татарский) язык для обучающихся – татар школ с русским языком обучения
A113: 111 | B113: =Основной!D112 -> Приволжский район | C113: =Основной!E112 -> Муниципальное бюджетное общеобразовательное учреждение "Средняя общеобразовательная школа № 171 с углубленным изучением отдельных предметов" Советского района г.Казани | D113: =Основной!G112 -> Залялиева | E113: =Основной!H112 -> Замира | F113: =Основной!I112 -> Зуфаровна | G113: =Основной!M112 -> 5 | H113: =Основной!K112 -> 25.09.2009 | I113: =Основной!J112 -> Ж | J113: =Основной!X112 -> 29 | K113: =IF(Основной!Z112="","",Основной!Z112) ->  | L113: =Основной!AA112 -> 29 | M113: =Основной!Y112 -> 54 | N113: =Основной!P112 -> призер | O113: =Основной!R112 -> Ахметгалиева АлсуАсхадулловна | P113: =Основной!U112 -> Муниципальное бюджетное общеобразовательное учреждение "Средняя общеобразовательная школа № 171 с углубленным изучением отдельных предметов" Советского района г.Казани | Q113: =Основной!B112 -> Родной (татарский) язык для обучающихся – татар школ с русским языком обучения
A114: 112 | B114: =Основной!D113 -> Советский район | C114: =Основной!E113 -> Муниципальное автономное общеобразовательное учреждение "Гимназия №141" Советского района г.Казани | D114: =Основной!G113 -> Ахмадуллин | E114: =Основной!H113 -> Инсаф | F114: =Основной!I113 -> Рамисович | G114: =Основной!M113 -> 5 | H114: =Основной!K113 -> 20.03.2009 | I114: =Основной!J113 -> М | J114: =Основной!X113 -> 28 | K114: =IF(Основной!Z113="","",Основной!Z113) ->  | L114: =Основной!AA113 -> 28 | M114: =Основной!Y113 -> 54 | N114: =Основной!P113 -> призер | O114: =Основной!R113 -> Салихзянова ИльмираЛукмановна | P114: =Основной!U113 -> Муниципальное автономное общеобразовательное учреждение "Гимназия №141" Советского района г.Казани | Q114: =Основной!B113 -> Родной (татарский) язык для обучающихся – татар школ с русским языком обучения
A115: 113 | B115: =Основной!D114 -> Приволжский район | C115: =Основной!E114 -> Муниципальное бюджетное общеобразовательное учреждение "Средняя общеобразовательная школа № 171 с углубленным изучением отдельных предметов" Советского района г.Казани | D115: =Основной!G114 -> Насыров | E115: =Основной!H114 -> Тамерлан | F115: =Основной!I114 -> Анварович | G115: =Основной!M114 -> 5 | H115: =Основной!K114 -> 19.06.2009 | I115: =Основной!J114 -> М | J115: =Основной!X114 -> 28 | K115: =IF(Основной!Z114="","",Основной!Z114) ->  | L115: =Основной!AA114 -> 28 | M115: =Основной!Y114 -> 54 | N115: =Основной!P114 -> призер | O115: =Основной!R114 -> Ахметгалиева АлсуАсхадулловна | P115: =Основной!U114 -> Муниципальное бюджетное общеобразовательное учреждение "Средняя общеобразовательная школа № 171 с углубленным изучением отдельных предметов" Советского района г.Казани | Q115: =Основной!B114 -> Родной (татарский) язык для обучающихся – татар школ с русским языком обучения
A116: 114 | B116: =Основной!D115 -> Приволжский район | C116: =Основной!E115 -> Муниципальное бюджетное общеобразовательное учреждение "Гимназия№52" | D116: =Основной!G115 -> Шакиров | E116: =Основной!H115 -> Самир | F116: =Основной!I115 -> Одилович | G116: =Основной!M115 -> 5 | H116: =Основной!K115 -> 2009-02-03 | I116: =Основной!J115 -> м | J116: =Основной!X115 -> 28 | K116: =IF(Основной!Z115="","",Основной!Z115) ->  | L116: =Основной!AA115 -> 28 | M116: =Основной!Y115 -> 54 | N116: =Основной!P115 -> 0 | O116: =Основной!R115 -> Гайсарова Нурия Илнуровна | P116: =Основной!U115 -> МБОУ "Гимназия № 52" | Q116: =Основной!B115 -> Родной (татарский) язык для обучающихся – татар школ с русским языком обучения
A117: 115 | B117: =Основной!D116 -> Приволжский район | C117: =Основной!E116 -> Муниципальное бюджетное общеобразовательное учреждение "Средняя общеобразовательная татарско-русская школа № 80 с углубленным изучением отдельных предметов" | D117: =Основной!G116 -> Ибрагимов | E117: =Основной!H116 -> Руслан | F117: =Основной!I116 -> Тимурович | G117: =Основной!M116 -> 5 | H117: =Основной!K116 -> 01.09.2009 | I117: =Основной!J116 -> М | J117: =Основной!X116 -> 27 | K117: =IF(Основной!Z116="","",Основной!Z116) ->  | L117: =Основной!AA116 -> 27 | M117: =Основной!Y116 -> 54 | N117: =Основной!P116 -> победитель | O117: =Основной!R116 -> Сабирова ЛяйляГумеровна | P117: =Основной!U116 -> Муниципальное бюджетное общеобразовательное учреждение "Средняя общеобразовательная татарско-русская школа № 80 с углубленным изучением отдельных предметов" | Q117: =Основной!B116 -> Родной (татарский) язык для обучающихся – татар школ с русским языком обучения
A118: 116 | B118: =Основной!D117 -> Ново-Савиновский район | C118: =Основной!E117 -> Муниципальное автономное общеобразовательное учреждение "Лицей №121 имени Героя Советского Союза С.А.Ахтямова" Советского района г.Казани | D118: =Основной!G117 -> Яркаев | E118: =Основной!H117 -> Ирхан | F118: =Основной!I117 -> Эльнарович | G118: =Основной!M117 -> 5 | H118: =Основной!K117 -> 23.08.2009 | I118: =Основной!J117 -> М | J118: =Основной!X117 -> 26 | K118: =IF(Основной!Z117="","",Основной!Z117) ->  | L118: =Основной!AA117 -> 26 | M118: =Основной!Y117 -> 54 | N118: =Основной!P117 -> победитель | O118: =Основной!R117 -> Валиуллина РамзияХашимовна | P118: =Основной!U117 -> Муниципальное автономное общеобразовательное учреждение "Лицей №121 имени Героя Советского Союза С.А.Ахтямова" Советского района г.Казани | Q118: =Основной!B117 -> Родной (татарский) язык для обучающихся – татар школ с русским языком обучения
A119: 117 | B119: =Основной!D118 -> Ново-Савиновский район | C119: =Основной!E118 -> МБОУ"Многопрофильный лицей №185" | D119: =Основной!G118 -> Шарафеева | E119: =Основной!H118 -> Эсмира | F119: =Основной!I118 -> Ильнуровна | G119: =Основной!M118 -> 5 | H119: =Основной!K118 -> 19.04.2009 | I119: =Основной!J118 -> Ж | J119: =Основной!X118 -> 26 | K119: =IF(Основной!Z118="","",Основной!Z118) ->  | L119: =Основной!AA118 -> 26 | M119: =Основной!Y118 -> 54 | N119: =Основной!P118 -> призер | O119: =Основной!R118 -> Минемуллин РишатРашитович | P119: =Основной!U118 -> МБОУ"Многопрофильный лицей №185" | Q119: =Основной!B118 -> Родной (татарский) язык для обучающихся – татар школ с русским языком обучения
A120: 118 | B120: =Основной!D119 -> Авиастроительный район | C120: =Основной!E119 -> Муниципальное автономное общеобразовательное учреждение "Лицей №121 имени Героя Советского Союза С.А.Ахтямова" Советского района г.Казани | D120: =Основной!G119 -> Куляев | E120: =Основной!H119 -> Амирхан | F120: =Основной!I119 -> Азатович | G120: =Основной!M119 -> 5 | H120: =Основной!K119 -> 20.09.2009 | I120: =Основной!J119 -> М | J120: =Основной!X119 -> 25 | K120: =IF(Основной!Z119="","",Основной!Z119) ->  | L120: =Основной!AA119 -> 25 | M120: =Основной!Y119 -> 54 | N120: =Основной!P119 -> победитель | O120: =Основной!R119 -> Валиуллина РамзияХашимовна | P120: =Основной!U119 -> Муниципальное автономное общеобразовательное учреждение "Лицей №121 имени Героя Советского Союза С.А.Ахтямова" Советского района г.Казани | Q120: =Основной!B119 -> Родной (татарский) язык для обучающихся – татар школ с русским языком обучения
A121: 119 | B121: =Основной!D120 -> Приволжский район | C121: =Основной!E120 -> Муниципальное бюджетное общеобразовательное учреждение "Гимназия № 125" Советского района г.Казани" | D121: =Основной!G120 -> Хайрисламова | E121: =Основной!H120 -> Азалия | F121: =Основной!I120 -> Альфритовна | G121: =Основной!M120 -> 5 | H121: =Основной!K120 -> 22.03.2009 | I121: =Основной!J120 -> Ж | J121: =Основной!X120 -> 25 | K121: =IF(Основной!Z120="","",Основной!Z120) ->  | L121: =Основной!AA120 -> 25 | M121: =Основной!Y120 -> 54 | N121: =Основной!P120 -> победитель | O121: =Основной!R120 -> Шакирова РезедаНурисламовна | P121: =Основной!U120 -> Муниципальное бюджетное общеобразовательное учреждение "Гимназия № 125" Советского района г.Казани" | Q121: =Основной!B120 -> Родной (татарский) язык для обучающихся – татар школ с русским языком обучения
A122: 120 | B122: =Основной!D121 -> Советский район | C122: =Основной!E121 -> Муниципальное бюджетное общеобразовательное учреждение "Многопрофильная полилингвальная гимназия №180" Советского района г. Казани" | D122: =Основной!G121 -> Гаффарова | E122: =Основной!H121 -> Дина | F122: =Основной!I121 -> Ильгамовна | G122: =Основной!M121 -> 5 | H122: =Основной!K121 -> 31.12.2008 | I122: =Основной!J121 -> Ж | J122: =Основной!X121 -> 25 | K122: =IF(Основной!Z121="","",Основной!Z121) ->  | L122: =Основной!AA121 -> 25 | M122: =Основной!Y121 -> 54 | N122: =Основной!P121 -> призер | O122: =Основной!R121 -> Назипова ЭльвинаРифатовна | P122: =Основной!U121 -> Муниципальное бюджетное общеобразовательное учреждение "Многопрофильная полилингвальная гимназия №180" Советского района г. Казани" | Q122: =Основной!B121 -> Родной (татарский) язык для обучающихся – татар школ с русским языком обучения
A123: 121 | B123: =Основной!D122 -> Ново-Савиновский район | C123: =Основной!E122 -> Муниципальное бюджетное общеобразовательное учреждение "Лицей №177" Ново-Савиновского района г. Казани" | D123: =Основной!G122 -> Шагивалеева | E123: =Основной!H122 -> Адиля | F123: =Основной!I122 -> Альбертовна | G123: =Основной!M122 -> 5 | H123: =Основной!K122 -> 15.05.2009 | I123: =Основной!J122 -> Ж | J123: =Основной!X122 -> 22 | K123: =IF(Основной!Z122="","",Основной!Z122) ->  | L123: =Основной!AA122 -> 22 | M123: =Основной!Y122 -> 54 | N123: =Основной!P122 -> призер | O123: =Основной!R122 -> Исхакова ЛилияШаукатовна | P123: =Основной!U122 -> Муниципальное бюджетное общеобразовательное учреждение "Лицей №177" Ново-Савиновского района г. Казани" | Q123: =Основной!B122 -> Родной (татарский) язык для обучающихся – татар школ с русским языком обучения
A124: 122 | B124: =Основной!D123 -> Приволжский район | C124: =Основной!E123 -> Муниципальное бюджетное общеобразовательное учреждение "Многопрофильная полилингвальная гимназия №180" Советского района г. Казани" | D124: =Основной!G123 -> Давлетшина | E124: =Основной!H123 -> Раиля | F124: =Основной!I123 -> Илдусовна | G124: =Основной!M123 -> 5 | H124: =Основной!K123 -> 12.07.2009 | I124: =Основной!J123 -> Ж | J124: =Основной!X123 -> 21 | K124: =IF(Основной!Z123="","",Основной!Z123) ->  | L124: =Основной!AA123 -> 21 | M124: =Основной!Y123 -> 54 | N124: =Основной!P123 -> призер | O124: =Основной!R123 -> Назипова ЭльвинаРифатовна | P124: =Основной!U123 -> Муниципальное бюджетное общеобразовательное учреждение "Многопрофильная полилингвальная гимназия №180" Советского района г. Казани" | Q124: =Основной!B123 -> Родной (татарский) язык для обучающихся – татар школ с русским языком обучения
A125: 123 | B125: =Основной!D124 -> Ново-Савиновский район | C125: =Основной!E124 -> Муниципальное бюджетное общеобразовательное учреждение "Гимназия №6" | D125: =Основной!G124 -> Миндубаев | E125: =Основной!H124 -> Расул | F125: =Основной!I124 -> Ленарович | G125: =Основной!M124 -> 5 | H125: =Основной!K124 -> 15.08.2009 | I125: =Основной!J124 -> М | J125: =Основной!X124 -> 21 | K125: =IF(Основной!Z124="","",Основной!Z124) ->  | L125: =Основной!AA124 -> 21 | M125: =Основной!Y124 -> 54 | N125: =Основной!P124 -> победитель | O125: =Основной!R124 -> Низамиева ЛилияНазимовна | P125: =Основной!U124 -> Муниципальное бюджетное общеобразовательное учреждение "Гимназия №6" | Q125: =Основной!B124 -> Родной (татарский) язык для обучающихся – татар школ с русским языком обучения
A126: 124 | B126: =Основной!D125 -> Приволжский район | C126: =Основной!E125 -> Муниципальное бюджетное общеобразователье учреждение "Многопрофильный лицей №187" | D126: =Основной!G125 -> Закиров | E126: =Основной!H125 -> Аяз | F126: =Основной!I125 -> Айратович | G126: =Основной!M125 -> 5 | H126: =Основной!K125 -> 10.11.2009 | I126: =Основной!J125 -> М | J126: =Основной!X125 -> 19 | K126: =IF(Основной!Z125="","",Основной!Z125) ->  | L126: =Основной!AA125 -> 19 | M126: =Основной!Y125 -> 54 | N126: =Основной!P125 -> победитель | O126: =Основной!R125 -> Бикмухаметова ЛейляЗульфатовна | P126: =Основной!U125 -> Муниципальное бюджетное общеобразователье учреждение "Многопрофильный лицей №187" | Q126: =Основной!B125 -> Родной (татарский) язык для обучающихся – татар школ с русским языком обучения
A127: 125 | B127: =Основной!D126 -> Приволжский район | C127: =Основной!E126 -> Муниципальное бюджетное общеобразовательное учреждение "Средняя общеобразовательная школа №167 с углубленным изучением отдельных предметов" Советского района г. Казани | D127: =Основной!G126 -> Зинятуллина | E127: =Основной!H126 -> Зарина | F127: =Основной!I126 -> Рамелевна | G127: =Основной!M126 -> 5 | H127: =Основной!K126 -> 15.05.2009 | I127: =Основной!J126 -> Ж | J127: =Основной!X126 -> 19 | K127: =IF(Основной!Z126="","",Основной!Z126) ->  | L127: =Основной!AA126 -> 19 | M127: =Основной!Y126 -> 54 | N127: =Основной!P126 -> победитель | O127: =Основной!R126 -> Ибраева ЛейсанРасиховна | P127: =Основной!U126 -> Муниципальное бюджетное общеобразовательное учреждение "Средняя общеобразовательная школа №167 с углубленным изучением отдельных предметов" Советского района г. Казани | Q127: =Основной!B126 -> Родной (татарский) язык для обучающихся – татар школ с русским языком обучения
A128: 126 | B128: =Основной!D127 -> Приволжский район | C128: =Основной!E127 -> Муниципальное бюджетное общеобразовательное учреждение "Средняя общеобразовательная школа №167 с углубленным изучением отдельных предметов" Советского района г. Казани | D128: =Основной!G127 -> Аллямов | E128: =Основной!H127 -> Данияр | F128: =Основной!I127 -> Рамисович | G128: =Основной!M127 -> 5 | H128: =Основной!K127 -> 25.02.2009 | I128: =Основной!J127 -> М | J128: =Основной!X127 -> 17 | K128: =IF(Основной!Z127="","",Основной!Z127) ->  | L128: =Основной!AA127 -> 17 | M128: =Основной!Y127 -> 54 | N128: =Основной!P127 -> победитель | O128: =Основной!R127 -> Хальфина ВенераРафкатовна | P128: =Основной!U127 -> Муниципальное бюджетное общеобразовательное учреждение "Средняя общеобразовательная школа №167 с углубленным изучением отдельных предметов" Советского района г. Казани | Q128: =Основной!B127 -> Родной (татарский) язык для обучающихся – татар школ с русским языком обучения
A129: 127 | B129: =Основной!D128 -> Московский район | C129: =Основной!E128 -> Муниципальное бюджетное общеобразовательное учреждение "Гимназия №14" Авиастроительного района г.Казани" | D129: =Основной!G128 -> Галяутдинов | E129: =Основной!H128 -> Инсаф | F129: =Основной!I128 -> Ленарович | G129: =Основной!M128 -> 5 | H129: =Основной!K128 -> 04.03.2009 | I129: =Основной!J128 -> М | J129: =Основной!X128 -> 17 | K129: =IF(Основной!Z128="","",Основной!Z128) ->  | L129: =Основной!AA128 -> 17 | M129: =Основной!Y128 -> 54 | N129: =Основной!P128 -> призер | O129: =Основной!R128 -> Шайхутдинова ЗульфияАдгамовна | P129: =Основной!U128 -> Муниципальное бюджетное общеобразовательное учреждение "Гимназия №14" Авиастроительного района г.Казани" | Q129: =Основной!B128 -> Родной (татарский) язык для обучающихся – татар школ с русским языком обучения
A130: 128 | B130: =Основной!D129 -> Вахитовский район | C130: =Основной!E129 -> Муниципальное бюджетное общеобразовательное учреждение "Средняя общеобразовательная школа с углубленным изучением отдельных предметов №62" Авиастроительного района г.Казани" | D130: =Основной!G129 -> Сабиров | E130: =Основной!H129 -> Вильдан | F130: =Основной!I129 -> Фанисович | G130: =Основной!M129 -> 5 | H130: =Основной!K129 -> 03.09.2009 | I130: =Основной!J129 -> М | J130: =Основной!X129 -> 15 | K130: =IF(Основной!Z129="","",Основной!Z129) ->  | L130: =Основной!AA129 -> 15 | M130: =Основной!Y129 -> 54 | N130: =Основной!P129 -> победитель | O130: =Основной!R129 -> Габдуллина ФлераАфызаловна | P130: =Основной!U129 -> Муниципальное бюджетное общеобразовательное учреждение "Средняя общеобразовательная школа с углубленным изучением отдельных предметов №62" Авиастроительного района г.Казани" | Q130: =Основной!B129 -> Родной (татарский) язык для обучающихся – татар школ с русским языком обучения
A131: 129 | B131: =Основной!D130 -> Вахитовский район | C131: =Основной!E130 -> Муниципальное бюджетное общеобразовательное учреждение "Татарско-русская средняя общеобразовательная школа №68 с углубленным изучением отдельных предметов" | D131: =Основной!G130 -> Бахриддинова | E131: =Основной!H130 -> Асал | F131: =Основной!I130 -> Асриддиновна | G131: =Основной!M130 -> 5 | H131: =Основной!K130 -> 14.11.2009 | I131: =Основной!J130 -> Ж | J131: =Основной!X130 -> 3 | K131: =IF(Основной!Z130="","",Основной!Z130) ->  | L131: =Основной!AA130 -> 3 | M131: =Основной!Y130 -> 54 | N131: =Основной!P130 -> победитель | O131: =Основной!R130 -> Назмутдинова ГульназТахировна | P131: =Основной!U130 -> Муниципальное бюджетное общеобразовательное учреждение "Татарско-русская средняя общеобразовательная школа №68 с углубленным изучением отдельных предметов" | Q131: =Основной!B130 -> Родной (татарский) язык для обучающихся – татар школ с русским языком обучения
A132: 130 | B132: =Основной!D131 -> Авиастроительный район | C132: =Основной!E131 -> Муниципальное бюджетное общеобразовательное учреждение "Лицей №26 им. М.Джалиля" Авиастроительного района г.Казани" | D132: =Основной!G131 -> Галявиева | E132: =Основной!H131 -> Алина | F132: =Основной!I131 -> Рамилевна | G132: =Основной!M131 -> 6 | H132: =Основной!K131 -> 29.09.2008 | I132: =Основной!J131 -> Ж | J132: =Основной!X131 -> 55 | K132: =IF(Основной!Z131="","",Основной!Z131) ->  | L132: =Основной!AA131 -> 55 | M132: =Основной!Y131 -> 56 | N132: =Основной!P131 -> победитель | O132: =Основной!R131 -> Камалеева ЗолфияМиннуровна | P132: =Основной!U131 -> Муниципальное бюджетное общеобразовательное учреждение "Лицей №26 им. М.Джалиля" Авиастроительного района г.Казани" | Q132: =Основной!B131 -> Родной (татарский) язык для обучающихся – татар школ с русским языком обучения
A133: 131 | B133: =Основной!D132 -> Приволжский район | C133: =Основной!E132 -> Муниципальное бюджетное общеобразовательное учреждение "Средняя общеобразовательная школа №137 с углубленным изучением отдельных предметов"Кировского района г.Казани" | D133: =Основной!G132 -> Хамидуллина | E133: =Основной!H132 -> Айзиля | F133: =Основной!I132 -> Дамировна | G133: =Основной!M132 -> 6 | H133: =Основной!K132 -> 10.07.2008 | I133: =Основной!J132 -> Ж | J133: =Основной!X132 -> 55 | K133: =IF(Основной!Z132="","",Основной!Z132) ->  | L133: =Основной!AA132 -> 55 | M133: =Основной!Y132 -> 56 | N133: =Основной!P132 -> победитель | O133: =Основной!R132 -> Сафина ГульнараФаргатовна | P133: =Основной!U132 -> Муниципальное бюджетное общеобразовательное учреждение "Средняя общеобразовательная школа №137 с углубленным изучением отдельных предметов"Кировского района г.Казани" | Q133: =Основной!B132 -> Родной (татарский) язык для обучающихся – татар школ с русским языком обучения
A134: 132 | B134: =Основной!D133 -> Советский район | C134: =Основной!E133 -> Муниципальное автономное общеобразовательное учреждение "Гимназия №19" | D134: =Основной!G133 -> Галиахметова | E134: =Основной!H133 -> Мадина | F134: =Основной!I133 -> Ильхамовна | G134: =Основной!M133 -> 6 | H134: =Основной!K133 -> 30.06.2008 | I134: =Основной!J133 -> Ж | J134: =Основной!X133 -> 54 | K134: =IF(Основной!Z133="","",Основной!Z133) ->  | L134: =Основной!AA133 -> 54 | M134: =Основной!Y133 -> 56 | N134: =Основной!P133 -> победитель | O134: =Основной!R133 -> Галаветдинова ГюзелияХамитовна | P134: =Основной!U133 -> Муниципальное автономное общеобразовательное учреждение "Гимназия №19" | Q134: =Основной!B133 -> Родной (татарский) язык для обучающихся – татар школ с русским языком обучения
A135: 133 | B135: =Основной!D134 -> Приволжский район | C135: =Основной!E134 -> Муниципальное бюджетное общеобразовательное учреждение "Лицей №35 - образовательный центр "Галактика" Приволжского района города Казани" | D135: =Основной!G134 -> Гарифзянова | E135: =Основной!H134 -> Разиля | F135: =Основной!I134 -> Рамилевна | G135: =Основной!M134 -> 6 | H135: =Основной!K134 -> 05.07.2008 | I135: =Основной!J134 -> Ж | J135: =Основной!X134 -> 54 | K135: =IF(Основной!Z134="","",Основной!Z134) ->  | L135: =Основной!AA134 -> 54 | M135: =Основной!Y134 -> 56 | N135: =Основной!P134 -> победитель | O135: =Основной!R134 -> Шаяхметова ВенераМиннебаевна | P135: =Основной!U134 -> Муниципальное бюджетное общеобразовательное учреждение "Лицей №35 - образовательный центр "Галактика" Приволжского района города Казани" | Q135: =Основной!B134 -> Родной (татарский) язык для обучающихся – татар школ с русским языком обучения
A136: 134 | B136: =Основной!D135 -> Приволжский район | C136: =Основной!E135 -> Муниципальное бюджетное общеобразовательное учреждение "Гимназия №175" Советского района г.Казани | D136: =Основной!G135 -> Хисамиева | E136: =Основной!H135 -> Адиля | F136: =Основной!I135 -> Ильнуровна | G136: =Основной!M135 -> 6 | H136: =Основной!K135 -> 12.07.2008 | I136: =Основной!J135 -> Ж | J136: =Основной!X135 -> 53 | K136: =IF(Основной!Z135="","",Основной!Z135) ->  | L136: =Основной!AA135 -> 53 | M136: =Основной!Y135 -> 56 | N136: =Основной!P135 -> победитель | O136: =Основной!R135 -> Ахтямова ГульназМингалиевна | P136: =Основной!U135 -> Муниципальное бюджетное общеобразовательное учреждение "Гимназия №175" Советского района г.Казани | Q136: =Основной!B135 -> Родной (татарский) язык для обучающихся – татар школ с русским языком обучения
A137: 135 | B137: =Основной!D136 -> Приволжский район | C137: =Основной!E136 -> Муниципальное автономное общеобразовательное учреждение "Гимназия №37" Авиастроительного района г.Казани" | D137: =Основной!G136 -> Усманова | E137: =Основной!H136 -> Лейля | F137: =Основной!I136 -> Ильнуровна | G137: =Основной!M136 -> 6 | H137: =Основной!K136 -> 30.07.2008 | I137: =Основной!J136 -> Ж | J137: =Основной!X136 -> 53 | K137: =IF(Основной!Z136="","",Основной!Z136) ->  | L137: =Основной!AA136 -> 53 | M137: =Основной!Y136 -> 56 | N137: =Основной!P136 -> победитель | O137: =Основной!R136 -> Ахметшина ЗиляВагизовна | P137: =Основной!U136 -> Муниципальное автономное общеобразовательное учреждение "Гимназия №37" Авиастроительного района г.Казани" | Q137: =Основной!B136 -> Родной (татарский) язык для обучающихся – татар школ с русским языком обучения
A138: 136 | B138: =Основной!D137 -> Авиастроительный район | C138: =Основной!E137 -> МБОУ"Многопрофильный лицей №185" | D138: =Основной!G137 -> Газимова | E138: =Основной!H137 -> Ясмина | F138: =Основной!I137 -> Ильназовна | G138: =Основной!M137 -> 6 | H138: =Основной!K137 -> 29.03.2009 | I138: =Основной!J137 -> Ж | J138: =Основной!X137 -> 52 | K138: =IF(Основной!Z137="","",Основной!Z137) ->  | L138: =Основной!AA137 -> 52 | M138: =Основной!Y137 -> 56 | N138: =Основной!P137 -> победитель | O138: =Основной!R137 -> Хадеева ИльгияИлдусовна | P138: =Основной!U137 -> МБОУ"Многопрофильный лицей №185" | Q138: =Основной!B137 -> Родной (татарский) язык для обучающихся – татар школ с русским языком обучения
A139: 137 | B139: =Основной!D138 -> Кировский район | C139: =Основной!E138 -> Муниципальное бюджетное общеобразовательное учреждение "Средняя общеобразовательная школа №69" | D139: =Основной!G138 -> Абдрахимова | E139: =Основной!H138 -> Эвилина | F139: =Основной!I138 -> Ильнуровна | G139: =Основной!M138 -> 6 | H139: =Основной!K138 -> 29.08.2008 | I139: =Основной!J138 -> Ж | J139: =Основной!X138 -> 51 | K139: =IF(Основной!Z138="","",Основной!Z138) ->  | L139: =Основной!AA138 -> 51 | M139: =Основной!Y138 -> 56 | N139: =Основной!P138 -> победитель | O139: =Основной!R138 -> Махмутова ФаридаГусмановна | P139: =Основной!U138 -> Муниципальное бюджетное общеобразовательное учреждение "Средняя общеобразовательная школа №69" | Q139: =Основной!B138 -> Родной (татарский) язык для обучающихся – татар школ с русским языком обучения
A140: 138 | B140: =Основной!D139 -> Советский район | C140: =Основной!E139 -> Муниципальное автономное общеобразовательное учреждение "Гимназия №141" Советского района г.Казани | D140: =Основной!G139 -> Файзуллина | E140: =Основной!H139 -> Адиля | F140: =Основной!I139 -> Алмазовна | G140: =Основной!M139 -> 6 | H140: =Основной!K139 -> 12.07.2008 | I140: =Основной!J139 -> Ж | J140: =Основной!X139 -> 50 | K140: =IF(Основной!Z139="","",Основной!Z139) -> 1 | L140: =Основной!AA139 -> 51 | M140: =Основной!Y139 -> 56 | N140: =Основной!P139 -> победитель | O140: =Основной!R139 -> Салихзянова ИльмираЛукмановна | P140: =Основной!U139 -> Муниципальное автономное общеобразовательное учреждение "Гимназия №141" Советского района г.Казани | Q140: =Основной!B139 -> Родной (татарский) язык для обучающихся – татар школ с русским языком обучения
A141: 139 | B141: =Основной!D140 -> Советский район | C141: =Основной!E140 -> Муниципальное бюджетное общеобразовательное учреждение "Гимназия №155 с татарским языком обучения" Ново-Савиновского района г. Казани" | D141: =Основной!G140 -> Маннапов | E141: =Основной!H140 -> Амир | F141: =Основной!I140 -> Рушанович | G141: =Основной!M140 -> 6 | H141: =Основной!K140 -> 03.06.2008 | I141: =Основной!J140 -> М | J141: =Основной!X140 -> 51 | K141: =IF(Основной!Z140="","",Основной!Z140) ->  | L141: =Основной!AA140 -> 51 | M141: =Основной!Y140 -> 56 | N141: =Основной!P140 -> победитель | O141: =Основной!R140 -> Шакирова РаушанияГалаутдиновна | P141: =Основной!U140 -> Муниципальное бюджетное общеобразовательное учреждение "Гимназия №155 с татарским языком обучения" Ново-Савиновского района г. Казани" | Q141: =Основной!B140 -> Родной (татарский) язык для обучающихся – татар школ с русским языком обучения
A142: 140 | B142: =Основной!D141 -> Авиастроительный район | C142: =Основной!E141 -> Муниципальное бюджетное общеобразовательное учреждение "Средняя общеобразовательная школа № 82 с углубленным изучением отдельных предметов им.Р.Г.Хасановой" | D142: =Основной!G141 -> Бадретдинов | E142: =Основной!H141 -> Муса | F142: =Основной!I141 -> Радикович | G142: =Основной!M141 -> 6 | H142: =Основной!K141 -> 29.01.2008 | I142: =Основной!J141 -> М | J142: =Основной!X141 -> 50 | K142: =IF(Основной!Z141="","",Основной!Z141) ->  | L142: =Основной!AA141 -> 50 | M142: =Основной!Y141 -> 56 | N142: =Основной!P141 -> победитель | O142: =Основной!R141 -> Бадретдинова НазлыгульМасхутовна | P142: =Основной!U141 -> Муниципальное бюджетное общеобразовательное учреждение "Средняя общеобразовательная школа № 82 с углубленным изучением отдельных предметов им.Р.Г.Хасановой" | Q142: =Основной!B141 -> Родной (татарский) язык для обучающихся – татар школ с русским языком обучения
A143: 141 | B143: =Основной!D142 -> Авиастроительный район | C143: =Основной!E142 -> Муниципальное бюджетное общеобразовательное учреждение "Средняя общеобразовательная школа №89 с углубленным изучением отдельных предметов" Ново-Савиновского района г. Казани" | D143: =Основной!G142 -> Сафина | E143: =Основной!H142 -> Альфина | F143: =Основной!I142 -> Ильнуровна | G143: =Основной!M142 -> 6 | H143: =Основной!K142 -> 09.09.2008 | I143: =Основной!J142 -> Ж | J143: =Основной!X142 -> 50 | K143: =IF(Основной!Z142="","",Основной!Z142) ->  | L143: =Основной!AA142 -> 50 | M143: =Основной!Y142 -> 56 | N143: =Основной!P142 -> победитель | O143: =Основной!R142 -> Хусниева АлсуСагитовна | P143: =Основной!U142 -> Муниципальное бюджетное общеобразовательное учреждение "Средняя общеобразовательная школа №89 с углубленным изучением отдельных предметов" Ново-Савиновского района г. Казани" | Q143: =Основной!B142 -> Родной (татарский) язык для обучающихся – татар школ с русским языком обучения
A144: 142 | B144: =Основной!D143 -> Приволжский район | C144: =Основной!E143 -> Муниципальное бюджетное общеобразовательное учреждение "Средняя общеобразовательная школа №69" | D144: =Основной!G143 -> Скворцова | E144: =Основной!H143 -> Сафия | F144: =Основной!I143 -> Алексеевна | G144: =Основной!M143 -> 6 | H144: =Основной!K143 -> 26.04.2008 | I144: =Основной!J143 -> Ж | J144: =Основной!X143 -> 49 | K144: =IF(Основной!Z143="","",Основной!Z143) ->  | L144: =Основной!AA143 -> 49 | M144: =Основной!Y143 -> 56 | N144: =Основной!P143 -> победитель | O144: =Основной!R143 -> Махмутова ФаридаГусмановна | P144: =Основной!U143 -> Муниципальное бюджетное общеобразовательное учреждение "Средняя общеобразовательная школа №69" | Q144: =Основной!B143 -> Родной (татарский) язык для обучающихся – татар школ с русским языком обучения
A145: 143 | B145: =Основной!D144 -> Вахитовский район | C145: =Основной!E144 -> Муниципальное бюджетное общеобразовательное учреждение "Средняя общеобразовательная школа № 171 с углубленным изучением отдельных предметов" Советского района г.Казани | D145: =Основной!G144 -> Галимзянова | E145: =Основной!H144 -> Энже | F145: =Основной!I144 -> Айдаровна | G145: =Основной!M144 -> 6 | H145: =Основной!K144 -> 29.02.2008 | I145: =Основной!J144 -> Ж | J145: =Основной!X144 -> 48 | K145: =IF(Основной!Z144="","",Основной!Z144) ->  | L145: =Основной!AA144 -> 48 | M145: =Основной!Y144 -> 56 | N145: =Основной!P144 -> победитель | O145: =Основной!R144 -> Гарапшина ЛилияАльбертовна | P145: =Основной!U144 -> Муниципальное бюджетное общеобразовательное учреждение "Средняя общеобразовательная школа № 171 с углубленным изучением отдельных предметов" Советского района г.Казани | Q145: =Основной!B144 -> Родной (татарский) язык для обучающихся – татар школ с русским языком обучения
A146: 144 | B146: =Основной!D145 -> Приволжский район | C146: =Основной!E145 -> МБОУ "Политехнический лицей № 182" | D146: =Основной!G145 -> Хаертдинова | E146: =Основной!H145 -> Эльмира | F146: =Основной!I145 -> Рустемовна | G146: =Основной!M145 -> 6 | H146: =Основной!K145 -> 12.09.2008 | I146: =Основной!J145 -> Ж | J146: =Основной!X145 -> 48 | K146: =IF(Основной!Z145="","",Основной!Z145) ->  | L146: =Основной!AA145 -> 48 | M146: =Основной!Y145 -> 56 | N146: =Основной!P145 -> победитель | O146: =Основной!R145 -> Мингалиева ГульназРавильевна | P146: =Основной!U145 -> МБОУ "Политехнический лицей № 182" | Q146: =Основной!B145 -> Родной (татарский) язык для обучающихся – татар школ с русским языком обучения
A147: 145 | B147: =Основной!D146 -> Приволжский район | C147: =Основной!E146 -> Муниципальное бюджетное общеобразовательное учреждение "Лицей №35 - образовательный центр "Галактика" Приволжского района города Казани" | D147: =Основной!G146 -> Хусаенов | E147: =Основной!H146 -> Нурдан | F147: =Основной!I146 -> Азатович | G147: =Основной!M146 -> 6 | H147: =Основной!K146 -> 14.06.2008 | I147: =Основной!J146 -> М | J147: =Основной!X146 -> 48 | K147: =IF(Основной!Z146="","",Основной!Z146) ->  | L147: =Основной!AA146 -> 48 | M147: =Основной!Y146 -> 56 | N147: =Основной!P146 -> победитель | O147: =Основной!R146 -> Ханнанова МиляушаХатиповна | P147: =Основной!U146 -> Муниципальное бюджетное общеобразовательное учреждение "Лицей №35 - образовательный центр "Галактика" Приволжского района города Казани" | Q147: =Основной!B146 -> Родной (татарский) язык для обучающихся – татар школ с русским языком обучения
A148: 146 | B148: =Основной!D147 -> Советский район | C148: =Основной!E147 -> Муниципальное бюджетное общеобразовательное учреждение "Русско-татарская средняя общеобразовательная школа №81 с углубленным изучением отдельных предметов имени В.А.Григорьева" | D148: =Основной!G147 -> Гутупов | E148: =Основной!H147 -> Ильяс | F148: =Основной!I147 -> Айратович | G148: =Основной!M147 -> 6 | H148: =Основной!K147 -> 29.12.2008 | I148: =Основной!J147 -> М | J148: =Основной!X147 -> 48 | K148: =IF(Основной!Z147="","",Основной!Z147) ->  | L148: =Основной!AA147 -> 48 | M148: =Основной!Y147 -> 56 | N148: =Основной!P147 -> победитель | O148: =Основной!R147 -> Сафиуллина ГульфияМинехаковна | P148: =Основной!U147 -> Муниципальное бюджетное общеобразовательное учреждение "Русско-татарская средняя общеобразовательная школа №81 с углубленным изучением отдельных предметов имени В.А.Григорьева" | Q148: =Основной!B147 -> Родной (татарский) язык для обучающихся – татар школ с русским языком обучения
A149: 147 | B149: =Основной!D148 -> Советский район | C149: =Основной!E148 -> Муниципальное бюджетное общеобразовательное учреждение "Лицей №83 - Центр образования" | D149: =Основной!G148 -> Габитова | E149: =Основной!H148 -> Камила | F149: =Основной!I148 -> Эльмаровна | G149: =Основной!M148 -> 6 | H149: =Основной!K148 -> 13.10.2008 | I149: =Основной!J148 -> Ж | J149: =Основной!X148 -> 48 | K149: =IF(Основной!Z148="","",Основной!Z148) ->  | L149: =Основной!AA148 -> 48 | M149: =Основной!Y148 -> 56 | N149: =Основной!P148 -> призер | O149: =Основной!R148 -> Галиева АлсуИльгизовна | P149: =Основной!U148 -> Муниципальное бюджетное общеобразовательное учреждение "Лицей №83 - Центр образования" | Q149: =Основной!B148 -> Родной (татарский) язык для обучающихся – татар школ с русским языком обучения
A150: 148 | B150: =Основной!D149 -> Советский район | C150: =Основной!E149 -> Муниципальное бюджетное общеобразовательное учреждение "Гимназия №96" | D150: =Основной!G149 -> Гатауллина | E150: =Основной!H149 -> Эльвина | F150: =Основной!I149 -> Азатовна | G150: =Основной!M149 -> 6 | H150: =Основной!K149 -> 19.11.2008 | I150: =Основной!J149 -> Ж | J150: =Основной!X149 -> 48 | K150: =IF(Основной!Z149="","",Основной!Z149) ->  | L150: =Основной!AA149 -> 48 | M150: =Основной!Y149 -> 56 | N150: =Основной!P149 -> участник | O150: =Основной!R149 -> Закирова АльмираХанафиевна | P150: =Основной!U149 -> Муниципальное бюджетное общеобразовательное учреждение "Гимназия №96" | Q150: =Основной!B149 -> Родной (татарский) язык для обучающихся – татар школ с русским языком обучения
A151: 149 | B151: =Основной!D150 -> Советский район | C151: =Основной!E150 -> Муниципальное автономное общеобразовательное учреждение "Гимназия №141" Советского района г.Казани | D151: =Основной!G150 -> Гайфутдинова | E151: =Основной!H150 -> Алсу | F151: =Основной!I150 -> Ильдаровна | G151: =Основной!M150 -> 6 | H151: =Основной!K150 -> 23.09.2008 | I151: =Основной!J150 -> Ж | J151: =Основной!X150 -> 48 | K151: =IF(Основной!Z150="","",Основной!Z150) ->  | L151: =Основной!AA150 -> 47 | M151: =Основной!Y150 -> 56 | N151: =Основной!P150 -> победитель | O151: =Основной!R150 -> Салихзянова ИльмираЛукмановна | P151: =Основной!U150 -> Муниципальное автономное общеобразовательное учреждение "Гимназия №141" Советского района г.Казани | Q151: =Основной!B150 -> Родной (татарский) язык для обучающихся – татар школ с русским языком обучения
A152: 150 | B152: =Основной!D151 -> Ново-Савиновский район | C152: =Основной!E151 -> Муниципальное бюджетное общеобразовательное учреждение "Лицей №83 - Центр образования" | D152: =Основной!G151 -> Яруллина | E152: =Основной!H151 -> Ралина | F152: =Основной!I151 -> Раилевна | G152: =Основной!M151 -> 6 | H152: =Основной!K151 -> 30.07.2008 | I152: =Основной!J151 -> М | J152: =Основной!X151 -> 47 | K152: =IF(Основной!Z151="","",Основной!Z151) ->  | L152: =Основной!AA151 -> 47 | M152: =Основной!Y151 -> 56 | N152: =Основной!P151 -> победитель | O152: =Основной!R151 -> Галиева АлсуИльгизовна | P152: =Основной!U151 -> Муниципальное бюджетное общеобразовательное учреждение "Лицей №83 - Центр образования" | Q152: =Основной!B151 -> Родной (татарский) язык для обучающихся – татар школ с русским языком обучения
A153: 151 | B153: =Основной!D152 -> Кировский район | C153: =Основной!E152 -> Муниципальное бюджетное общеобразовательное учреждение "Средняя общеобразовательная школа №73" | D153: =Основной!G152 -> Файзуллина | E153: =Основной!H152 -> Энже | F153: =Основной!I152 -> Алмазовна | G153: =Основной!M152 -> 6 | H153: =Основной!K152 -> 05.01.2008 | I153: =Основной!J152 -> Ж | J153: =Основной!X152 -> 46 | K153: =IF(Основной!Z152="","",Основной!Z152) ->  | L153: =Основной!AA152 -> 46 | M153: =Основной!Y152 -> 56 | N153: =Основной!P152 -> победитель | O153: =Основной!R152 -> Шарапова ЛилияКаюмовна | P153: =Основной!U152 -> Муниципальное бюджетное общеобразовательное учреждение "Средняя общеобразовательная школа №73" | Q153: =Основной!B152 -> Родной (татарский) язык для обучающихся – татар школ с русским языком обучения
A154: 152 | B154: =Основной!D153 -> Советский район | C154: =Основной!E153 -> Муниципальное автономное общеобразовательное учреждение "Лицей №121 имени Героя Советского Союза С.А.Ахтямова" Советского района г.Казани | D154: =Основной!G153 -> Гасимова | E154: =Основной!H153 -> Адиля | F154: =Основной!I153 -> Сириновна | G154: =Основной!M153 -> 6 | H154: =Основной!K153 -> 14.07.2008 | I154: =Основной!J153 -> Ж | J154: =Основной!X153 -> 46 | K154: =IF(Основной!Z153="","",Основной!Z153) ->  | L154: =Основной!AA153 -> 46 | M154: =Основной!Y153 -> 56 | N154: =Основной!P153 -> победитель | O154: =Основной!R153 -> Шигапова ЛюцияГосмановна | P154: =Основной!U153 -> Муниципальное автономное общеобразовательное учреждение "Лицей №121 имени Героя Советского Союза С.А.Ахтямова" Советского района г.Казани | Q154: =Основной!B153 -> Родной (татарский) язык для обучающихся – татар школ с русским языком обучения
A155: 153 | B155: =Основной!D154 -> Советский район | C155: =Основной!E154 -> Муниципальное бюджетное общеобразовательное учреждение "Гимназия №7 имени Героя России А.В.Козина" Ново-Савиновского района г. Казани" | D155: =Основной!G154 -> Хабибуллина | E155: =Основной!H154 -> Дина | F155: =Основной!I154 -> Камилевна | G155: =Основной!M154 -> 6 | H155: =Основной!K154 -> 06.02.2008 | I155: =Основной!J154 -> Ж | J155: =Основной!X154 -> 45 | K155: =IF(Основной!Z154="","",Основной!Z154) -> 1 | L155: =Основной!AA154 -> 46 | M155: =Основной!Y154 -> 56 | N155: =Основной!P154 -> призер | O155: =Основной!R154 -> Набиуллина ТаслимаГиниятовна | P155: =Основной!U154 -> Муниципальное бюджетное общеобразовательное учреждение "Гимназия №7 имени Героя России А.В.Козина" Ново-Савиновского района г. Казани" | Q155: =Основной!B154 -> Родной (татарский) язык для обучающихся – татар школ с русским языком обучения
A156: 154 | B156: =Основной!D155 -> Кировский район | C156: =Основной!E155 -> Муниципальное бюджетное общеобразовательное учреждение "Средняя общеобразовательная русско-татарская школа № 161" Советского района г.Казани" | D156: =Основной!G155 -> Аухадиева | E156: =Основной!H155 -> Диля | F156: =Основной!I155 -> Фидаилевна | G156: =Основной!M155 -> 6 | H156: =Основной!K155 -> 26.11.2008 | I156: =Основной!J155 -> Ж | J156: =Основной!X155 -> 46 | K156: =IF(Основной!Z155="","",Основной!Z155) ->  | L156: =Основной!AA155 -> 46 | M156: =Основной!Y155 -> 56 | N156: =Основной!P155 -> призер | O156: =Основной!R155 -> Хабибуллина КлараАльбертовна | P156: =Основной!U155 -> Муниципальное бюджетное общеобразовательное учреждение "Средняя общеобразовательная русско-татарская школа № 161" Советского района г.Казани" | Q156: =Основной!B155 -> Родной (татарский) язык для обучающихся – татар школ с русским языком обучения
A157: 155 | B157: =Основной!D156 -> Московский район | C157: =Основной!E156 -> Муниципальное бюджетное общеобразовательное учреждение "Гимназия№52" | D157: =Основной!G156 -> Марданшина | E157: =Основной!H156 -> Камиля | F157: =Основной!I156 -> Ленаровна | G157: =Основной!M156 -> 6 | H157: =Основной!K156 -> 06.08.2008 | I157: =Основной!J156 -> Ж | J157: =Основной!X156 -> 46 | K157: =IF(Основной!Z156="","",Основной!Z156) ->  | L157: =Основной!AA156 -> 46 | M157: =Основной!Y156 -> 56 | N157: =Основной!P156 -> победитель | O157: =Основной!R156 -> Ахметзянова ГульсуМагсумовна | P157: =Основной!U156 -> Муниципальное бюджетное общеобразовательное учреждение "Гимназия№52" | Q157: =Основной!B156 -> Родной (татарский) язык для обучающихся – татар школ с русским языком обучения
A158: 156 | B158: =Основной!D157 -> Кировский район | C158: =Основной!E157 -> МБОУ "Политехнический лицей № 182" | D158: =Основной!G157 -> Залялеева | E158: =Основной!H157 -> Адиля | F158: =Основной!I157 -> Ильгизовна | G158: =Основной!M157 -> 6 | H158: =Основной!K157 -> 23.02.2008 | I158: =Основной!J157 -> Ж | J158: =Основной!X157 -> 45 | K158: =IF(Основной!Z157="","",Основной!Z157) ->  | L158: =Основной!AA157 -> 45 | M158: =Основной!Y157 -> 56 | N158: =Основной!P157 -> победитель | O158: =Основной!R157 -> Мингалиева ГульназРавильевна | P158: =Основной!U157 -> МБОУ "Политехнический лицей № 182" | Q158: =Основной!B157 -> Родной (татарский) язык для обучающихся – татар школ с русским языком обучения
A159: 157 | B159: =Основной!D158 -> Советский район | C159: =Основной!E158 -> Государственное автономное общеобразовательное учреждение "Полилингвальный комплекс "Адымнар - путь к знаниям и согласию" г. Казани" | D159: =Основной!G158 -> Мустаева | E159: =Основной!H158 -> Азиза | F159: =Основной!I158 -> Ирековна | G159: =Основной!M158 -> 6 | H159: =Основной!K158 -> 31.03.2008 | I159: =Основной!J158 -> Ж | J159: =Основной!X158 -> 45 | K159: =IF(Основной!Z158="","",Основной!Z158) ->  | L159: =Основной!AA158 -> 45 | M159: =Основной!Y158 -> 56 | N159: =Основной!P158 -> победитель | O159: =Основной!R158 -> Хуснутдинова РаиляНурутдиновна | P159: =Основной!U158 -> Государственное автономное общеобразовательное учреждение "Полилингвальный комплекс "Адымнар - путь к знаниям и согласию" г. Казани" | Q159: =Основной!B158 -> Родной (татарский) язык для обучающихся – татар школ с русским языком обучения
A160: 158 | B160: =Основной!D159 -> Приволжский район | C160: =Основной!E159 -> Муниципальное бюджетное общеобразовательное учреждение "Средняя общеобразовательная школа с углубленным изучением отдельных предметов №62" Авиастроительного района г.Казани" | D160: =Основной!G159 -> Мубаракзянова | E160: =Основной!H159 -> Аделя | F160: =Основной!I159 -> Рафисовна | G160: =Основной!M159 -> 6 | H160: =Основной!K159 -> 13.12.2007 | I160: =Основной!J159 -> Ж | J160: =Основной!X159 -> 45 | K160: =IF(Основной!Z159="","",Основной!Z159) ->  | L160: =Основной!AA159 -> 45 | M160: =Основной!Y159 -> 56 | N160: =Основной!P159 -> победитель | O160: =Основной!R159 -> Ибрагимова ЭнджеСалимовна | P160: =Основной!U159 -> Муниципальное бюджетное общеобразовательное учреждение "Средняя общеобразовательная школа с углубленным изучением отдельных предметов №62" Авиастроительного района г.Казани" | Q160: =Основной!B159 -> Родной (татарский) язык для обучающихся – татар школ с русским языком обучения
A161: 159 | B161: =Основной!D160 -> Кировский район | C161: =Основной!E160 -> Государственное автономное общеобразовательное учреждение "Полилингвальный комплекс "Адымнар - путь к знаниям и согласию" г. Казани" | D161: =Основной!G160 -> Аюпова | E161: =Основной!H160 -> Аделина | F161: =Основной!I160 -> Ильшатовн | G161: =Основной!M160 -> 6 | H161: =Основной!K160 -> 14.06.2008 | I161: =Основной!J160 -> Ж | J161: =Основной!X160 -> 45 | K161: =IF(Основной!Z160="","",Основной!Z160) ->  | L161: =Основной!AA160 -> 45 | M161: =Основной!Y160 -> 56 | N161: =Основной!P160 -> призер | O161: =Основной!R160 -> Габдулина АльмираФердинантовна | P161: =Основной!U160 -> Государственное автономное общеобразовательное учреждение "Полилингвальный комплекс "Адымнар - путь к знаниям и согласию" г. Казани" | Q161: =Основной!B160 -> Родной (татарский) язык для обучающихся – татар школ с русским языком обучения
A162: 160 | B162: =Основной!D161 -> Ново-Савиновский район | C162: =Основной!E161 -> Муниципальное бюджетное общеобразовательное учреждение "Средняя общеобразовательная школа № 171 с углубленным изучением отдельных предметов" Советского района г.Казани | D162: =Основной!G161 -> Насырова | E162: =Основной!H161 -> Дина | F162: =Основной!I161 -> Маратовна | G162: =Основной!M161 -> 6 | H162: =Основной!K161 -> 07.07.2008 | I162: =Основной!J161 -> Ж | J162: =Основной!X161 -> 45 | K162: =IF(Основной!Z161="","",Основной!Z161) ->  | L162: =Основной!AA161 -> 45 | M162: =Основной!Y161 -> 56 | N162: =Основной!P161 -> призер | O162: =Основной!R161 -> Гарапшина ЛилияАльбертовна | P162: =Основной!U161 -> Муниципальное бюджетное общеобразовательное учреждение "Средняя общеобразовательная школа № 171 с углубленным изучением отдельных предметов" Советского района г.Казани | Q162: =Основной!B161 -> Родной (татарский) язык для обучающихся – татар школ с русским языком обучения
A163: 161 | B163: =Основной!D162 -> Ново-Савиновский район | C163: =Основной!E162 -> Муниципальное бюджетное общеобразовательное учреждение "Гимназия №7 имени Героя России А.В.Козина" Ново-Савиновского района г. Казани" | D163: =Основной!G162 -> Давлетов | E163: =Основной!H162 -> Карим | F163: =Основной!I162 -> Ранасович | G163: =Основной!M162 -> 6 | H163: =Основной!K162 -> 26.04.2008 | I163: =Основной!J162 -> М | J163: =Основной!X162 -> 43 | K163: =IF(Основной!Z162="","",Основной!Z162) -> 1 | L163: =Основной!AA162 -> 44 | M163: =Основной!Y162 -> 56 | N163: =Основной!P162 -> победитель | O163: =Основной!R162 -> Набиуллина ТаслимаГиниятовна | P163: =Основной!U162 -> Муниципальное бюджетное общеобразовательное учреждение "Гимназия №7 имени Героя России А.В.Козина" Ново-Савиновского района г. Казани" | Q163: =Основной!B162 -> Родной (татарский) язык для обучающихся – татар школ с русским языком обучения
A164: 162 | B164: =Основной!D163 -> Советский район | C164: =Основной!E163 -> Муниципальное бюджетное общеобразовательное учреждение "Многопрофильная полилингвальная гимназия №180" Советского района г. Казани" | D164: =Основной!G163 -> Сабирзянова | E164: =Основной!H163 -> Айзиля | F164: =Основной!I163 -> Марсовна | G164: =Основной!M163 -> 6 | H164: =Основной!K163 -> 21.02.2008 | I164: =Основной!J163 -> Ж | J164: =Основной!X163 -> 44 | K164: =IF(Основной!Z163="","",Основной!Z163) ->  | L164: =Основной!AA163 -> 44 | M164: =Основной!Y163 -> 56 | N164: =Основной!P163 -> победитель | O164: =Основной!R163 -> Валиуллова ЛилияХамбаловна | P164: =Основной!U163 -> Муниципальное бюджетное общеобразовательное учреждение "Многопрофильная полилингвальная гимназия №180" Советского района г. Казани" | Q164: =Основной!B163 -> Родной (татарский) язык для обучающихся – татар школ с русским языком обучения
A165: 163 | B165: =Основной!D164 -> Вахитовский район | C165: =Основной!E164 -> Муниципальное автономное общеобразовательное учреждение "Средняя общеобразовательная школа №39 с углубленным изучением английского языка" | D165: =Основной!G164 -> Халиуллина | E165: =Основной!H164 -> Малика | F165: =Основной!I164 -> Фаридовна | G165: =Основной!M164 -> 6 | H165: =Основной!K164 -> 27.06.2008 | I165: =Основной!J164 -> Ж | J165: =Основной!X164 -> 44 | K165: =IF(Основной!Z164="","",Основной!Z164) ->  | L165: =Основной!AA164 -> 44 | M165: =Основной!Y164 -> 56 | N165: =Основной!P164 -> участник | O165: =Основной!R164 -> Салихова СуюмбикаМидхатовна | P165: =Основной!U164 -> Муниципальное автономное общеобразовательное учреждение "Средняя общеобразовательная школа №39 с углубленным изучением английского языка" | Q165: =Основной!B164 -> Родной (татарский) язык для обучающихся – татар школ с русским языком обучения
A166: 164 | B166: =Основной!D165 -> Ново-Савиновский район | C166: =Основной!E165 -> Муниципальное бюджетное общеобразовательное учреждение "Средняя общеобразовательная школа № 171 с углубленным изучением отдельных предметов" Советского района г.Казани | D166: =Основной!G165 -> Хамидуллина | E166: =Основной!H165 -> Азалия | F166: =Основной!I165 -> Азатовна | G166: =Основной!M165 -> 6 | H166: =Основной!K165 -> 13.05.2008 | I166: =Основной!J165 -> Ж | J166: =Основной!X165 -> 44 | K166: =IF(Основной!Z165="","",Основной!Z165) ->  | L166: =Основной!AA165 -> 44 | M166: =Основной!Y165 -> 56 | N166: =Основной!P165 -> призер | O166: =Основной!R165 -> Гарапшина ЛилияАльбертовна | P166: =Основной!U165 -> Муниципальное бюджетное общеобразовательное учреждение "Средняя общеобразовательная школа № 171 с углубленным изучением отдельных предметов" Советского района г.Казани | Q166: =Основной!B165 -> Родной (татарский) язык для обучающихся – татар школ с русским языком обучения
A167: 165 | B167: =Основной!D166 -> Советский район | C167: =Основной!E166 -> Муниципальное бюджетное общеобразовательное учреждение "Средняя общеобразовательная школа № 171 с углубленным изучением отдельных предметов" Советского района г.Казани | D167: =Основной!G166 -> Закиров | E167: =Основной!H166 -> Карим | F167: =Основной!I166 -> Ранжитович | G167: =Основной!M166 -> 6 | H167: =Основной!K166 -> 09.01.2008 | I167: =Основной!J166 -> М | J167: =Основной!X166 -> 43 | K167: =IF(Основной!Z166="","",Основной!Z166) ->  | L167: =Основной!AA166 -> 43 | M167: =Основной!Y166 -> 56 | N167: =Основной!P166 -> победитель | O167: =Основной!R166 -> Гарапшина ЛилияАльбертовна | P167: =Основной!U166 -> Муниципальное бюджетное общеобразовательное учреждение "Средняя общеобразовательная школа № 171 с углубленным изучением отдельных предметов" Советского района г.Казани | Q167: =Основной!B166 -> Родной (татарский) язык для обучающихся – татар школ с русским языком обучения
A168: 166 | B168: =Основной!D167 -> Авиастроительный район | C168: =Основной!E167 -> Муниципальное бюджетное общеобразовательное учреждение "Средняя общеобразовательная школа № 171 с углубленным изучением отдельных предметов" Советского района г.Казани | D168: =Основной!G167 -> Сафина | E168: =Основной!H167 -> Алия | F168: =Основной!I167 -> Алмазовна | G168: =Основной!M167 -> 6 | H168: =Основной!K167 -> 01.07.2008 | I168: =Основной!J167 -> Ж | J168: =Основной!X167 -> 43 | K168: =IF(Основной!Z167="","",Основной!Z167) ->  | L168: =Основной!AA167 -> 43 | M168: =Основной!Y167 -> 56 | N168: =Основной!P167 -> победитель | O168: =Основной!R167 -> Ахметгалиева АлсуАсхадулловна | P168: =Основной!U167 -> Муниципальное бюджетное общеобразовательное учреждение "Средняя общеобразовательная школа № 171 с углубленным изучением отдельных предметов" Советского района г.Казани | Q168: =Основной!B167 -> Родной (татарский) язык для обучающихся – татар школ с русским языком обучения
A169: 167 | B169: =Основной!D168 -> Ново-Савиновский район | C169: =Основной!E168 -> Муниципальное бюджетное общеобразовательное учреждение "Средняя общеобразовательная школа с углубленным изучением отдельных предметов №62" Авиастроительного района г.Казани" | D169: =Основной!G168 -> Залялиев | E169: =Основной!H168 -> Разиль | F169: =Основной!I168 -> Радисович | G169: =Основной!M168 -> 6 | H169: =Основной!K168 -> 28.08.2008 | I169: =Основной!J168 -> М | J169: =Основной!X168 -> 43 | K169: =IF(Основной!Z168="","",Основной!Z168) ->  | L169: =Основной!AA168 -> 43 | M169: =Основной!Y168 -> 56 | N169: =Основной!P168 -> призер | O169: =Основной!R168 -> Ибрагимова ЭнджеСалимовна | P169: =Основной!U168 -> Муниципальное бюджетное общеобразовательное учреждение "Средняя общеобразовательная школа с углубленным изучением отдельных предметов №62" Авиастроительного района г.Казани" | Q169: =Основной!B168 -> Родной (татарский) язык для обучающихся – татар школ с русским языком обучения
A170: 168 | B170: =Основной!D169 -> Московский район | C170: =Основной!E169 -> Муниципальное автономное общеобразовательное учреждение "Лицей №146 "Ресурс" Ново-Савиновского района г. Казани" | D170: =Основной!G169 -> Бочкарева | E170: =Основной!H169 -> Лиана | F170: =Основной!I169 -> Александровна | G170: =Основной!M169 -> 6 | H170: =Основной!K169 -> 26.02.2008 | I170: =Основной!J169 -> Ж | J170: =Основной!X169 -> 43 | K170: =IF(Основной!Z169="","",Основной!Z169) ->  | L170: =Основной!AA169 -> 43 | M170: =Основной!Y169 -> 56 | N170: =Основной!P169 -> призер | O170: =Основной!R169 -> Агмалетдинова РозаНиколаевна | P170: =Основной!U169 -> Муниципальное автономное общеобразовательное учреждение "Лицей №146 "Ресурс" Ново-Савиновского района г. Казани" | Q170: =Основной!B169 -> Родной (татарский) язык для обучающихся – татар школ с русским языком обучения
A171: 169 | B171: =Основной!D170 -> Советский район | C171: =Основной!E170 -> Муниципальное бюджетное общеобразовательное учреждение "Средняя общеобразовательная школа №73" | D171: =Основной!G170 -> Шарафиев | E171: =Основной!H170 -> Гадель | F171: =Основной!I170 -> Булатович | G171: =Основной!M170 -> 6 | H171: =Основной!K170 -> 19.06.2008 | I171: =Основной!J170 -> М | J171: =Основной!X170 -> 41 | K171: =IF(Основной!Z170="","",Основной!Z170) ->  | L171: =Основной!AA170 -> 41 | M171: =Основной!Y170 -> 56 | N171: =Основной!P170 -> победитель | O171: =Основной!R170 -> Шарапова ЛилияКаюмовна | P171: =Основной!U170 -> Муниципальное бюджетное общеобразовательное учреждение "Средняя общеобразовательная школа №73" | Q171: =Основной!B170 -> Родной (татарский) язык для обучающихся – татар школ с русским языком обучения
